{"text_format":"1","workbook":"xlsx","n_sheets":40,"sheets":["Инструкция","Обновление","Лог обновления","Выбор субъекта РФ","Титульный","Актив","Пассив","Расшифровка показателей","Комментарии","Проверка","AllSheetsInThisWorkbook","et_union","TEHSHEET","REESTR_ORG","REESTR_FILTERED","REESTR_MO","modHyperlink","modChange","modPROV","modTitleSheetHeaders","modServiceModule","modCommandButton","modReestr","modClassifierValidate","modWindowClipboard","modInfo","modfrmReestr","modfrmDateChoose","modDblClick","modUpdTemplMain","modRegionSelectSub","modThisWorkbook","modReestrMO","modSheetMain01","modSheetMain02","modSheetMain03","modSheetMain04","modSheetMain05","modSheetMain06","Паспорт"],"not_rendered":{"charts":0,"images":97,"macros":1,"external_links":1,"defined_names":236,"comments":0,"pivot_tables":0},"unopened":[],"bounds":{"document_bytes":16777216,"sheet_cells":100000,"rows_first":2000,"rows_last":500,"rows_between":2000,"halvings":0,"cell_chars":16384,"cell_head_chars":4096},"cells_cut":0,"cells_raw":0,"read":"whole","date_system":"1900"}

{"sheet":"Инструкция","index":0,"n_rows":53,"n_cols":9,"rows_kept":53,"cut":false,"hidden":false,"merged":[[3,1,3,9],[51,2,51,3],[52,2,52,3],[49,5,49,8],[50,5,50,8],[51,5,51,8],[52,5,52,8],[48,2,48,3],[46,2,46,3],[47,2,47,3],[45,5,45,8],[50,2,50,3],[47,5,47,8],[18,2,18,7],[24,4,24,7],[25,2,25,3],[25,4,25,7],[49,2,49,3],[19,2,19,7],[48,5,48,8],[44,2,44,3],[45,2,45,3],[23,2,23,3],[23,4,23,7],[27,2,27,3],[27,4,27,7],[35,4,35,7],[31,2,31,4],[32,2,32,3],[32,4,32,7],[46,5,46,8],[33,4,33,7],[44,5,44,8],[17,2,17,7],[28,2,28,3],[28,4,28,7],[21,2,21,7],[22,2,22,4],[20,2,20,7],[35,2,35,3],[34,2,34,3],[34,4,34,7],[36,2,36,3],[6,2,6,7],[7,2,7,7],[8,2,8,7],[9,2,9,7],[26,2,26,3],[26,4,26,7],[13,4,14,7],[29,2,29,3],[29,4,29,7],[24,2,24,3],[42,2,42,3],[43,2,43,3],[42,5,42,8],[43,5,43,8],[36,4,36,7],[33,2,33,3],[39,1,39,9]]}
[]
[null,null,null,null,null,null,null,null,{"$f":"\"Код шаблона: \" & GetCode()","v":"Код шаблона: FORMA1.BUHG.2011"}]
[null,null,null,null,null,null,null,null,{"$f":"\"Версия \" & GetVersion()","v":"Версия 2.1"}]
[null,"Инструкция по заполнению шаблона"]
[]
[]
[null,null,"Технические требования:\n\n• макросы во время работы должны быть включены \n\n"]
[null,null,"• на рабочем месте должен быть установлен MS Office 2003, 2007, 2010 x86 с полной версией MS Excel"]
[null,null,"• макросы во время работы должны быть включены "]
[null,null,"• для корректной работы шаблона требуется выбрать низкий уровень безопасности\n(В меню MS Excel 2003: Сервис → Макрос → Безопасность → выбрать нижний пункт «Низкая безопасность» → «OK»)\n(В MS Excel 2007 после открытия файла шаблона нажать на кнопку «Параметры…» → «Предупреждение системы безопасности» → «Включить это содержимое» → «OK»)"]
[null,null,null,"Цвета ячеек:"]
[null,null,null,"●","Голубой – ячейки, обязательные для заполнения;"]
[null,null,null,"●","Желтый – ячейки, предназначенные для заполнения;"]
[null,null,null,"●","Зеленый – ячейки с формулами/константами или заполняемые автоматически (например, при выборе организации из реестра или выборе даты)."]
[]
[null,null,null,"Пояснение к заполнению (необходимо нажать один раз)."]
[]
[null,null,"Шаблон может быть сохранен на любом этапе заполнения!"]
[null,null,"• При сохранении шаблона осуществляется проверка на наличие и корректность (например, КПП – 9 цифр) обязательных параметров на листах. "]
[null,null,"• Если какая-то ячейка не удовлетворяет условию проверки, на лист «Проверка» добавляется гиперссылка на данную ячейку и причина, по которой шаблон не будет загружен в хранилище данных. "]
[null,null,"• В колонке «Статус ошибки» для каждого сообщения возможны 2 значения: ошибка и предупреждение. "]
[null,null,"• При наличии сообщений со статусом «Ошибка» шаблон будет отклонён системой, сообщения со статусом «Предупреждение» носят информационный характер, и такой шаблон будет принят системой."]
[null,null,"Организационно-технические консультации:"]
[null,null,"ФИО:"]
[null,null,"телефон:"]
[null,null,"e-mail:"]
[null,null,"WEB-сайт:"]
[null,null,"Комментарий"]
[null,null,"Дистрибутивы:",null,"Для устранения проблем с MS Excel (например, \"Compile error in hidden module\") воспользуйтесь пакетами библиотек: "]
[null,null,"Дистрибутивы (ссылка):",null,"http://eias.ru/?page=show_distrs"]
[]
[null,null,"Консультации по методологии заполнения форм:"]
[null,null,"ФИО:"]
[null,null,"телефон:"]
[null,null,"e-mail:"]
[null,null,"WEB-сайт:",null,"http://eias.ru/"]
[null,null,"Комментарий"]
[]
[]
[null,"Список сокращений"]
[]
[]
[null,null,"Сокращение",null,"Расшифровка","Данные"]
[null,null,1,null,2,3]
[null,null,"ОКПО",null,"Общероссийский классификатор предприятий и организаций"]
[null,null,"ОКВЭД",null,"Общероссийский классификатор видов экономической деятельности","http://www.gmcgks.ru/new_page_96.htm"]
[null,null,"ОКАТО",null,"Общероссийский классификатор объектов административно-территориального деления","http://www.gmcgks.ru/new_page_87.htm"]
[null,null,"ОКОГУ",null,"Общероссийский классификатор органов государственной власти и управления","http://www.gmcgks.ru/new_page_77.htm"]
[null,null,"ОКОПФ",null,"Общероссийский классификатор организационно-правовых форм","http://www.gmcgks.ru/new_page_95.htm"]
[null,null,"ОКФС",null,"Общероссийский классификатор форм собственности","http://www.gmcgks.ru/new_page_94.htm"]
[null,null,"ОКУД",null,"Общероссийский классификатор управленческой документации","http://www.gmcgks.ru/new_page_80.htm"]
[null,null,"ОКЕИ",null,"Общероссийский классификатор единиц измерения","http://www.gmcgks.ru/new_page_83.htm"]
[null,null,"ОКТМО",null,"Общероссийский классификатор территорий муниципальных образований","http://www.gks.ru/metod/classifiers.html"]

{"sheet":"Обновление","index":1,"n_rows":24,"n_cols":15,"rows_kept":24,"cut":false,"hidden":false,"merged":[[1,14,1,16],[2,2,2,15],[23,2,23,7],[23,8,23,15]]}
[]
[null,null,null,null,null,null,null,null,null,null,null,null,null,null,{"$f":"version","v":"Версия 2.1"}]
[null,null,"Инструкция по обновлению шаблона"]
[]
[]
[]
[]
[]
[]
[]
[]
[]
[]
[]
[]
[]
[]
[]
[]
[]
[]
[]
[]
[null,null,"Если компьютер имеет подключение к Интернет, можно автоматически проверять наличие доступных обновлений. Выберите способ оповещения о наличии обновлений для шаблона:"]

{"sheet":"Лог обновления","index":2,"n_rows":3,"n_cols":3,"rows_kept":3,"cut":false,"hidden":true,"merged":[]}
["Дата/Время","Сообщение","Статус"]
["2/19/2013  12:59:32 PM","Проверка доступных обновлений...","Информация"]
["2/19/2013  12:59:43 PM","Версия шаблона 2.1 актуальна, обновление не требуется","Информация"]

{"sheet":"Выбор субъекта РФ","index":3,"n_rows":2,"n_cols":8,"rows_kept":2,"cut":false,"hidden":true,"merged":[[1,1,2,6]]}
[null,27,15187457,null,null,null,0]
[null,"Красноярский край",null,null,null,null,null,0]

{"sheet":"Титульный","index":4,"n_rows":54,"n_cols":11,"rows_kept":54,"cut":false,"hidden":false,"merged":[[44,3,44,5],[45,3,45,5],[20,7,20,9],[20,3,20,5],[21,3,21,5],[25,8,25,9],[23,3,23,5],[33,3,33,5],[22,3,22,5],[25,3,25,5],[10,2,10,5],[19,3,19,5],[18,2,18,5],[19,8,19,9],[15,3,15,5],[17,8,17,9],[18,8,18,9],[13,3,13,5],[12,3,12,5],[35,2,35,5],[36,3,36,5],[37,3,37,5],[41,3,41,5],[39,2,39,5],[40,3,40,5],[31,3,31,5],[47,2,47,5],[41,7,45,9],[3,1,3,10],[2,9,2,10],[5,1,5,10],[8,3,8,5],[29,10,31,10],[11,3,11,5],[43,2,43,5],[48,3,48,5],[23,8,23,9],[21,8,21,9],[22,8,22,9],[53,3,53,5],[28,2,28,5],[49,3,49,5],[50,3,50,5],[51,3,51,5],[29,3,29,5]]}
[]
[null,null,null,null,null,null,null,null,null,null,{"$f":"code","v":"Код шаблона: FORMA1.BUHG.2011"}]
[null,null,null,null,null,null,null,null,null,{"$f":"version","v":"Версия 2.1"}]
[null,"Бухгалтерский баланс"]
[]
[null,"Приложение\nк Приказу Минфина РФ\nот 02.07.2010 № 66н\n(в ред. Приказа Минфина РФ\nот 05.10.2011 N 124н)"]
[]
[null,null,"Создать печатную форму"]
[null,null,"Регион РФ","Красноярский край"]
[]
[null,null,"Отчётный период"]
[null,null,"Год",2012]
[null,null,"Квартал (с нарастающим итогом)","год"]
[null,null,"Отчётная дата","31.12.2012"]
[]
[null,null,"Признак филиала","нет"]
[]
[null,null,null,null,null,null,null,"Форма №1 по ОКУД","0710001"]
[null,null,"Дата последнего обновления реестра организаций: 19.02.2013 13:00:51",null,null,null,null,"Дата (год,месяц,число)","31.12.2012"]
[null,null,"Организация:","ООО \"Тепловик 2\"",null,null,null,"Код* по ОКПО","78453553"]
[null,null,"Наименование филиала:     "]
[null,null,"ИНН:","2413006167",null,null,null,"Является ли организация субъектом малого предпринимательства","да"]
[null,null,"КПП:","241301001",null,null,null,{"$f":"IF(god=\"\",\"Указанный\", god)&\" год является для организации\"","v":"2012 год является для организации"},"третьим или последующим отчетным годом"]
[null,null,"Вид деятельности:","производство (некомбинированная выработка) + передача + сбыт",null,null,null,"Код* по ОКВЭД","40.30.14"]
[null,null,"Организационно-правовая форма/форма собственности:","65","/","49",null,"Код* по ОКОПФ/ОКФС ","65","49"]
[null,null,"Единица измерения","тыс.руб.",null,null,null,"Код* по ОКЕИ","384"]
[]
[]
[null,null,"Дата последнего обновления реестра МР/МО: 19.02.2013 13:00:59"]
[null,null,"Муниципальный район","Ермаковский муниципальный район"]
[]
[null,null,"Муниципальное образование","Ермаковское"]
[]
[null,null,"ОКТМО","04616410"]
[]
[null,null,"Адрес организации"]
[null,null,"Юридический адрес:","662820, Красноярский край, Ермаковский район, с. Ермаковское, ул. Ленина, д. 82, к. а"]
[null,null,"Почтовый адрес:","662820, Красноярский край, Ермаковский район, с. Ермаковское, пл. Победы, д. 15"]
[]
[null,null,"Руководитель"]
[null,null,"Фамилия, имя, отчество:","Почекутов Сергей Михайлович"]
[null,null,"(код) номер телефона:","(39138) 2-40-47",null,null,null,"* Расшифровки всех сокращений и ссылки приведены на листе \"Инструкция\""]
[]
[null,null,"Главный бухгалтер"]
[null,null,"Фамилия, имя, отчество:","Родькина Ирина Ивановна"]
[null,null,"(код) номер телефона:","(39138) 2-40-47"]
[]
[null,null,"Должностное лицо, ответственное за составление формы"]
[null,null,"Фамилия, имя, отчество:","Родькина Ирина Ивановна"]
[null,null,"Должность:","главный бухгалтер"]
[null,null,"(код) номер телефона:","(39138) 2-40-47"]
[null,null,"e-mail:","rodkinairusa-62@mail.ru"]
[]
[null,null,"Дата составления документа",{"$f":"TODAY()","v":"2013-02-19"}]

{"sheet":"Актив","index":5,"n_rows":32,"n_cols":18,"rows_kept":32,"cut":false,"hidden":false,"merged":[[12,5,12,6],[23,5,23,6],[7,3,7,17],[11,7,11,9],[11,13,11,15],[10,7,10,9],[10,13,10,15],[10,10,10,12],[11,10,11,12]]}
[]
["Амурская область"]
[]
[]
[]
[]
[null,null,null,null,null,null,null,null,null,null,null,null,null,null,null,null,null,"Форма 0710001 с. 1"]
[null,null,null,"АКТИВ"]
[]
[null,null,null,null,null,null,null,null,null,null,null,null,null,null,null,null,{"$f":"IF(unit=\"\",\"\",unit)","v":"тыс.руб."}]
[null,null,null,null,"№ п/п","Актив","Код показателя",{"$f":"\"На \" & IF(report_date=\"\",\" отчётную дату отчётного года\",report_date&\" г.\")","v":"На 31.12.2012 г."},null,null,{"$f":"\"На 31 декабря \" & IF(god=\"\",\" предыдущего года\",god-1&\" г.\")","v":"На 31 декабря 2011 г."},null,null,{"$f":"\"На 31 декабря \" & IF(god=\"\",\" года, предшествующего предыдущему\",god-2&\" г.\")","v":"На 31 декабря 2010 г."},null,null,"Пояснения"]
[null,null,null,null,1,"2","3","4",null,null,"5",null,null,"6",null,null,"7"]
[null,null,null,null,1,"I. ВНЕОБОРОТНЫЕ АКТИВЫ"]
[null,"1110",null,null,"1.1","Нематериальные активы","1110",null,0,null,null,0,null,null,0]
[null,"1120",null,null,"1.2","Результаты исследований и разработок","1120",null,0,null,null,0,null,null,0]
[null,1180,null,null,"1.3","Нематериальные поисковые активы","1130",null,0,null,null,0,null,null,0]
[null,1190,null,null,"1.4","Материальные поисковые активы","1140",null,0,null,null,0,null,null,0]
[null,"1130",null,null,"1.5","Основные средства ","1150",null,478,null,null,391,null,null,563]
[null,"1140",null,null,"1.6","Доходные вложения в материальные ценности","1160",null,0,null,null,0,null,null,0]
[null,"1150",null,null,"1.7","Финансовые вложения","1170",null,0,null,null,0,null,null,0]
[null,"1160",null,null,"1.8","Отложенные налоговые активы","1180",null,0,null,null,0,null,null,0]
[null,"1170",null,null,"1.9","Прочие внеоборотные активы","1190",null,0,null,null,0,null,null,0]
[null,"1100",null,null,"1.10","ИТОГО по разделу I","1100",null,478,null,null,391,null,null,563]
[null,null,null,null,"2","II. ОБОРОТНЫЕ АКТИВЫ"]
[null,null,null,null,"2.1","Запасы","1210",null,1864,null,null,1132,null,null,1120]
[null,null,null,null,"2.2","Налог на добавленную стоимость по приобретенным ценностям","1220",null,0,null,null,0,null,null,0]
[null,null,null,null,"2.3","Дебиторская задолженность","1230",null,3430,null,null,4092,null,null,5360]
[null,null,null,null,"2.4","Финансовые вложения (за исключением денежных эквивалентов)","1240",null,0,null,null,0,null,null,0]
[null,null,null,null,"2.5","Денежные средства и денежные эквиваленты","1250",null,1149,null,null,34,null,null,11]
[null,null,null,null,"2.6","Прочие оборотные активы","1260",null,7,null,null,0,null,null,0]
[null,null,null,null,"2.7","ИТОГО по разделу II","1200",null,6450,null,null,5258,null,null,6491]
[null,null,null,null,"3","БАЛАНС ","1600",null,6928,null,null,5649,null,null,7054]

{"sheet":"Пассив","index":6,"n_rows":34,"n_cols":18,"rows_kept":34,"cut":false,"hidden":false,"merged":[[7,3,7,17],[12,5,12,6],[20,5,20,6],[26,5,26,6],[10,7,10,9],[10,13,10,15],[11,7,11,9],[11,13,11,15],[10,10,10,12],[11,10,11,12]]}
[]
["Амурская область"]
[]
[]
[]
[]
[null,null,null,null,null,null,null,null,null,null,null,null,null,null,null,null,null,"Форма 0710001 с. 2"]
[null,null,null,"ПАССИВ"]
[]
[null,null,null,null,null,null,null,null,null,null,null,null,null,null,null,null,{"$f":"IF(unit=\"\",\"\",unit)","v":"тыс.руб."}]
[null,null,null,null,"№ п/п","Пассив","Код показателя",{"$f":"\"На \" & IF(report_date=\"\",\" отчётную дату отчётного года\",report_date&\" г.\")","v":"На 31.12.2012 г."},null,null,{"$f":"\"На 31 декабря \" & IF(god=\"\",\" предыдущего года\",god-1&\" г.\")","v":"На 31 декабря 2011 г."},null,null,{"$f":"\"На 31 декабря \" & IF(god=\"\",\" года, предшествующего предыдущему\",god-2&\" г.\")","v":"На 31 декабря 2010 г."},null,null,"Пояснения"]
[null,null,null,null,1,"2","3","4",null,null,"5",null,null,"6",null,null,"7"]
[null,null,null,null,1,"III. КАПИТАЛ И РЕЗЕРВЫ"]
[null,null,null,null,"1.1","Уставный капитал (складочный капитал, уставный фонд, вклады товарищей)","1310",null,10,null,null,10,null,null,10]
[null,null,null,null,"1.2","Собственные акции, выкупленные у акционеров","1320","(",0,")","(",0,")","(",0,")"]
[null,null,null,null,"1.3","Переоценка внеоборотных активов","1340",null,0,null,null,0,null,null,0]
[null,null,null,null,"1.4","Добавочный капитал (без переоценки)","1350",null,0,null,null,0,null,null,0]
[null,null,null,null,"1.5","Резервный капитал","1360",null,0,null,null,0,null,null,0]
[null,null,null,null,"1.6","Нераспределенная прибыль (непокрытый убыток)","1370",null,4758,null,null,5037,null,null,5805]
[null,null,null,null,"1.7","ИТОГО по разделу III","1300",null,4768,null,null,5047,null,null,5815]
[null,null,null,null,"2","IV. ДОЛГОСРОЧНЫЕ ОБЯЗАТЕЛЬСТВА"]
[null,null,null,null,"2.1","Заемные средства","1410",null,0,null,null,0,null,null,0]
[null,null,null,null,"2.2","Отложенные налоговые обязательства","1420",null,0,null,null,0,null,null,0]
[null,null,null,null,"2.3","Оценочные обязательства","1430",null,0,null,null,0,null,null,0]
[null,null,null,null,"2.3","Прочие обязательства","1450",null,0,null,null,0,null,null,0]
[null,null,null,null,"2.4","ИТОГО по разделу IV","1400",null,0,null,null,0,null,null,0]
[null,null,null,null,"3","V. КРАТКОСРОЧНЫЕ ОБЯЗАТЕЛЬСТВА"]
[null,null,null,null,"3.1","Заемные средства","1510",null,0,null,null,0,null,null,0]
[null,null,null,null,"3.2","Кредиторская задолженность","1520",null,2149,null,null,600,null,null,1239]
[null,null,null,null,"3.3","Доходы будущих периодов ","1530",null,0,null,null,0,null,null,0]
[null,null,null,null,"3.4","Оценочные обязательства","1540",null,0,null,null,0,null,null,0]
[null,null,null,null,"3.5","Прочие обязательства","1550",null,11,null,null,2,null,null,0]
[null,null,null,null,"3.6","ИТОГО по разделу V","1500",null,2160,null,null,602,null,null,1239]
[null,null,null,null,"4","БАЛАНС ","1700",null,6928,null,null,5649,null,null,7054]

{"sheet":"Расшифровка показателей","index":7,"n_rows":162,"n_cols":17,"rows_kept":162,"cut":false,"hidden":false,"merged":[[7,3,7,16],[10,7,10,9],[10,13,10,15],[11,7,11,9],[11,13,11,15],[10,10,10,12],[11,10,11,12]]}
[]
["Амурская область"]
[]
[]
[]
[]
[null,null,null,null,null,null,null,null,null,null,null,null,null,null,null,null,"Форма 0710001 с. 3"]
[null,null,null,"Расшифровка отдельных показателей бухгалтерского баланса"]
[]
[null,null,null,null,null,null,null,null,null,null,null,null,null,null,null,{"$f":"IF(unit=\"\",\"\",unit)","v":"тыс.руб."}]
[null,null,null,null,"№ п/п","Наименование","Код показателя",{"$f":"\"На \" & IF(report_date=\"\",\" отчётную дату отчётного года\",report_date&\" г.\")","v":"На 31.12.2012 г."},null,null,{"$f":"\"На 31 декабря \" & IF(god=\"\",\" предыдущего года\",god-1&\" г.\")","v":"На 31 декабря 2011 г."},null,null,{"$f":"\"На 31 декабря \" & IF(god=\"\",\" года, предшествующего предыдущему\",god-2&\" г.\")","v":"На 31 декабря 2010 г."}]
[null,null,null,null,1,"2","3","4",null,null,"5",null,null,"6"]
[null,null,null,null,"1","Нематериальные активы (стр.1110), в том числе:",null,{"$f":"IF(Актив!H14=\"(\",\"(\",\"\")","v":""},{"$f":"Актив!I14","v":0},{"$f":"IF(H13=\"(\",\")\",\"\")","v":""},{"$f":"IF(Актив!K14=\"(\",\"(\",\"\")","v":""},{"$f":"Актив!L14","v":0},{"$f":"IF(K13=\"(\",\")\",\"\")","v":""},{"$f":"IF(Актив!N14=\"(\",\"(\",\"\")","v":""},{"$f":"Актив!O14","v":0},{"$f":"IF(N13=\"(\",\")\",\"\")","v":""}]
[null,null,null,null,"1.1",null,"11101"]
[null,null,null,null,"1.2",null,"11102"]
[null,null,null,null,"1.3",null,"11103"]
[null,null,null,null,null,"Добавить строку"]
[null,null,null,null,"2","Результаты исследований и разработок (стр.1120), в том числе:",null,{"$f":"IF(Актив!H15=\"(\",\"(\",\"\")","v":""},{"$f":"Актив!I15","v":0},{"$f":"IF(H18=\"(\",\")\",\"\")","v":""},{"$f":"IF(Актив!K15=\"(\",\"(\",\"\")","v":""},{"$f":"Актив!L15","v":0},{"$f":"IF(K18=\"(\",\")\",\"\")","v":""},{"$f":"IF(Актив!N15=\"(\",\"(\",\"\")","v":""},{"$f":"Актив!O15","v":0},{"$f":"IF(N18=\"(\",\")\",\"\")","v":""}]
[null,null,null,null,"2.1",null,"11201"]
[null,null,null,null,"2.2",null,"11202"]
[null,null,null,null,null,"Добавить строку"]
[null,null,null,null,"3",{"$f":"\"Нематериальные поисковые активы (стр.\"&Актив!$G$16&\"), в том числе:\"","v":"Нематериальные поисковые активы (стр.1130), в том числе:"},null,{"$f":"IF(Актив!H$16=\"(\",\"(\",\"\")","v":""},{"$f":"Актив!I$16","v":0},{"$f":"IF(H22=\"(\",\")\",\"\")","v":""},{"$f":"IF(Актив!K$16=\"(\",\"(\",\"\")","v":""},{"$f":"Актив!L$16","v":0},{"$f":"IF(K22=\"(\",\")\",\"\")","v":""},{"$f":"IF(Актив!N$16=\"(\",\"(\",\"\")","v":""},{"$f":"Актив!O$16","v":0},{"$f":"IF(N22=\"(\",\")\",\"\")","v":""}]
[null,null,null,null,"3.1",null,{"$f":"Актив!$G$16&\"1\"","v":"11301"}]
[null,null,null,null,"3.2",null,{"$f":"Актив!$G$16&\"2\"","v":"11302"}]
[null,null,null,null,null,"Добавить строку"]
[null,null,null,null,"4",{"$f":"\"Материальные поисковые активы (стр.\"&Актив!$G$17&\"), в том числе:\"","v":"Материальные поисковые активы (стр.1140), в том числе:"},null,{"$f":"IF(Актив!H$17=\"(\",\"(\",\"\")","v":""},{"$f":"Актив!I$17","v":0},{"$f":"IF(H26=\"(\",\")\",\"\")","v":""},{"$f":"IF(Актив!K$17=\"(\",\"(\",\"\")","v":""},{"$f":"Актив!L$17","v":0},{"$f":"IF(K26=\"(\",\")\",\"\")","v":""},{"$f":"IF(Актив!N$17=\"(\",\"(\",\"\")","v":""},{"$f":"Актив!O$17","v":0},{"$f":"IF(N26=\"(\",\")\",\"\")","v":""}]
[null,null,null,null,"4.1",null,{"$f":"Актив!$G$17&\"1\"","v":"11401"}]
[null,null,null,null,"4.2",null,{"$f":"Актив!$G$17&\"2\"","v":"11402"}]
[null,null,null,null,null,"Добавить строку"]
[null,null,null,null,"5",{"$f":"\"Основные средства  (стр.\"&Актив!$G$18&\"), в том числе:\"","v":"Основные средства  (стр.1150), в том числе:"},null,{"$f":"IF(Актив!H18=\"(\",\"(\",\"\")","v":""},{"$f":"Актив!I18","v":478},{"$f":"IF(H30=\"(\",\")\",\"\")","v":""},{"$f":"IF(Актив!K18=\"(\",\"(\",\"\")","v":""},{"$f":"Актив!L18","v":391},{"$f":"IF(K30=\"(\",\")\",\"\")","v":""},{"$f":"IF(Актив!N18=\"(\",\"(\",\"\")","v":""},{"$f":"Актив!O18","v":563},{"$f":"IF(N30=\"(\",\")\",\"\")","v":""}]
[null,null,null,null,"5.1","машины и оборудование",{"$f":"Актив!$G$18&\"1\"","v":"11501"},null,478,null,null,391,null,null,563]
[null,null,null,null,"5.2","нет",{"$f":"Актив!$G$18&\"2\"","v":"11502"},null,0,null,null,0,null,null,0]
[null,null,null,null,"5.3","нет",{"$f":"Актив!$G$18&\"3\"","v":"11503"},null,0,null,null,0,null,null,0]
[null,null,null,null,null,"Добавить строку"]
[null,null,null,null,"6",{"$f":"\"Доходные вложения (стр.\"&Актив!$G$19&\"), в том числе:\"","v":"Доходные вложения (стр.1160), в том числе:"},null,{"$f":"IF(Актив!H19=\"(\",\"(\",\"\")","v":""},{"$f":"Актив!I19","v":0},{"$f":"IF(H35=\"(\",\")\",\"\")","v":""},{"$f":"IF(Актив!K19=\"(\",\"(\",\"\")","v":""},{"$f":"Актив!L19","v":0},{"$f":"IF(K35=\"(\",\")\",\"\")","v":""},{"$f":"IF(Актив!N19=\"(\",\"(\",\"\")","v":""},{"$f":"Актив!O19","v":0},{"$f":"IF(N35=\"(\",\")\",\"\")","v":""}]
[null,null,null,null,"6.1",null,{"$f":"Актив!$G$19&\"1\"","v":"11601"}]
[null,null,null,null,"6.2",null,{"$f":"Актив!$G$19&\"2\"","v":"11602"}]
[null,null,null,null,null,"Добавить строку"]
[null,null,null,null,"7",{"$f":"\"Финансовые вложения (стр.\"&Актив!$G$20&\"), в том числе:\"","v":"Финансовые вложения (стр.1170), в том числе:"},null,{"$f":"IF(Актив!H20=\"(\",\"(\",\"\")","v":""},{"$f":"Актив!I20","v":0},{"$f":"IF(H39=\"(\",\")\",\"\")","v":""},{"$f":"IF(Актив!K20=\"(\",\"(\",\"\")","v":""},{"$f":"Актив!L20","v":0},{"$f":"IF(K39=\"(\",\")\",\"\")","v":""},{"$f":"IF(Актив!N20=\"(\",\"(\",\"\")","v":""},{"$f":"Актив!O20","v":0},{"$f":"IF(N39=\"(\",\")\",\"\")","v":""}]
[null,null,null,null,"7.1",null,{"$f":"Актив!$G$20&\"1\"","v":"11701"}]
[null,null,null,null,"7.2",null,{"$f":"Актив!$G$20&\"2\"","v":"11702"}]
[null,null,null,null,"7.3",null,{"$f":"Актив!$G$20&\"3\"","v":"11703"}]
[null,null,null,null,"7.4",null,{"$f":"Актив!$G$20&\"4\"","v":"11704"}]
[null,null,null,null,null,"Добавить строку"]
[null,null,null,null,"8",{"$f":"\"Отложенные налоговые активы (стр.\"&Актив!$G$21&\"), в том числе:\"","v":"Отложенные налоговые активы (стр.1180), в том числе:"},null,{"$f":"IF(Актив!H21=\"(\",\"(\",\"\")","v":""},{"$f":"Актив!I21","v":0},{"$f":"IF(H45=\"(\",\")\",\"\")","v":""},{"$f":"IF(Актив!K21=\"(\",\"(\",\"\")","v":""},{"$f":"Актив!L21","v":0},{"$f":"IF(K45=\"(\",\")\",\"\")","v":""},{"$f":"IF(Актив!N21=\"(\",\"(\",\"\")","v":""},{"$f":"Актив!O21","v":0},{"$f":"IF(N45=\"(\",\")\",\"\")","v":""}]
[null,null,null,null,"8.1",null,{"$f":"Актив!$G$21&\"1\"","v":"11801"}]
[null,null,null,null,null,"Добавить строку"]
[null,null,null,null,"9",{"$f":"\"Вписываемые показатели (стр.\"&IF(Актив!$G$21=\"1180\",\"1185\",\"1165\")&\"), в том числе:\"","v":"Вписываемые показатели (стр.1185), в том числе:"},null,{"$f":"IF((SUMIF(OFFSET(SUM_1165_1,0,-1),\"\",SUM_1165_1)-SUMIF(OFFSET(SUM_1165_1,0,-1),\"(\",SUM_1165_1))<0,\"(\",\"\")","v":""},{"$f":"ABS(SUMIF(OFFSET(SUM_1165_1,0,-1),\"\",SUM_1165_1)-SUMIF(OFFSET(SUM_1165_1,0,-1),\"(\",SUM_1165_1))","v":0},{"$f":"IF(H48=\"(\",\")\",\"\")","v":""},{"$f":"IF((SUMIF(OFFSET(SUM_1165_2,0,-1),\"\",SUM_1165_2)-SUMIF(OFFSET(SUM_1165_2,0,-1),\"(\",SUM_1165_2))<0,\"(\",\"\")","v":""},{"$f":"ABS(SUMIF(OFFSET(SUM_1165_2,0,-1),\"\",SUM_1165_2)-SUMIF(OFFSET(SUM_1165_2,0,-1),\"(\",SUM_1165_2))","v":0},{"$f":"IF(K48=\"(\",\")\",\"\")","v":""},{"$f":"IF((SUMIF(OFFSET(SUM_1165_3,0,-1),\"\",SUM_1165_3)-SUMIF(OFFSET(SUM_1165_3,0,-1),\"(\",SUM_1165_3))<0,\"(\",\"\")","v":""},{"$f":"ABS(SUMIF(OFFSET(SUM_1165_3,0,-1),\"\",SUM_1165_3)-SUMIF(OFFSET(SUM_1165_3,0,-1),\"(\",SUM_1165_3))","v":0},{"$f":"IF(N48=\"(\",\")\",\"\")","v":""}]
[null,null,null,null,"9.1",null,{"$f":"IF(Актив!$G$21=\"1180\",\"1185\",\"1165\")&\"1\"","v":"11851"}]
[null,null,null,null,"9.2",null,{"$f":"IF(Актив!$G$21=\"1180\",\"1185\",\"1165\")&\"2\"","v":"11852"}]
[null,null,null,null,null,"Добавить строку"]
[null,null,null,null,"10",{"$f":"\"Прочие внеоборотные активы (стр.\"&Актив!$G$22&\"), в том числе:\"","v":"Прочие внеоборотные активы (стр.1190), в том числе:"},null,{"$f":"IF(Актив!H22=\"(\",\"(\",\"\")","v":""},{"$f":"Актив!I22","v":0},{"$f":"IF(H52=\"(\",\")\",\"\")","v":""},{"$f":"IF(Актив!K22=\"(\",\"(\",\"\")","v":""},{"$f":"Актив!L22","v":0},{"$f":"IF(K52=\"(\",\")\",\"\")","v":""},{"$f":"IF(Актив!N22=\"(\",\"(\",\"\")","v":""},{"$f":"Актив!O22","v":0},{"$f":"IF(N52=\"(\",\")\",\"\")","v":""}]
[null,null,null,null,"10.1",null,{"$f":"Актив!$G$22&\"1\"","v":"11901"}]
[null,null,null,null,"10.2",null,{"$f":"Актив!$G$22&\"2\"","v":"11902"}]
[null,null,null,null,"10.3",null,{"$f":"Актив!$G$22&\"3\"","v":"11903"}]
[null,null,null,null,null,"Добавить строку"]
[null,null,null,null,"11","Запасы (стр.1210), в том числе:",null,{"$f":"IF(Актив!H25=\"(\",\"(\",\"\")","v":""},{"$f":"Актив!I25","v":1864},{"$f":"IF(H57=\"(\",\")\",\"\")","v":""},{"$f":"IF(Актив!K25=\"(\",\"(\",\"\")","v":""},{"$f":"Актив!L25","v":1132},{"$f":"IF(K57=\"(\",\")\",\"\")","v":""},{"$f":"IF(Актив!N25=\"(\",\"(\",\"\")","v":""},{"$f":"Актив!O25","v":1120},{"$f":"IF(N57=\"(\",\")\",\"\")","v":""}]
[null,null,null,null,"11.1","материалы","12101",null,5,null,null,30,null,null,100]
[null,null,null,null,"11.2","уголь","12102",null,1859,null,null,1102,null,null,1006]
[null,null,null,null,"11.3","МБП","12103",null,0,null,null,0,null,null,14]
[null,null,null,null,"11.4","нет","12104",null,0,null,null,0,null,null,0]
[null,null,null,null,"11.5","нет","12105",null,0,null,null,0,null,null,0]
[null,null,null,null,null,"Добавить строку"]
[null,null,null,null,"12","Налог на добавленную стоимость по приобретенным ценностям (стр.1220), в том числе:",null,{"$f":"IF(Актив!H26=\"(\",\"(\",\"\")","v":""},{"$f":"Актив!I26","v":0},{"$f":"IF(H64=\"(\",\")\",\"\")","v":""},{"$f":"IF(Актив!K26=\"(\",\"(\",\"\")","v":""},{"$f":"Актив!L26","v":0},{"$f":"IF(K64=\"(\",\")\",\"\")","v":""},{"$f":"IF(Актив!N26=\"(\",\"(\",\"\")","v":""},{"$f":"Актив!O26","v":0},{"$f":"IF(N64=\"(\",\")\",\"\")","v":""}]
[null,null,null,null,"12.1",null,"12201"]
[null,null,null,null,null,"Добавить строку"]
[null,null,null,null,"13","Дебиторская задолженность (стр.1230), в том числе:",null,{"$f":"IF(Актив!H27=\"(\",\"(\",\"\")","v":""},{"$f":"Актив!I27","v":3430},{"$f":"IF(H67=\"(\",\")\",\"\")","v":""},{"$f":"IF(Актив!K27=\"(\",\"(\",\"\")","v":""},{"$f":"Актив!L27","v":4092},{"$f":"IF(K67=\"(\",\")\",\"\")","v":""},{"$f":"IF(Актив!N27=\"(\",\"(\",\"\")","v":""},{"$f":"Актив!O27","v":5360},{"$f":"IF(N67=\"(\",\")\",\"\")","v":""}]
[null,null,null,null,"13.1","расчеты с поставщиками и подрядчиками","12301",null,431,null,null,164,null,null,31]
[null,null,null,null,"13.2","расчеты с покупателями и заказчиками","12302",null,2997,null,null,3674,null,null,5182]
[null,null,null,null,"13.3","расчеты по налогам и сборам","12303",null,2,null,null,77,null,null,0]
[null,null,null,null,"13.4","расчеты с подотчетными лицами","12304",null,0,null,null,177,null,null,147]
[null,null,null,null,"13.5","нет","12305",null,0,null,null,0,null,null,0]
[null,null,null,null,null,"Добавить строку"]
[null,null,null,null,"14","Финансовые вложения (за исключением денежных эквивалентов) (стр.1240), в том числе:",null,{"$f":"IF(Актив!H28=\"(\",\"(\",\"\")","v":""},{"$f":"Актив!I28","v":0},{"$f":"IF(H74=\"(\",\")\",\"\")","v":""},{"$f":"IF(Актив!K28=\"(\",\"(\",\"\")","v":""},{"$f":"Актив!L28","v":0},{"$f":"IF(K74=\"(\",\")\",\"\")","v":""},{"$f":"IF(Актив!N28=\"(\",\"(\",\"\")","v":""},{"$f":"Актив!O28","v":0},{"$f":"IF(N74=\"(\",\")\",\"\")","v":""}]
[null,null,null,null,"14.1",null,"12401"]
[null,null,null,null,"14.2",null,"12402"]
[null,null,null,null,"14.3",null,"12403"]
[null,null,null,null,null,"Добавить строку"]
[null,null,null,null,"15","Денежные средства и денежные эквиваленты (стр.1250), в том числе:",null,{"$f":"IF(Актив!H29=\"(\",\"(\",\"\")","v":""},{"$f":"Актив!I29","v":1149},{"$f":"IF(H79=\"(\",\")\",\"\")","v":""},{"$f":"IF(Актив!K29=\"(\",\"(\",\"\")","v":""},{"$f":"Актив!L29","v":34},{"$f":"IF(K79=\"(\",\")\",\"\")","v":""},{"$f":"IF(Актив!N29=\"(\",\"(\",\"\")","v":""},{"$f":"Актив!O29","v":11},{"$f":"IF(N79=\"(\",\")\",\"\")","v":""}]
[null,null,null,null,"15.1","касса","12501",null,519,null,null,2,null,null,9]
[null,null,null,null,"15.2","расчетные счета в банке","12502",null,630,null,null,32,null,null,2]
[null,null,null,null,null,"Добавить строку"]
[null,null,null,null,"16","Вписываемые показатели (стр.1255), в том числе:",null,{"$f":"IF((SUMIF(OFFSET(SUM_1255_1,0,-1),\"\",SUM_1255_1)-SUMIF(OFFSET(SUM_1255_1,0,-1),\"(\",SUM_1255_1))<0,\"(\",\"\")","v":""},{"$f":"ABS(SUMIF(OFFSET(SUM_1255_1,0,-1),\"\",SUM_1255_1)-SUMIF(OFFSET(SUM_1255_1,0,-1),\"(\",SUM_1255_1))","v":0},{"$f":"IF(H83=\"(\",\")\",\"\")","v":""},{"$f":"IF((SUMIF(OFFSET(SUM_1255_2,0,-1),\"\",SUM_1255_2)-SUMIF(OFFSET(SUM_1255_2,0,-1),\"(\",SUM_1255_2))<0,\"(\",\"\")","v":""},{"$f":"ABS(SUMIF(OFFSET(SUM_1255_2,0,-1),\"\",SUM_1255_2)-SUMIF(OFFSET(SUM_1255_2,0,-1),\"(\",SUM_1255_2))","v":0},{"$f":"IF(K83=\"(\",\")\",\"\")","v":""},{"$f":"IF((SUMIF(OFFSET(SUM_1255_3,0,-1),\"\",SUM_1255_3)-SUMIF(OFFSET(SUM_1255_3,0,-1),\"(\",SUM_1255_3))<0,\"(\",\"\")","v":""},{"$f":"ABS(SUMIF(OFFSET(SUM_1255_3,0,-1),\"\",SUM_1255_3)-SUMIF(OFFSET(SUM_1255_3,0,-1),\"(\",SUM_1255_3))","v":0},{"$f":"IF(N83=\"(\",\")\",\"\")","v":""}]
[null,null,null,null,"16.1","нет",12551,null,0,null,null,0,null,null,0]
[null,null,null,null,"16.2","нет",12552,null,0,null,null,0,null,null,0]
[null,null,null,null,null,"Добавить строку"]
[null,null,null,null,"17","Прочие оборотные активы (стр.1260), в том числе:",null,{"$f":"IF(Актив!H30=\"(\",\"(\",\"\")","v":""},{"$f":"Актив!I30","v":7},{"$f":"IF(H87=\"(\",\")\",\"\")","v":""},{"$f":"IF(Актив!K30=\"(\",\"(\",\"\")","v":""},{"$f":"Актив!L30","v":0},{"$f":"IF(K87=\"(\",\")\",\"\")","v":""},{"$f":"IF(Актив!N30=\"(\",\"(\",\"\")","v":""},{"$f":"Актив!O30","v":0},{"$f":"IF(N87=\"(\",\")\",\"\")","v":""}]
[null,null,null,null,"17.1","переплата в ФСС","12601",null,7]
[null,null,null,null,"17.2","нет","12602",null,0]
[null,null,null,null,"17.3","нет","12603",null,0]
[null,null,null,null,null,"Добавить строку"]
[null,null,null,null,"18","Уставный капитал (складочный капитал, уставный фонд, вклады товарищей) (стр.1310), в том числе:",null,{"$f":"IF(Пассив!H14=\"(\",\"(\",\"\")","v":""},{"$f":"Пассив!I14","v":10},{"$f":"IF(H92=\"(\",\")\",\"\")","v":""},{"$f":"IF(Пассив!K14=\"(\",\"(\",\"\")","v":""},{"$f":"Пассив!L14","v":10},{"$f":"IF(K92=\"(\",\")\",\"\")","v":""},{"$f":"IF(Пассив!N14=\"(\",\"(\",\"\")","v":""},{"$f":"Пассив!O14","v":10},{"$f":"IF(N92=\"(\",\")\",\"\")","v":""}]
[null,null,null,null,"18.1","Уставный капитал (складочный капитал, уставный фонд, вклады товарищей) (стр.1310), в том числе:","13101",null,10,null,null,10,null,null,10]
[null,null,null,null,null,"Добавить строку"]
[null,null,null,null,"19","Собственные акции, выкупленные у акционеров (стр.1320), в том числе:",null,{"$f":"IF(Пассив!H15=\"(\",\"(\",\"\")","v":"("},{"$f":"Пассив!I15","v":0},{"$f":"IF(H95=\"(\",\")\",\"\")","v":")"},{"$f":"IF(Пассив!K15=\"(\",\"(\",\"\")","v":"("},{"$f":"Пассив!L15","v":0},{"$f":"IF(K95=\"(\",\")\",\"\")","v":")"},{"$f":"IF(Пассив!N15=\"(\",\"(\",\"\")","v":"("},{"$f":"Пассив!O15","v":0},{"$f":"IF(N95=\"(\",\")\",\"\")","v":")"}]
[null,null,null,null,"19.1",null,"13201","(",null,")","(",null,")","(",null,")"]
[null,null,null,null,null,"Добавить строку"]
[null,null,null,null,"20","Целевой капитал (стр.1320), в том числе:",null,{"$f":"IF((SUMIF(OFFSET(SUM_1320_1,0,-1),\"\",SUM_1320_1)-SUMIF(OFFSET(SUM_1320_1,0,-1),\"(\",SUM_1320_1))<0,\"(\",\"\")","v":""},{"$f":"ABS(SUMIF(OFFSET(SUM_1320_1,0,-1),\"\",SUM_1320_1)-SUMIF(OFFSET(SUM_1320_1,0,-1),\"(\",SUM_1320_1))","v":0},{"$f":"IF(H98=\"(\",\")\",\"\")","v":""},{"$f":"IF((SUMIF(OFFSET(SUM_1320_2,0,-1),\"\",SUM_1320_2)-SUMIF(OFFSET(SUM_1320_2,0,-1),\"(\",SUM_1320_2))<0,\"(\",\"\")","v":""},{"$f":"ABS(SUMIF(OFFSET(SUM_1320_2,0,-1),\"\",SUM_1320_2)-SUMIF(OFFSET(SUM_1320_2,0,-1),\"(\",SUM_1320_2))","v":0},{"$f":"IF(K98=\"(\",\")\",\"\")","v":""},{"$f":"IF((SUMIF(OFFSET(SUM_1320_3,0,-1),\"\",SUM_1320_3)-SUMIF(OFFSET(SUM_1320_3,0,-1),\"(\",SUM_1320_3))<0,\"(\",\"\")","v":""},{"$f":"ABS(SUMIF(OFFSET(SUM_1320_3,0,-1),\"\",SUM_1320_3)-SUMIF(OFFSET(SUM_1320_3,0,-1),\"(\",SUM_1320_3))","v":0},{"$f":"IF(N98=\"(\",\")\",\"\")","v":""}]
[null,null,null,null,"20.1",null,"13201"]
[null,null,null,null,null,"Добавить строку"]
[null,null,null,null,"21","Переоценка внеоборотных активов (стр.1340), в том числе:",null,{"$f":"IF(Пассив!H16=\"(\",\"(\",\"\")","v":""},{"$f":"Пассив!I16","v":0},{"$f":"IF(H101=\"(\",\")\",\"\")","v":""},{"$f":"IF(Пассив!K16=\"(\",\"(\",\"\")","v":""},{"$f":"Пассив!L16","v":0},{"$f":"IF(K101=\"(\",\")\",\"\")","v":""},{"$f":"IF(Пассив!N16=\"(\",\"(\",\"\")","v":""},{"$f":"Пассив!O16","v":0},{"$f":"IF(N101=\"(\",\")\",\"\")","v":""}]
[null,null,null,null,"21.1",null,"13401"]
[null,null,null,null,null,"Добавить строку"]
[null,null,null,null,"22","Добавочный капитал (без переоценки)/Целевые средства (стр.1350), в том числе:",null,{"$f":"IF(Пассив!H17=\"(\",\"(\",\"\")","v":""},{"$f":"Пассив!I17","v":0},{"$f":"IF(H104=\"(\",\")\",\"\")","v":""},{"$f":"IF(Пассив!K17=\"(\",\"(\",\"\")","v":""},{"$f":"Пассив!L17","v":0},{"$f":"IF(K104=\"(\",\")\",\"\")","v":""},{"$f":"IF(Пассив!N17=\"(\",\"(\",\"\")","v":""},{"$f":"Пассив!O17","v":0},{"$f":"IF(N104=\"(\",\")\",\"\")","v":""}]
[null,null,null,null,"22.1",null,"13501"]
[null,null,null,null,"22.2",null,"13502"]
[null,null,null,null,null,"Добавить строку"]
[null,null,null,null,"23","Резервный капитал/Фонд недвижимого и особо ценного движимого имущества (стр.1360), в том числе:",null,{"$f":"IF(Пассив!H18=\"(\",\"(\",\"\")","v":""},{"$f":"Пассив!I18","v":0},{"$f":"IF(H108=\"(\",\")\",\"\")","v":""},{"$f":"IF(Пассив!K18=\"(\",\"(\",\"\")","v":""},{"$f":"Пассив!L18","v":0},{"$f":"IF(K108=\"(\",\")\",\"\")","v":""},{"$f":"IF(Пассив!N18=\"(\",\"(\",\"\")","v":""},{"$f":"Пассив!O18","v":0},{"$f":"IF(N108=\"(\",\")\",\"\")","v":""}]
[null,null,null,null,"23.1",null,"13601"]
[null,null,null,null,"23.2",null,"13602"]
[null,null,null,null,null,"Добавить строку"]
[null,null,null,null,"24","Нераспределенная прибыль (непокрытый убыток)/Резервные и иные целевые фонды (стр.1370), в том числе:",null,{"$f":"IF(Пассив!H19=\"(\",\"(\",\"\")","v":""},{"$f":"Пассив!I19","v":4758},{"$f":"IF(H112=\"(\",\")\",\"\")","v":""},{"$f":"IF(Пассив!K19=\"(\",\"(\",\"\")","v":""},{"$f":"Пассив!L19","v":5037},{"$f":"IF(K112=\"(\",\")\",\"\")","v":""},{"$f":"IF(Пассив!N19=\"(\",\"(\",\"\")","v":""},{"$f":"Пассив!O19","v":5805},{"$f":"IF(N112=\"(\",\")\",\"\")","v":""}]
[null,null,null,null,"24.1","прибыль","13701",null,4758,null,null,5037,null,null,5805]
[null,null,null,null,"24.2","нет","13702",null,0,null,null,0,null,null,0]
[null,null,null,null,null,"Добавить строку"]
[null,null,null,null,"25","Вписываемые показатели (стр.1375), в том числе:",null,{"$f":"IF((SUMIF(OFFSET(SUM_1375_1,0,-1),\"\",SUM_1375_1)-SUMIF(OFFSET(SUM_1375_1,0,-1),\"(\",SUM_1375_1))<0,\"(\",\"\")","v":""},{"$f":"ABS(SUMIF(OFFSET(SUM_1375_1,0,-1),\"\",SUM_1375_1)-SUMIF(OFFSET(SUM_1375_1,0,-1),\"(\",SUM_1375_1))","v":0},{"$f":"IF(H116=\"(\",\")\",\"\")","v":""},{"$f":"IF((SUMIF(OFFSET(SUM_1375_2,0,-1),\"\",SUM_1375_2)-SUMIF(OFFSET(SUM_1375_2,0,-1),\"(\",SUM_1375_2))<0,\"(\",\"\")","v":""},{"$f":"ABS(SUMIF(OFFSET(SUM_1375_2,0,-1),\"\",SUM_1375_2)-SUMIF(OFFSET(SUM_1375_2,0,-1),\"(\",SUM_1375_2))","v":0},{"$f":"IF(K116=\"(\",\")\",\"\")","v":""},{"$f":"IF((SUMIF(OFFSET(SUM_1375_3,0,-1),\"\",SUM_1375_3)-SUMIF(OFFSET(SUM_1375_3,0,-1),\"(\",SUM_1375_3))<0,\"(\",\"\")","v":""},{"$f":"ABS(SUMIF(OFFSET(SUM_1375_3,0,-1),\"\",SUM_1375_3)-SUMIF(OFFSET(SUM_1375_3,0,-1),\"(\",SUM_1375_3))","v":0},{"$f":"IF(N116=\"(\",\")\",\"\")","v":""}]
[null,null,null,null,"25.1","нет",13751,null,0,null,null,0,null,null,0]
[null,null,null,null,"25.2","нет",13752,null,0,null,null,0,null,null,0]
[null,null,null,null,null,"Добавить строку"]
[null,null,null,null,"26","Заемные средства (стр.1410), в том числе:",null,{"$f":"IF(Пассив!H22=\"(\",\"(\",\"\")","v":""},{"$f":"Пассив!I22","v":0},{"$f":"IF(H120=\"(\",\")\",\"\")","v":""},{"$f":"IF(Пассив!K22=\"(\",\"(\",\"\")","v":""},{"$f":"Пассив!L22","v":0},{"$f":"IF(K120=\"(\",\")\",\"\")","v":""},{"$f":"IF(Пассив!N22=\"(\",\"(\",\"\")","v":""},{"$f":"Пассив!O22","v":0},{"$f":"IF(N120=\"(\",\")\",\"\")","v":""}]
[null,null,null,null,"26.1",null,"14101"]
[null,null,null,null,"26.2",null,"14102"]
[null,null,null,null,null,"Добавить строку"]
[null,null,null,null,"27","Отложенные налоговые обязательства (стр.1420), в том числе:",null,{"$f":"IF(Пассив!H23=\"(\",\"(\",\"\")","v":""},{"$f":"Пассив!I23","v":0},{"$f":"IF(H124=\"(\",\")\",\"\")","v":""},{"$f":"IF(Пассив!K23=\"(\",\"(\",\"\")","v":""},{"$f":"Пассив!L23","v":0},{"$f":"IF(K124=\"(\",\")\",\"\")","v":""},{"$f":"IF(Пассив!N23=\"(\",\"(\",\"\")","v":""},{"$f":"Пассив!O23","v":0},{"$f":"IF(N124=\"(\",\")\",\"\")","v":""}]
[null,null,null,null,"27.1",null,"14201"]
[null,null,null,null,null,"Добавить строку"]
[null,null,null,null,"28","Оценочные обязательства (стр.1430), в том числе:",null,{"$f":"IF(Пассив!H24=\"(\",\"(\",\"\")","v":""},{"$f":"Пассив!I24","v":0},{"$f":"IF(H127=\"(\",\")\",\"\")","v":""},{"$f":"IF(Пассив!K24=\"(\",\"(\",\"\")","v":""},{"$f":"Пассив!L24","v":0},{"$f":"IF(K127=\"(\",\")\",\"\")","v":""},{"$f":"IF(Пассив!N24=\"(\",\"(\",\"\")","v":""},{"$f":"Пассив!O24","v":0},{"$f":"IF(N127=\"(\",\")\",\"\")","v":""}]
[null,null,null,null,"28.1",null,"14301"]
[null,null,null,null,"28.2",null,"14302"]
[null,null,null,null,null,"Добавить строку"]
[null,null,null,null,"29","Вписываемые показатели (стр.1435), в том числе:",null,{"$f":"IF((SUMIF(OFFSET(SUM_1435_1,0,-1),\"\",SUM_1435_1)-SUMIF(OFFSET(SUM_1435_1,0,-1),\"(\",SUM_1435_1))<0,\"(\",\"\")","v":""},{"$f":"ABS(SUMIF(OFFSET(SUM_1435_1,0,-1),\"\",SUM_1435_1)-SUMIF(OFFSET(SUM_1435_1,0,-1),\"(\",SUM_1435_1))","v":0},{"$f":"IF(H131=\"(\",\")\",\"\")","v":""},{"$f":"IF((SUMIF(OFFSET(SUM_1435_2,0,-1),\"\",SUM_1435_2)-SUMIF(OFFSET(SUM_1435_2,0,-1),\"(\",SUM_1435_2))<0,\"(\",\"\")","v":""},{"$f":"ABS(SUMIF(OFFSET(SUM_1435_2,0,-1),\"\",SUM_1435_2)-SUMIF(OFFSET(SUM_1435_2,0,-1),\"(\",SUM_1435_2))","v":0},{"$f":"IF(K131=\"(\",\")\",\"\")","v":""},{"$f":"IF((SUMIF(OFFSET(SUM_1435_3,0,-1),\"\",SUM_1435_3)-SUMIF(OFFSET(SUM_1435_3,0,-1),\"(\",SUM_1435_3))<0,\"(\",\"\")","v":""},{"$f":"ABS(SUMIF(OFFSET(SUM_1435_3,0,-1),\"\",SUM_1435_3)-SUMIF(OFFSET(SUM_1435_3,0,-1),\"(\",SUM_1435_3))","v":0},{"$f":"IF(N131=\"(\",\")\",\"\")","v":""}]
[null,null,null,null,"29.1",null,14351]
[null,null,null,null,"29.2",null,14352]
[null,null,null,null,null,"Добавить строку"]
[null,null,null,null,"30","Прочие долгосрочные обязательства (стр.1450), в том числе:",null,{"$f":"IF(Пассив!H25=\"(\",\"(\",\"\")","v":""},{"$f":"Пассив!I25","v":0},{"$f":"IF(H135=\"(\",\")\",\"\")","v":""},{"$f":"IF(Пассив!K25=\"(\",\"(\",\"\")","v":""},{"$f":"Пассив!L25","v":0},{"$f":"IF(K135=\"(\",\")\",\"\")","v":""},{"$f":"IF(Пассив!N25=\"(\",\"(\",\"\")","v":""},{"$f":"Пассив!O25","v":0},{"$f":"IF(N135=\"(\",\")\",\"\")","v":""}]
[null,null,null,null,"30.1",null,"14501"]
[null,null,null,null,null,"Добавить строку"]
[null,null,null,null,"31","Заемные средства (стр.1510), в том числе:",null,{"$f":"IF(Пассив!H28=\"(\",\"(\",\"\")","v":""},{"$f":"Пассив!I28","v":0},{"$f":"IF(H138=\"(\",\")\",\"\")","v":""},{"$f":"IF(Пассив!K28=\"(\",\"(\",\"\")","v":""},{"$f":"Пассив!L28","v":0},{"$f":"IF(K138=\"(\",\")\",\"\")","v":""},{"$f":"IF(Пассив!N28=\"(\",\"(\",\"\")","v":""},{"$f":"Пассив!O28","v":0},{"$f":"IF(N138=\"(\",\")\",\"\")","v":""}]
[null,null,null,null,"31.1",null,"15101"]
[null,null,null,null,null,"Добавить строку"]
[null,null,null,null,"32","Кредиторская задолженность (стр.1520), в том числе:",null,{"$f":"IF(Пассив!H29=\"(\",\"(\",\"\")","v":""},{"$f":"Пассив!I29","v":2149},{"$f":"IF(H141=\"(\",\")\",\"\")","v":""},{"$f":"IF(Пассив!K29=\"(\",\"(\",\"\")","v":""},{"$f":"Пассив!L29","v":600},{"$f":"IF(K141=\"(\",\")\",\"\")","v":""},{"$f":"IF(Пассив!N29=\"(\",\"(\",\"\")","v":""},{"$f":"Пассив!O29","v":1239},{"$f":"IF(N141=\"(\",\")\",\"\")","v":""}]
[null,null,null,null,"32.1","расчеты с поставщиками и подрядчиками","15201",null,1503,null,null,264,null,null,1007]
[null,null,null,null,"32.2","расчеты с покупателями и заказчиками","15202",null,300,null,null,102,null,null,32]
[null,null,null,null,"32.3","расчеты по налогам и сборам","15203",null,26,null,null,46,null,null,33]
[null,null,null,null,"32.4","расчеты по социальному страхованию","15204",null,209,null,null,94,null,null,55]
[null,null,null,null,"32.5","расчеты с персоналом","15205",null,106,null,null,90,null,null,112]
[null,null,null,null,"32.6","расчеты с подотчетными лицами","15206",null,5,null,null,4,null,null,0]
[null,null,null,null,"32.7","нет","15207",null,0,null,null,0,null,null,0]
[null,null,null,null,null,"Добавить строку"]
[null,null,null,null,"33","Доходы будущих периодов (стр.1530), в том числе:",null,{"$f":"IF(Пассив!H30=\"(\",\"(\",\"\")","v":""},{"$f":"Пассив!I30","v":0},{"$f":"IF(H150=\"(\",\")\",\"\")","v":""},{"$f":"IF(Пассив!K30=\"(\",\"(\",\"\")","v":""},{"$f":"Пассив!L30","v":0},{"$f":"IF(K150=\"(\",\")\",\"\")","v":""},{"$f":"IF(Пассив!N30=\"(\",\"(\",\"\")","v":""},{"$f":"Пассив!O30","v":0},{"$f":"IF(N150=\"(\",\")\",\"\")","v":""}]
[null,null,null,null,"33.1",null,"15301"]
[null,null,null,null,null,"Добавить строку"]
[null,null,null,null,"34","Оценочные обязательства  (стр.1540), в том числе:",null,{"$f":"IF(Пассив!H31=\"(\",\"(\",\"\")","v":""},{"$f":"Пассив!I31","v":0},{"$f":"IF(H153=\"(\",\")\",\"\")","v":""},{"$f":"IF(Пассив!K31=\"(\",\"(\",\"\")","v":""},{"$f":"Пассив!L31","v":0},{"$f":"IF(K153=\"(\",\")\",\"\")","v":""},{"$f":"IF(Пассив!N31=\"(\",\"(\",\"\")","v":""},{"$f":"Пассив!O31","v":0},{"$f":"IF(N153=\"(\",\")\",\"\")","v":""}]
[null,null,null,null,"34.1",null,"15401"]
[null,null,null,null,null,"Добавить строку"]
[null,null,null,null,"35","Вписываемые показатели (стр.1545), в том числе:",null,{"$f":"IF((SUMIF(OFFSET(SUM_1545_1,0,-1),\"\",SUM_1545_1)-SUMIF(OFFSET(SUM_1545_1,0,-1),\"(\",SUM_1545_1))<0,\"(\",\"\")","v":""},{"$f":"ABS(SUMIF(OFFSET(SUM_1545_1,0,-1),\"\",SUM_1545_1)-SUMIF(OFFSET(SUM_1545_1,0,-1),\"(\",SUM_1545_1))","v":0},{"$f":"IF(H156=\"(\",\")\",\"\")","v":""},{"$f":"IF((SUMIF(OFFSET(SUM_1545_2,0,-1),\"\",SUM_1545_2)-SUMIF(OFFSET(SUM_1545_2,0,-1),\"(\",SUM_1545_2))<0,\"(\",\"\")","v":""},{"$f":"ABS(SUMIF(OFFSET(SUM_1545_2,0,-1),\"\",SUM_1545_2)-SUMIF(OFFSET(SUM_1545_2,0,-1),\"(\",SUM_1545_2))","v":0},{"$f":"IF(K156=\"(\",\")\",\"\")","v":""},{"$f":"IF((SUMIF(OFFSET(SUM_1545_3,0,-1),\"\",SUM_1545_3)-SUMIF(OFFSET(SUM_1545_3,0,-1),\"(\",SUM_1545_3))<0,\"(\",\"\")","v":""},{"$f":"ABS(SUMIF(OFFSET(SUM_1545_3,0,-1),\"\",SUM_1545_3)-SUMIF(OFFSET(SUM_1545_3,0,-1),\"(\",SUM_1545_3))","v":0},{"$f":"IF(N156=\"(\",\")\",\"\")","v":""}]
[null,null,null,null,"35.1",null,15451]
[null,null,null,null,"35.2",null,15452]
[null,null,null,null,null,"Добавить строку"]
[null,null,null,null,"36","Прочие краткосрочные обязательства (стр.1550), в том числе:",null,{"$f":"IF(Пассив!H32=\"(\",\"(\",\"\")","v":""},{"$f":"Пассив!I32","v":11},{"$f":"IF(H160=\"(\",\")\",\"\")","v":""},{"$f":"IF(Пассив!K32=\"(\",\"(\",\"\")","v":""},{"$f":"Пассив!L32","v":2},{"$f":"IF(K160=\"(\",\")\",\"\")","v":""},{"$f":"IF(Пассив!N32=\"(\",\"(\",\"\")","v":""},{"$f":"Пассив!O32","v":0},{"$f":"IF(N160=\"(\",\")\",\"\")","v":""}]
[null,null,null,null,"36.1","расчеты по алиментам","15501",null,11,null,null,2]
[null,null,null,null,null,"Добавить строку"]

{"sheet":"Комментарии","index":8,"n_rows":8,"n_cols":4,"rows_kept":8,"cut":false,"hidden":false,"merged":[[7,3,7,5]]}
[]
["Амурская область"]
[]
[]
[]
[]
[]
[null,null,null,"КОММЕНТАРИИ"]

{"sheet":"Проверка","index":9,"n_rows":13,"n_cols":7,"rows_kept":13,"cut":false,"hidden":false,"merged":[[9,4,9,6]]}
[]
[]
[]
[]
[]
[]
[]
[]
[]
[null,null,null,null,"Результат проверки"]
[]
[null,null,null,null,"Ссылка","Причина","Статус ошибки"]
[null,null,null,null,"1","2","3"]

{"sheet":"AllSheetsInThisWorkbook","index":10,"n_rows":31,"n_cols":2,"rows_kept":31,"cut":false,"hidden":true,"merged":[]}
["Расчетные листы","Скрытые листы"]
["Инструкция","AllSheetsInThisWorkbook"]
["Обновление","et_union"]
["Лог обновления","TEHSHEET"]
["Выбор субъекта РФ","REESTR_ORG"]
["Титульный","REESTR_FILTERED"]
["Актив","REESTR_MO"]
["Пассив","modHyperlink"]
["Расшифровка показателей","modChange"]
["Комментарии","modPROV"]
["Проверка","modTitleSheetHeaders"]
[null,"modServiceModule"]
[null,"modCommandButton"]
[null,"modReestr"]
[null,"modClassifierValidate"]
[null,"modWindowClipboard"]
[null,"modInfo"]
[null,"modfrmReestr"]
[null,"modfrmDateChoose"]
[null,"modDblClick"]
[null,"modUpdTemplMain"]
[null,"modRegionSelectSub"]
[null,"modThisWorkbook"]
[null,"modReestrMO"]
[null,"modSheetMain01"]
[null,"modSheetMain02"]
[null,"modSheetMain03"]
[null,"modSheetMain04"]
[null,"modSheetMain05"]
[null,"modSheetMain06"]
[null,"Паспорт"]

{"sheet":"et_union","index":11,"n_rows":22,"n_cols":16,"rows_kept":22,"cut":false,"hidden":true,"merged":[]}
[]
["add_HELP_range"]
[]
[]
[]
["add_HELP_range_2"]
[]
[null,null,null,null,null,null,null,"(",null,")","(",null,")","(",null,")"]
[]
["edit_year_dec_1"]
[]
[null,null,null,null,"3",{"$f":"\"Нематериальные поисковые активы (стр.\"&Актив!$G$16&\"), в том числе:\"","v":"Нематериальные поисковые активы (стр.1130), в том числе:"},null,{"$f":"IF(Актив!H$16=\"(\",\"(\",\"\")","v":""},{"$f":"Актив!I$16","v":0},{"$f":"IF(H12=\"(\",\")\",\"\")","v":""},{"$f":"IF(Актив!K$16=\"(\",\"(\",\"\")","v":""},{"$f":"Актив!L$16","v":0},{"$f":"IF(K12=\"(\",\")\",\"\")","v":""},{"$f":"IF(Актив!N$16=\"(\",\"(\",\"\")","v":""},{"$f":"Актив!O$16","v":0},{"$f":"IF(N12=\"(\",\")\",\"\")","v":""}]
[null,null,null,null,"3.1",null,{"$f":"Актив!$G$16&\"1\"","v":"11301"}]
[null,null,null,null,"3.2",null,{"$f":"Актив!$G$16&\"2\"","v":"11302"}]
[null,null,null,null,null,"Добавить строку"]
[]
["edit_year_dec_2"]
[]
[null,null,null,null,"4",{"$f":"\"Материальные поисковые активы (стр.\"&Актив!$G$17&\"), в том числе:\"","v":"Материальные поисковые активы (стр.1140), в том числе:"},null,{"$f":"IF(Актив!H$17=\"(\",\"(\",\"\")","v":""},{"$f":"Актив!I$17","v":0},{"$f":"IF(H19=\"(\",\")\",\"\")","v":""},{"$f":"IF(Актив!K$17=\"(\",\"(\",\"\")","v":""},{"$f":"Актив!L$17","v":0},{"$f":"IF(K19=\"(\",\")\",\"\")","v":""},{"$f":"IF(Актив!N$17=\"(\",\"(\",\"\")","v":""},{"$f":"Актив!O$17","v":0},{"$f":"IF(N19=\"(\",\")\",\"\")","v":""}]
[null,null,null,null,"4.1",null,{"$f":"Актив!$G$17&\"1\"","v":"11401"}]
[null,null,null,null,"4.2",null,{"$f":"Актив!$G$17&\"2\"","v":"11402"}]
[null,null,null,null,null,"Добавить строку"]

{"sheet":"TEHSHEET","index":12,"n_rows":86,"n_cols":26,"rows_kept":86,"cut":false,"hidden":true,"merged":[[0,0,1,0],[18,10,18,19],[0,23,0,25],[13,23,13,25]]}
["регион","Логика","Кварталы","Года","Единица измерения","Месяц-текст","Месяц-число","День-число","Указанный год является для организации /org_operates/",null,"XML_ORG_LIST_TAG_NAMES",null,null,null,null,null,null,null,null,null,null,null,null,"Диапазоны с показателями - зависят от года /active_part1_2011/"]
[null,"да","I квартал",2011,"тыс.руб.","январь","01","01","первым отчетным годом",null,"NSRF"]
["Алтайский край","нет","I полугодие",2012,"млн.руб.","февраль","02","02","вторым отчетным годом",null,"MR_NAME",null,null,null,null,null,null,null,null,null,null,null,null,"1.1","Нематериальные активы","1110"]
["Амурская область",null,"9 месяцев",2013,null,"март","03","03","третьим или последующим отчетным годом",null,"OKTMO_MR_NAME",null,null,null,null,null,null,null,null,null,null,null,null,"1.2","Результаты исследований и разработок","1120"]
["Архангельская область",null,"год",2014,null,"апрель","04","04",null,null,"MO_NAME"]
["Астраханская область","Выбранный регион",null,2015,null,"май","05","05",null,null,"OKTMO_NAME"]
["Белгородская область",0,null,null,null,"июнь","06","06",null,null,"ORG_NAME",null,null,null,null,null,null,null,null,null,null,null,null,"1.3","Основные средства ","1130"]
["Брянская область",null,null,null,null,"июль","07","07",null,null,"INN_NAME",null,null,null,null,null,null,null,null,null,null,null,null,"1.4","Доходные вложения в материальные ценности","1140"]
["Владимирская область",null,null,null,null,"август","08","08",null,null,"KPP_NAME",null,null,null,null,null,null,null,null,null,null,null,null,"1.5","Финансовые вложения","1150"]
["Волгоградская область",null,null,null,null,"сентябрь","09","09",null,null,null,null,null,null,null,null,null,null,null,null,null,null,null,"1.6","Отложенные налоговые активы","1160"]
["Вологодская область",null,null,null,null,"октябрь",10,10,null,null,"XML_MR_MO_OKTMO_LIST_TAG_NAMES",null,null,null,null,null,null,null,null,null,null,null,null,"1.7","Прочие внеоборотные активы","1170"]
["Воронежская область",null,null,null,null,"ноябрь",11,11,null,null,"NSRF",null,null,null,null,null,null,null,null,null,null,null,null,"1.8","ИТОГО по разделу I","1100"]
["г.Байконур",null,null,null,null,"декабрь",12,12,null,null,"MR_NAME"]
["г. Москва",null,null,null,null,null,null,13,null,null,"OKTMO_MR_NAME",null,null,null,null,null,null,null,null,null,null,null,null,"Диапазоны с показателями - зависят от года /active_part1_2012/"]
["г.Санкт-Петербург",null,null,null,null,null,null,14,null,null,"MO_NAME"]
["Еврейская автономная область",null,null,null,null,null,null,15,null,null,"OKTMO_NAME",null,null,null,null,null,null,null,null,null,null,null,null,"1.1","Нематериальные активы","1110"]
["Забайкальский край",null,null,null,null,null,null,16,null,null,null,null,null,null,null,null,null,null,null,null,null,null,null,"1.2","Результаты исследований и разработок","1120"]
["Ивановская область",null,null,null,null,null,null,17,null,null,null,null,null,null,null,null,null,null,null,null,null,null,null,"1.3","Нематериальные поисковые активы","1130"]
["Иркутская область",null,null,null,null,null,null,18,null,null,"Формулы с листов Актив и Пассив",null,null,null,null,null,null,null,null,null,null,null,null,"1.4","Материальные поисковые активы","1140"]
["Кабардино-Балкарская республика",null,null,null,null,null,null,19,null,null,"LINE_1100",{"$f":"IF((SUMIF(OFFSET(SUM_1100_1,0,-1),\"\",SUM_1100_1)-SUMIF(OFFSET(SUM_1100_1,0,-1),\"(\",SUM_1100_1))<0,\"(\",\"\")","v":""},{"$f":"ABS(SUMIF(OFFSET(SUM_1100_1,0,-1),\"\",SUM_1100_1)-SUMIF(OFFSET(SUM_1100_1,0,-1),\"(\",SUM_1100_1))","v":478},{"$f":"IF(L20=\"(\",\")\",\"\")","v":""},{"$f":"IF((SUMIF(OFFSET(SUM_1100_2,0,-1),\"\",SUM_1100_2)-SUMIF(OFFSET(SUM_1100_2,0,-1),\"(\",SUM_1100_2))<0,\"(\",\"\")","v":""},{"$f":"ABS(SUMIF(OFFSET(SUM_1100_2,0,-1),\"\",SUM_1100_2)-SUMIF(OFFSET(SUM_1100_2,0,-1),\"(\",SUM_1100_2))","v":391},{"$f":"IF(O20=\"(\",\")\",\"\")","v":""},{"$f":"IF((SUMIF(OFFSET(SUM_1100_3,0,-1),\"\",SUM_1100_3)-SUMIF(OFFSET(SUM_1100_3,0,-1),\"(\",SUM_1100_3))<0,\"(\",\"\")","v":""},{"$f":"ABS(SUMIF(OFFSET(SUM_1100_3,0,-1),\"\",SUM_1100_3)-SUMIF(OFFSET(SUM_1100_3,0,-1),\"(\",SUM_1100_3))","v":563},{"$f":"IF(R20=\"(\",\")\",\"\")","v":""},null,null,null,"1.5","Основные средства ","1150"]
["Калининградская область",null,null,null,null,null,null,20,null,null,"LINE_1200",{"$f":"IF((SUMIF(OFFSET(SUM_1200_1,0,-1),\"\",SUM_1200_1)-SUMIF(OFFSET(SUM_1200_1,0,-1),\"(\",SUM_1200_1))<0,\"(\",\"\")","v":""},{"$f":"ABS(SUMIF(OFFSET(SUM_1200_1,0,-1),\"\",SUM_1200_1)-SUMIF(OFFSET(SUM_1200_1,0,-1),\"(\",SUM_1200_1))","v":6450},"",{"$f":"IF((SUMIF(OFFSET(SUM_1200_2,0,-1),\"\",SUM_1200_2)-SUMIF(OFFSET(SUM_1200_2,0,-1),\"(\",SUM_1200_2))<0,\"(\",\"\")","v":""},{"$f":"ABS(SUMIF(OFFSET(SUM_1200_2,0,-1),\"\",SUM_1200_2)-SUMIF(OFFSET(SUM_1200_2,0,-1),\"(\",SUM_1200_2))","v":5258},"",{"$f":"IF((SUMIF(OFFSET(SUM_1200_3,0,-1),\"\",SUM_1200_3)-SUMIF(OFFSET(SUM_1200_3,0,-1),\"(\",SUM_1200_3))<0,\"(\",\"\")","v":""},{"$f":"ABS(SUMIF(OFFSET(SUM_1200_3,0,-1),\"\",SUM_1200_3)-SUMIF(OFFSET(SUM_1200_3,0,-1),\"(\",SUM_1200_3))","v":6491},"",null,null,null,"1.6","Доходные вложения в материальные ценности","1160"]
["Калужская область",null,null,null,null,null,null,21,null,null,"LINE_1600",{"$f":"IF((IF(L13=\"(\",-LINE_1100_1,LINE_1100_1)+IF(L21=\"(\",-LINE_1200_1,LINE_1200_1))<0,\"(\",\"\")","v":""},{"$f":"ABS(IF(L13=\"(\",-LINE_1100_1,LINE_1100_1)+IF(L21=\"(\",-LINE_1200_1,LINE_1200_1))","v":6928},"",{"$f":"IF((IF(O13=\"(\",-LINE_1100_2,LINE_1100_2)+IF(O21=\"(\",-LINE_1200_2,LINE_1200_2))<0,\"(\",\"\")","v":""},{"$f":"ABS(IF(O13=\"(\",-LINE_1100_2,LINE_1100_2)+IF(O21=\"(\",-LINE_1200_2,LINE_1200_2))","v":5649},"",{"$f":"IF((IF(R13=\"(\",-LINE_1100_3,LINE_1100_3)+IF(R21=\"(\",-LINE_1200_3,LINE_1200_3))<0,\"(\",\"\")","v":""},{"$f":"ABS(IF(R13=\"(\",-LINE_1100_3,LINE_1100_3)+IF(R21=\"(\",-LINE_1200_3,LINE_1200_3))","v":7054},"",null,null,null,"1.7","Финансовые вложения","1170"]
["Камчатский край",null,null,null,null,null,null,22,null,null,"LINE_1300",{"$f":"IF((SUMIF(OFFSET(SUM_1300_1,0,-1),\"\",SUM_1300_1)-SUMIF(OFFSET(SUM_1300_1,0,-1),\"(\",SUM_1300_1))<0,\"(\",\"\")","v":""},{"$f":"ABS(SUMIF(OFFSET(SUM_1300_1,0,-1),\"\",SUM_1300_1)-SUMIF(OFFSET(SUM_1300_1,0,-1),\"(\",SUM_1300_1))","v":4768},"",{"$f":"IF((SUMIF(OFFSET(SUM_1300_2,0,-1),\"\",SUM_1300_2)-SUMIF(OFFSET(SUM_1300_2,0,-1),\"(\",SUM_1300_2))<0,\"(\",\"\")","v":""},{"$f":"ABS(SUMIF(OFFSET(SUM_1300_2,0,-1),\"\",SUM_1300_2)-SUMIF(OFFSET(SUM_1300_2,0,-1),\"(\",SUM_1300_2))","v":5047},"",{"$f":"IF((SUMIF(OFFSET(SUM_1300_3,0,-1),\"\",SUM_1300_3)-SUMIF(OFFSET(SUM_1300_3,0,-1),\"(\",SUM_1300_3))<0,\"(\",\"\")","v":""},{"$f":"ABS(SUMIF(OFFSET(SUM_1300_3,0,-1),\"\",SUM_1300_3)-SUMIF(OFFSET(SUM_1300_3,0,-1),\"(\",SUM_1300_3))","v":5815},"",null,null,null,"1.8","Отложенные налоговые активы","1180"]
["Карачаево-Черкесская республика",null,null,null,null,null,null,23,null,null,"LINE_1400",{"$f":"IF((SUMIF(OFFSET(SUM_1400_1,0,-1),\"\",SUM_1400_1)-SUMIF(OFFSET(SUM_1400_1,0,-1),\"(\",SUM_1400_1))<0,\"(\",\"\")","v":""},{"$f":"ABS(SUMIF(OFFSET(SUM_1400_1,0,-1),\"\",SUM_1400_1)-SUMIF(OFFSET(SUM_1400_1,0,-1),\"(\",SUM_1400_1))","v":0},"",{"$f":"IF((SUMIF(OFFSET(SUM_1400_2,0,-1),\"\",SUM_1400_2)-SUMIF(OFFSET(SUM_1400_2,0,-1),\"(\",SUM_1400_2))<0,\"(\",\"\")","v":""},{"$f":"ABS(SUMIF(OFFSET(SUM_1400_2,0,-1),\"\",SUM_1400_2)-SUMIF(OFFSET(SUM_1400_2,0,-1),\"(\",SUM_1400_2))","v":0},"",{"$f":"IF((SUMIF(OFFSET(SUM_1400_3,0,-1),\"\",SUM_1400_3)-SUMIF(OFFSET(SUM_1400_3,0,-1),\"(\",SUM_1400_3))<0,\"(\",\"\")","v":""},{"$f":"ABS(SUMIF(OFFSET(SUM_1400_3,0,-1),\"\",SUM_1400_3)-SUMIF(OFFSET(SUM_1400_3,0,-1),\"(\",SUM_1400_3))","v":0},"",null,null,null,"1.9","Прочие внеоборотные активы","1190"]
["Кемеровская область",null,null,null,null,null,null,24,null,null,"LINE_1500",{"$f":"IF((SUMIF(OFFSET(SUM_1500_1,0,-1),\"\",SUM_1500_1)-SUMIF(OFFSET(SUM_1500_1,0,-1),\"(\",SUM_1500_1))<0,\"(\",\"\")","v":""},{"$f":"ABS(SUMIF(OFFSET(SUM_1500_1,0,-1),\"\",SUM_1500_1)-SUMIF(OFFSET(SUM_1500_1,0,-1),\"(\",SUM_1500_1))","v":2160},"",{"$f":"IF((SUMIF(OFFSET(SUM_1500_2,0,-1),\"\",SUM_1500_2)-SUMIF(OFFSET(SUM_1500_2,0,-1),\"(\",SUM_1500_2))<0,\"(\",\"\")","v":""},{"$f":"ABS(SUMIF(OFFSET(SUM_1500_2,0,-1),\"\",SUM_1500_2)-SUMIF(OFFSET(SUM_1500_2,0,-1),\"(\",SUM_1500_2))","v":602},"",{"$f":"IF((SUMIF(OFFSET(SUM_1500_3,0,-1),\"\",SUM_1500_3)-SUMIF(OFFSET(SUM_1500_3,0,-1),\"(\",SUM_1500_3))<0,\"(\",\"\")","v":""},{"$f":"ABS(SUMIF(OFFSET(SUM_1500_3,0,-1),\"\",SUM_1500_3)-SUMIF(OFFSET(SUM_1500_3,0,-1),\"(\",SUM_1500_3))","v":1239},"",null,null,null,"1.10","ИТОГО по разделу I","1100"]
["Кировская область",null,null,null,null,null,null,25,null,null,"LINE_1700",{"$f":"IF((IF(L12=\"(\",-LINE_1300_1,LINE_1300_1)+IF(L18=\"(\",-LINE_1400_1,LINE_1400_1)+IF(L25=\"(\",-LINE_1500_1,LINE_1500_1))<0,\"(\",\"\")","v":""},{"$f":"ABS(IF(L12=\"(\",-LINE_1300_1,LINE_1300_1)+IF(L18=\"(\",-LINE_1400_1,LINE_1400_1)+IF(L25=\"(\",-LINE_1500_1,LINE_1500_1))","v":6928},"",{"$f":"IF((IF(O12=\"(\",-LINE_1300_2,LINE_1300_2)+IF(O18=\"(\",-LINE_1400_2,LINE_1400_2)+IF(O25=\"(\",-LINE_1500_2,LINE_1500_2))<0,\"(\",\"\")","v":""},{"$f":"ABS(IF(O12=\"(\",-LINE_1300_2,LINE_1300_2)+IF(O18=\"(\",-LINE_1400_2,LINE_1400_2)+IF(O25=\"(\",-LINE_1500_2,LINE_1500_2))","v":5649},"",{"$f":"IF((IF(R12=\"(\",-LINE_1300_3,LINE_1300_3)+IF(R18=\"(\",-LINE_1400_3,LINE_1400_3)+IF(R25=\"(\",-LINE_1500_3,LINE_1500_3))<0,\"(\",\"\")","v":""},{"$f":"ABS(IF(R12=\"(\",-LINE_1300_3,LINE_1300_3)+IF(R18=\"(\",-LINE_1400_3,LINE_1400_3)+IF(R25=\"(\",-LINE_1500_3,LINE_1500_3))","v":7054},""]
["Костромская область",null,null,null,null,null,null,26]
["Краснодарский край",null,null,null,null,null,null,27,null,null,"LINE_YELLOW"]
["Красноярский край",null,null,null,null,null,null,28]
["Курганская область",null,null,null,null,null,null,29,null,null,"LINE_YELLOW_ALL"]
["Курская область",null,null,null,null,null,null,30]
["Ленинградская область",null,null,null,null,null,null,31]
["Липецкая область"]
["Магаданская область"]
["Московская область"]
["Мурманская область"]
["Ненецкий автономный округ"]
["Нижегородская область"]
["Новгородская область"]
["Новосибирская область"]
["Омская область"]
["Оренбургская область"]
["Орловская область"]
["Пензенская область"]
["Пермский край"]
["Приморский край"]
["Псковская область"]
["Республика Адыгея"]
["Республика Алтай"]
["Республика Башкортостан"]
["Республика Бурятия"]
["Республика Дагестан"]
["Республика Ингушетия"]
["Республика Калмыкия"]
["Республика Карелия"]
["Республика Коми"]
["Республика Марий Эл"]
["Республика Мордовия"]
["Республика Саха (Якутия)"]
["Республика Северная Осетия-Алания"]
["Республика Татарстан"]
["Республика Тыва"]
["Республика Хакасия"]
["Ростовская область"]
["Рязанская область"]
["Самарская область"]
["Саратовская область"]
["Сахалинская область"]
["Свердловская область"]
["Смоленская область"]
["Ставропольский край"]
["Тамбовская область"]
["Тверская область"]
["Томская область"]
["Тульская область"]
["Тюменская область"]
["Удмуртская республика"]
["Ульяновская область"]
["Хабаровский край"]
["Ханты-Мансийский автономный округ"]
["Челябинская область"]
["Чеченская республика"]
["Чувашская республика"]
["Чукотский автономный округ"]
["Ямало-Ненецкий автономный округ"]
["Ярославская область"]

{"sheet":"REESTR_ORG","index":13,"n_rows":756,"n_cols":8,"rows_kept":756,"cut":false,"hidden":true,"merged":[]}
["№","МР","МО","МО ОКТМО","ОРГАНИЗАЦИЯ","ИНН","КПП","ВИД ДЕЯТЕЛЬНОСТИ"]
[1,"Абанский муниципальный район","Абанское","04601151","ООО \"Водоканал Абанского района\"","2401003997","240101001"]
[2,"Абанский муниципальный район","Абанское","04601151","ООО \"ЖКХ Абанского района\"","2401004101","240101001"]
[3,"Абанский муниципальный район","Абанское","04601151","ООО \"Промбытжилсервис\"","2401002496","240101001"]
[4,"Ачинский муниципальный район","Белоярское","04603402","ООО \"Ачинский районный жилищно-коммунальный сервис\"","2443033175","244301001"]
[5,"Ачинский муниципальный район","Белоярское","04603402","ООО \"Пром-Строй Ресурс\"","2443040535","244301001"]
[6,"Ачинский муниципальный район","Белоярское","04603402","ООО \"Теплоресурс\"","2443039346","244301001"]
[7,"Ачинский муниципальный район","Белоярское","04603402","ООО \"Энергосберегающие технологии\"","2443032654","244301001"]
[8,"Ачинский муниципальный район","Горное","04603407","ООО \"АльянсСпецСтрой\"","2443037518","244301001"]
[9,"Ачинский муниципальный район","Горное","04603407","ООО \"Пром-Строй Ресурс\"","2443040535","244301001"]
[10,"Ачинский муниципальный район","Горное","04603407","ООО \"Энергосберегающие технологии\"","2443032654","244301001"]
[11,"Ачинский муниципальный район","Ключинское","04603410","ООО \"Пром-Строй Ресурс\"","2443040535","244301001"]
[12,"Ачинский муниципальный район","Ключинское","04603410","ООО \"Теплоресурс\"","2443039346","244301001"]
[13,"Ачинский муниципальный район","Ключинское","04603410","ООО \"Энергосберегающие технологии\"","2443032654","244301001"]
[14,"Ачинский муниципальный район","Ключинское","04603410","ООО УК \"Альянсспецстрой\"","2443009422","244301001"]
[15,"Ачинский муниципальный район","Лапшихинское","04603413","ООО \"Районное коммунальное хозяйство\"","2443031594","244301001"]
[16,"Ачинский муниципальный район","Малиновское","04603414","ООО \"Ачинский районный жилищно-коммунальный сервис\"","2443033175","244301001"]
[17,"Ачинский муниципальный район","Малиновское","04603414","ООО \"Гарант Энерго\"","2462204517","246601001"]
[18,"Ачинский муниципальный район","Преображенское","04603404","ОАО \"Транссибнефть\" филиал Красноярское РНУ","5502020634","246603001"]
[19,"Ачинский муниципальный район","Преображенское","04603404","ООО \"Районное коммунальное хозяйство\"","2443031594","244301001"]
[20,"Ачинский муниципальный район","Причулымское","04603419","ООО \"Пром-Строй Ресурс\"","2443040535","244301001"]
[21,"Ачинский муниципальный район","Причулымское","04603419","ООО \"Теплоресурс\"","2443039346","244301001"]
[22,"Ачинский муниципальный район","Причулымское","04603419","ООО \"Энергосберегающие технологии\"","2443032654","244301001"]
[23,"Ачинский муниципальный район","Причулымское","04603419","ООО УК \"Альянсспецстрой\"","2443009422","244301001"]
[24,"Ачинский муниципальный район","Тарутинское","04603422","ООО \"Пром-Строй Ресурс\"","2443040535","244301001"]
[25,"Ачинский муниципальный район","Тарутинское","04603422","ООО \"Теплоресурс\"","2443039346","244301001"]
[26,"Ачинский муниципальный район","Тарутинское","04603422","ООО \"Энергосберегающие технологии\"","2443032654","244301001"]
[27,"Ачинский муниципальный район","Ястребовское","04603428","ООО \"Пром-Строй Ресурс\"","2443040535","244301001"]
[28,"Ачинский муниципальный район","Ястребовское","04603428","ООО \"Теплоресурс\"","2443039346","244301001"]
[29,"Ачинский муниципальный район","Ястребовское","04603428","ООО \"Энергосберегающие технологии\"","2443032654","244301001"]
[30,"Балахтинский муниципальный район","Еловское","04604404","ООО \"ЖКХ\"","2403006930","240301001"]
[31,"Балахтинский муниципальный район","Кожановское","04604405","ЗАО \"Санаторий \"Красноярское Загорье\"","2403001924","240301001"]
[32,"Балахтинский муниципальный район","Огурское","04604407","ООО ЖКХ \"Приморье\"","2403007059","240301001"]
[33,"Балахтинский муниципальный район","Приморское","04604413","ООО ЖКХ \"Приморье\"","2403007059","240301001"]
[34,"Балахтинский муниципальный район","Тюльковское","04604419","ООО \"ЖКХ\"","2403006930","240301001"]
[35,"Балахтинский муниципальный район","поселок Балахта","04604151","ООО \"Балахтинские теплосети\"","2403006986","240301001"]
[36,"Балахтинский муниципальный район","поселок Балахта","04604151","ООО \"ЖКХ\"","2403006930","240301001"]
[37,"Балахтинский муниципальный район","поселок Балахта","04604151","ООО \"Красноярская региональная энергетическая компания\"","2466118202","246001001"]
[38,"Березовский муниципальный район","Бархатовское","04605402","ОАО \"Птицефабрика Бархатовская\"","2404007196","240401001"]
[39,"Березовский муниципальный район","Бархатовское","04605402","ООО \"Вега\"","2458009841","240401001"]
[40,"Березовский муниципальный район","Бархатовское","04605402","ООО \"Лифтремонт\"","2458000334","245801001"]
[41,"Березовский муниципальный район","Бархатовское","04605402","ООО \"Птицефабрика \"Сибирская губерния\"","2404010992","240401001"]
[42,"Березовский муниципальный район","Бархатовское","04605402","ООО \"УК\"Заказчик ЖКУ\"","2404012340","240401001"]
[43,"Березовский муниципальный район","Вознесенское","04605405","ООО \"Жилсервис\"","2404005488","240401001"]
[44,"Березовский муниципальный район","Есаульское","04605416","МП ЖКУ Есаульского сельсовета","2404008672","240401001"]
[45,"Березовский муниципальный район","Есаульское","04605416","ОАО Гравиметрическая экспедиция №3","2466146520","246601001"]
[46,"Березовский муниципальный район","Зыковское","04605420","КрД по тепловодоснабжению - СП ЦД по тепловодоснабжению -филиал ОАО \"РЖД\"","7708503727","246645014"]
[47,"Березовский муниципальный район","Зыковское","04605420","ООО \"ЖКХ\" Березовского района","2404006033","240401001"]
[48,"Березовский муниципальный район","Зыковское","04605420","ООО \"Зыковская сетевая компания\"","2404013827","240401001"]
[49,"Березовский муниципальный район","Зыковское","04605420","ООО \"УК\"Заказчик ЖКУ\"","2404012340","240401001"]
[50,"Березовский муниципальный район","Зыковское","04605420","ООО Энергетик","2404006058","240401001"]
[51,"Березовский муниципальный район","Маганское","04605425","ООО \"ЖКХ\" Березовского района","2404006033","240401001"]
[52,"Березовский муниципальный район","Маганское","04605425","ООО \"Зыковская сетевая компания\"","2404013827","240401001"]
[53,"Березовский муниципальный район","Маганское","04605425","ООО \"УК\"Заказчик ЖКУ\"","2404012340","240401001"]
[54,"Березовский муниципальный район","поселок Березовка","04605151","ОАО \"Енисейская ТГК (ТГК-13)\"","1901067718","997450001"]
[55,"Березовский муниципальный район","поселок Березовка","04605151","ООО \"Березовские коммуникационные системы-1\"","2404006548","240401001"]
[56,"Березовский муниципальный район","поселок Березовка","04605151","ООО \"Водолей-2\"","2404011509","240401001"]
[57,"Березовский муниципальный район","поселок Березовка","04605151","ООО \"Водолей-3\"","2404011516","240401001"]
[58,"Березовский муниципальный район","поселок Березовка","04605151","ООО \"Память-1\"","2404009725","240401001"]
[59,"Березовский муниципальный район","поселок Березовка","04605151","ООО \"Торговый дом\" п. Березовка","2404011185","240401001"]
[60,"Березовский муниципальный район","поселок Березовка","04605151","ООО \"УК\"Заказчик ЖКУ\"","2404012340","240401001"]
[61,"Бирилюсский муниципальный район","Новобирилюсское","04606416","ООО \"Коммунсервис\"","2405415102","240501001"]
[62,"Бирилюсский муниципальный район","Поселок Рассвет","04606154","ООО \"Жилбытсервис\"","2405415543","240541001"]
[63,"Бирилюсский муниципальный район","Суриковское","04606426","ООО \"Теплосбыт\"","2405415832","240541001"]
[64,"Боготольский муниципальный район","Александровское","04608402","МКП Боготольского района \"Услуга\"","2444301420","244431001"]
[65,"Боготольский муниципальный район","Александровское","04608402","ООО \"Полигон\"","2444303314","244401001"]
[66,"Боготольский муниципальный район","Боготольский муниципальный район","04608000","МКП Боготольского района \"Услуга\"","2444301420","244431001"]
[67,"Боготольский муниципальный район","Боготольский муниципальный район","04608000","ООО \"Полигон\"","2444303314","244401001"]
[68,"Боготольский муниципальный район","Боготольское","04608404","МКП Боготольского района \"Услуга\"","2444301420","244431001"]
[69,"Боготольский муниципальный район","Боготольское","04608404","МУП \"РТЭК\"","2444001602","244401001"]
[70,"Боготольский муниципальный район","Боготольское","04608404","ООО \"Полигон\"","2444303314","244401001"]
[71,"Боготольский муниципальный район","Большекосульское","04608407","МКП Боготольского района \"Услуга\"","2444301420","244431001"]
[72,"Боготольский муниципальный район","Большекосульское","04608407","ОАО \"Транссибнефть\" Новосибирское РНУ","5502020634","240201001"]
[73,"Боготольский муниципальный район","Большекосульское","04608407","ОАО \"Транссибнефть\" филиал Новосибирское РНУ НПС \"Каштан","5502020634","554250011"]
[74,"Боготольский муниципальный район","Большекосульское","04608407","ООО \"Полигон\"","2444303314","244401001"]
[75,"Боготольский муниципальный район","Вагинское","04608410","МКП Боготольского района \"Услуга\"","2444301420","244431001"]
[76,"Боготольский муниципальный район","Вагинское","04608410","ООО \"Полигон\"","2444303314","244401001"]
[77,"Боготольский муниципальный район","Краснозаводское","04608413","МКП Боготольского района \"Услуга\"","2444301420","244431001"]
[78,"Боготольский муниципальный район","Краснозаводское","04608413","ООО \"Полигон\"","2444303314","244401001"]
[79,"Боготольский муниципальный район","Краснозаводское","04608413","ООО \"Провинция плюс\"","2444302582","244401001"]
[80,"Боготольский муниципальный район","Критовское","04608416","МКП Боготольского района \"Услуга\"","2444301420","244431001"]
[81,"Боготольский муниципальный район","Критовское","04608416","ООО \"Полигон\"","2444303314","244401001"]
[82,"Боготольский муниципальный район","Чайковское","04608419","МКП Боготольского района \"Услуга\"","2444301420","244431001"]
[83,"Боготольский муниципальный район","Чайковское","04608419","ООО \"Полигон\"","2444303314","244401001"]
[84,"Боготольский муниципальный район","Юрьевское","04608422","МКП Боготольского района \"Услуга\"","2444301420","244431001"]
[85,"Боготольский муниципальный район","Юрьевское","04608422","ООО \"Полигон\"","2444303314","244401001"]
[86,"Богучанский муниципальный район","Ангарское","04609402","ООО \"Водные ресурсы\"","2407061730","240701001"]
[87,"Богучанский муниципальный район","Артюгинское","04609404","ООО \"Водные ресурсы\"","2407061730","240701001"]
[88,"Богучанский муниципальный район","Белякинское","04609407","ООО \"Водные ресурсы\"","2407061730","240701001"]
[89,"Богучанский муниципальный район","Богучанский муниципальный район","04609000","ООО \"Водные ресурсы\"","2407061730","240701001"]
[90,"Богучанский муниципальный район","Богучанское","04609410","ОАО \"РусГидро\"","2460066195","997450001"]
[91,"Богучанский муниципальный район","Богучанское","04609410","ООО \"Богучанские ЭС\"","2407061515","240701001"]
[92,"Богучанский муниципальный район","Богучанское","04609410","ООО \"Богучанские тепловые сети\"","2407061522","240701001"]
[93,"Богучанский муниципальный район","Богучанское","04609410","ООО \"Водные ресурсы\"","2407061730","240701001"]
[94,"Богучанский муниципальный район","Богучанское","04609410","ООО \"Жилье\"","2407062290","240701001"]
[95,"Богучанский муниципальный район","Говорковское","04609413","ООО \"Водные ресурсы\"","2407061730","240701001"]
[96,"Богучанский муниципальный район","Красногорьевское","04609418","ООО \"Водные ресурсы\"","2407061730","240701001"]
[97,"Богучанский муниципальный район","Манзенское","04609419","ООО \"Водные ресурсы\"","2407061730","240701001"]
[98,"Богучанский муниципальный район","Невонское","04609422","ООО \"Водные ресурсы\"","2407061730","240701001"]
[99,"Богучанский муниципальный район","Нижнетерянское","04609424","ООО \"Водные ресурсы\"","2407061730","240701001"]
[100,"Богучанский муниципальный район","Новохайское","04609423","ООО \"Водные ресурсы\"","2407061730","240701001"]
[101,"Богучанский муниципальный район","Октябрьское","04609445","ФБУ \"Объединение исправительных учреждений №26\" ГУФСИН по Красноярскому краю","2407011169","240701001"]
[102,"Богучанский муниципальный район","Осиновомысское","04609425","ООО \"Водные ресурсы\"","2407061730","240701001"]
[103,"Богучанский муниципальный район","Пинчугское","04609428","ООО \"Водные ресурсы\"","2407061730","240701001"]
[104,"Богучанский муниципальный район","Таежнинское","04609430","ООО \"Водные ресурсы\"","2407061730","240701001"]
[105,"Богучанский муниципальный район","Такучетское","04609431","ООО \"Водные ресурсы\"","2407061730","240701001"]
[106,"Богучанский муниципальный район","Хребтовское","04609433","ООО \"Водные ресурсы\"","2407061730","240701001"]
[107,"Богучанский муниципальный район","Чуноярское","04609434","КрД по тепловодоснабжению - СП ЦД по тепловодоснабжению -филиал ОАО \"РЖД\"","7708503727","246645014"]
[108,"Богучанский муниципальный район","Чуноярское","04609434","ООО \"Водные ресурсы\"","2407061730","240701001"]
[109,"Богучанский муниципальный район","Шиверское","04609440","ООО \"Водные ресурсы\"","2407061730","240701001"]
[110,"Большемуртинский муниципальный район","Айтатское","04610402","ООО \"Красноярская региональная энергетическая компания\"","2466118202","246001001"]
[111,"Большемуртинский муниципальный район","Айтатское","04610402","ООО \"СТЭП\"","2460225783","246001001"]
[112,"Большемуртинский муниципальный район","Бартатское","04610404","ООО \"Красноярская региональная энергетическая компания\"","2466118202","246001001"]
[113,"Большемуртинский муниципальный район","Бартатское","04610404","ООО \"СТЭП\"","2460225783","246001001"]
[114,"Большемуртинский муниципальный район","Большемуртинский муниципальный район","04610000","ООО \"Красноярская региональная энергетическая компания\"","2466118202","246001001"]
[115,"Большемуртинский муниципальный район","Большемуртинский муниципальный район","04610000","ООО \"СТЭП\"","2460225783","246001001"]
[116,"Большемуртинский муниципальный район","Верх-Казанское","04610407","ООО \"Красноярская региональная энергетическая компания\"","2466118202","246001001"]
[117,"Большемуртинский муниципальный район","Верх-Казанское","04610407","ООО \"СТЭП\"","2460225783","246001001"]
[118,"Большемуртинский муниципальный район","Еловское","04610410","ООО \"Красноярская региональная энергетическая компания\"","2466118202","246001001"]
[119,"Большемуртинский муниципальный район","Еловское","04610410","ООО \"СТЭП\"","2460225783","246001001"]
[120,"Большемуртинский муниципальный район","Ентаульское","04610413","ООО \"Красноярская региональная энергетическая компания\"","2466118202","246001001"]
[121,"Большемуртинский муниципальный район","Ентаульское","04610413","ООО \"СТЭП\"","2460225783","246001001"]
[122,"Большемуртинский муниципальный район","Межовское","04610416","ИП Хасанов","240800322914","отсутствует"]
[123,"Большемуртинский муниципальный район","Межовское","04610416","ООО \"Красноярская региональная энергетическая компания\"","2466118202","246001001"]
[124,"Большемуртинский муниципальный район","Поселок Большая Мурта","04610151","ООО \"Красноярская региональная энергетическая компания\"","2466118202","246001001"]
[125,"Большемуртинский муниципальный район","Поселок Большая Мурта","04610151","ООО \"Обслуживание коммунального комплекса\"","2408005552","240801001"]
[126,"Большемуртинский муниципальный район","Поселок Большая Мурта","04610151","ООО \"СТЭП\"","2460225783","246001001"]
[127,"Большемуртинский муниципальный район","Раздольненское","04610428","ООО \"Красноярская региональная энергетическая компания\"","2466118202","246001001"]
[128,"Большемуртинский муниципальный район","Раздольненское","04610428","ООО \"СТЭП\"","2460225783","246001001"]
[129,"Большемуртинский муниципальный район","Российское","04610419","ООО \"Красноярская региональная энергетическая компания\"","2466118202","246001001"]
[130,"Большемуртинский муниципальный район","Российское","04610419","ООО \"СТЭП\"","2460225783","246001001"]
[131,"Большемуртинский муниципальный район","Таловское","04610422","ООО \"Красноярская региональная энергетическая компания\"","2466118202","246001001"]
[132,"Большемуртинский муниципальный район","Таловское","04610422","ООО \"СТЭП\"","2460225783","246001001"]
[133,"Большемуртинский муниципальный район","Юксеевское","04610425","ООО \"Красноярская региональная энергетическая компания\"","2466118202","246001001"]
[134,"Большемуртинский муниципальный район","Юксеевское","04610425","ООО \"СТЭП\"","2460225783","246001001"]
[135,"Большемуртинский муниципальный район","п Предивинск","04610155","ООО \"Красноярская региональная энергетическая компания\"","2466118202","246001001"]
[136,"Большемуртинский муниципальный район","п Предивинск","04610155","ООО \"СТЭП\"","2460225783","246001001"]
[137,"Большеулуйский муниципальный район","Большеулуйское","04611407","ОАО \"Ачинский НПЗ ВНК\"","2443000518","244301001"]
[138,"Большеулуйский муниципальный район","Большеулуйское","04611407","ООО \"КоммунСтройСервис\"","2409000116","240901001"]
[139,"Большеулуйский муниципальный район","Большеулуйское","04611407","ООО \"Рубин\"","2409700703","240971001"]
[140,"Большеулуйский муниципальный район","Большеулуйское","04611407","ООО \"Улуйское\"","2409700541","240901001"]
[141,"Город Ачинск","Город Ачинск","04703000","ГП Красноярского края \"КрасАвиа\"","8801010904","241101001"]
[142,"Город Ачинск","Город Ачинск","04703000","ЗАО \"Промэнерго\"","2443022857","244301001"]
[143,"Город Ачинск","Город Ачинск","04703000","ЗАО \"СИБИРЬ АВИА СЕРВИС\"","2466102668","241101001"]
[144,"Город Ачинск","Город Ачинск","04703000","КрД по тепловодоснабжению - СП ЦД по тепловодоснабжению -филиал ОАО \"РЖД\"","7708503727","246645014"]
[145,"Город Ачинск","Город Ачинск","04703000","МП \"Ярцевские авиационные перевозки\"","2447010940","244701001"]
[146,"Город Ачинск","Город Ачинск","04703000","МУП \"Ачинские коммунальные системы\"","2443031957","244301001"]
[147,"Город Ачинск","Город Ачинск","04703000","МУП \"Ачинский транспорт\"","2443033707","244301001"]
[148,"Город Ачинск","Город Ачинск","04703000","ОАО \"Ачинская хлебная база № 17\"","2443005481","244301001"]
[149,"Город Ачинск","Город Ачинск","04703000","ОАО \"Русал Ачинск\"","2443005570","997550001"]
[150,"Город Ачинск","Город Ачинск","04703000","ООО \"Аэропорт \"Ачинск\"","2443027421","244301001"]
[151,"Город Ачинск","Город Ачинск","04703000","ООО \"Аэропорт \"Норильск\"","245706174","245701001"]
[152,"Город Ачинск","Город Ачинск","04703000","ООО \"Топливо-заправочная компания Енисей\"","2411019700","241101001"]
[153,"Город Ачинск","Город Ачинск","04703000","ООО \"ЭРА Терминал\"","2411015448","241101001"]
[154,"Город Ачинск","Город Ачинск","04703000","ООО Керамзитовый завод","2443026756","244301001"]
[155,"Город Ачинск","Город Ачинск","04703000","Общество с ограниченной ответственностью \"Аэропортовый комплекс \"Шушенское\"","2442011108","244201001"]
[156,"Город Ачинск","Город Ачинск","04703000","ФГУП \"Туруханское авиапредприятие\"","2437001665","243701001"]
[157,"Город Боготол","Город Боготол","04706000","КрД по тепловодоснабжению - СП ЦД по тепловодоснабжению -филиал ОАО \"РЖД\"","7708503727","246645014"]
[158,"Город Боготол","Город Боготол","04706000","ОАО «БТЭК»","2444303071","244401001"]
[159,"Город Боготол","Город Боготол","04706000","ООО \"Водоканал\"","2444000246","244401001"]
[160,"Город Боготол","Город Боготол","04706000","ООО \"Красноярская региональная энергетическая компания\"","2466118202","246001001"]
[161,"Город Боготол","Город Боготол","04706000","ООО «Теплоэнергетический комплекс» города Боготола","2444000486","244401001"]
[162,"Город Бородино","Город Бородино","04707000","ООО \"Бородинский комплекс жилищно-коммунальных услуг\"","2445002704","244501001"]
[163,"Город Бородино","Город Бородино","04707000","ООО \"Бородинское Энергоуправление\"","2445002253","244501001"]
[164,"Город Бородино","Город Бородино","04707000","ООО \"Интегра\"","2464111032","246401001"]
[165,"Город Бородино","Город Бородино","04707000","ООО \"Строительная компания\"","2452023938","245201001"]
[166,"Город Бородино","Город Бородино","04707000","Филиал ОАО «СУЭК-Красноярск» «Разрез Бородинский»","2466152267","244502001"]
[167,"Город Дивногорск","Город Дивногорск","04709000","МУП \"ЭС\" г.Дивногорск","2446001206","244601001"]
[168,"Город Дивногорск","Город Дивногорск","04709000","ОАО \"Дивногорские тепловые сети\"","2460237884","246001001"]
[169,"Город Дивногорск","Город Дивногорск","04709000","ОАО \"Енисейская ТГК (ТГК-13)\"","1901067718","997450001"]
[170,"Город Дивногорск","Город Дивногорск","04709000","ОАО \"Красноярская ГЭС\"","2446000322","244601001"]
[171,"Город Дивногорск","Город Дивногорск","04709000","ООО \"Дивногорский водоканал\"","2464076268","246401001"]
[172,"Город Дивногорск","Город Дивногорск","04709000","ООО \"Коммунальные Технологии\"","2446031176","244601001"]
[173,"Город Дивногорск","Город Дивногорск","04709000","ООО «Тепловая сбытовая компания плюс»","2446031539","244601001"]
[174,"Город Енисейск","Город Енисейск","04712000","МУП  \"Очистные сооружения\"","2447011172","244701001"]
[175,"Город Енисейск","Город Енисейск","04712000","ФБУ ОИУ-2 ОУХД ГУФСИН России по Красноярскому краю","2447004802","244701001"]
[176,"Город Канск","Город Канск","04720000","КГБУСО \"Канский психоневрологический интернат\"","2450003647","245001001"]
[177,"Город Канск","Город Канск","04720000","КрД по тепловодоснабжению - СП ЦД по тепловодоснабжению -филиал ОАО \"РЖД\"","7708503727","246645014"]
[178,"Город Канск","Город Канск","04720000","МУП \"Канский Электросетьсбыт\"","2450017488","245001001"]
[179,"Город Канск","Город Канск","04720000","ОАО \"Гортепло\"","2450018770","245001001"]
[180,"Город Канск","Город Канск","04720000","ОАО \"Енисейская ТГК (ТГК-13)\"","1901067718","997450001"]
[181,"Город Канск","Город Канск","04720000","ОАО \"Канская ТЭЦ\"","2460237891","246001001"]
[182,"Город Канск","Город Канск","04720000","ОАО Красноярскнефтепродукт филиал Восточный","2460002949","246001001"]
[183,"Город Канск","Город Канск","04720000","ООО \"Водоканал-сервис\"","2450019630","245001001"]
[184,"Город Канск","Город Канск","04720000","ООО \"Канские тепловые сети\"","2450024460","245001001"]
[185,"Город Канск","Город Канск","04720000","ООО \"Полигон\"","2450020755","245001001"]
[186,"Город Канск","Город Канск","04720000","ООО Тепло-Сбыт-Сервис","2450012842","245001001"]
[187,"Город Красноярск","Город Красноярск","04701000","ЗАО  Сибирский ЭНТЦ","5407103263","246302001"]
[188,"Город Красноярск","Город Красноярск","04701000","ЗАО \"Красноярский ДОК\"","2464004168","246401001"]
[189,"Город Красноярск","Город Красноярск","04701000","ЗАО \"Красный Яр АО\"","7701243572","246101001"]
[190,"Город Красноярск","Город Красноярск","04701000","ЗАО \"Система\"","4205173700","420501001"]
[191,"Город Красноярск","Город Красноярск","04701000","ЗАО \"Флагман-инвест\"","2465067548","246401001"]
[192,"Город Красноярск","Город Красноярск","04701000","ЗАО «РН-Энергонефть»","7706184465","246543001"]
[193,"Город Красноярск","Город Красноярск","04701000","ЗАО Лыжный стадион \"Ветлужанка\"","2463011331","246301001"]
[194,"Город Красноярск","Город Красноярск","04701000","ЗАО ПСК \"Союз\"","2464007521","540501001"]
[195,"Город Красноярск","Город Красноярск","04701000","ЗАО ТЦ \"Красноярье\"","2451000180","245101001"]
[196,"Город Красноярск","Город Красноярск","04701000","ИП Полынцев","246001293023","246001001"]
[197,"Город Красноярск","Город Красноярск","04701000","КрД по тепловодоснабжению - СП ЦД по тепловодоснабжению -филиал ОАО \"РЖД\"","7708503727","246645014"]
[198,"Город Красноярск","Город Красноярск","04701000","Красноярский научный центр СО РАН","2463002263","246301001"]
[199,"Город Красноярск","Город Красноярск","04701000","Красноярское отделение филиала \"Сибирский\" ОАО \"Оборонэнергосбыт\"","7704731218","246645001"]
[200,"Город Красноярск","Город Красноярск","04701000","ОАО \" РУСАЛ Красноярск\"","2465000141","246501001"]
[201,"Город Красноярск","Город Красноярск","04701000","ОАО \"Автоспецбаза\"","2466245458","246601001"]
[202,"Город Красноярск","Город Красноярск","04701000","ОАО \"Горевский ГОК\"","2426000250","242601001"]
[203,"Город Красноярск","Город Красноярск","04701000","ОАО \"ДОЗ 2 и К\"","2462023422","246201001"]
[204,"Город Красноярск","Город Красноярск","04701000","ОАО \"Енисейская ТГК (ТГК-13)\"","1901067718","997450001"]
[205,"Город Красноярск","Город Красноярск","04701000","ОАО \"КЗСК\"","2462004363","246750001"]
[206,"Город Красноярск","Город Красноярск","04701000","ОАО \"Красмаш\"","2462206345","246750001"]
[207,"Город Красноярск","Город Красноярск","04701000","ОАО \"Красноярская ТЭЦ-1\"","2460237926","246001001"]
[208,"Город Красноярск","Город Красноярск","04701000","ОАО \"Красноярская теплотранспортная компания\"","2460237933","246001001"]
[209,"Город Красноярск","Город Красноярск","04701000","ОАО \"Красноярская электрокотельная\"","2460237845","246001001"]
[210,"Город Красноярск","Город Красноярск","04701000","ОАО \"Красноярский ЭВРЗ\"","2460083169","246001001"]
[211,"Город Красноярск","Город Красноярск","04701000","ОАО \"Красцветмет\"","2451000818","997550001"]
[212,"Город Красноярск","Город Красноярск","04701000","ОАО \"РЖД\"","7708503727","246602001"]
[213,"Город Красноярск","Город Красноярск","04701000","ОАО \"СУЭК -Красноярск\"","2466152267","246750001"]
[214,"Город Красноярск","Город Красноярск","04701000","ОАО \"Транссибнефть\" филиал Красноярское РНУ","5502020634","246603001"]
[215,"Город Красноярск","Город Красноярск","04701000","ОАО \"ХМЗ\"","2464003340","246401001"]
[216,"Город Красноярск","Город Красноярск","04701000","ОАО «Красноярсккрайгаз»","2460220440","246001001"]
[217,"Город Красноярск","Город Красноярск","04701000","ОАО «ЭСК РусГидро»","7804403972","772801001"]
[218,"Город Красноярск","Город Красноярск","04701000","ОАО Красноярскграфит","2464075377","246401001"]
[219,"Город Красноярск","Город Красноярск","04701000","ОАО ПО \"Красноярский завод комбайнов\"","2460053936","246750001"]
[220,"Город Красноярск","Город Красноярск","04701000","ОАО Санаторий Енисей","2463026779","246301001"]
[221,"Город Красноярск","Город Красноярск","04701000","ООО \"Альфа\"","2460001399","246001001"]
[222,"Город Красноярск","Город Красноярск","04701000","ООО \"Вторичные ресурсы\"","2460070346","246501001"]
[223,"Город Красноярск","Город Красноярск","04701000","ООО \"Делком\"","2465243176","246501001"]
[224,"Город Красноярск","Город Красноярск","04701000","ООО \"Искра-Энергосети\"","2463037964","246301001"]
[225,"Город Красноярск","Город Красноярск","04701000","ООО \"КЛМ - Энерго\"","2466119189","246601001"]
[226,"Город Красноярск","Город Красноярск","04701000","ООО \"Коммерц Строй\"","2463050757","781101001"]
[227,"Город Красноярск","Город Красноярск","04701000","ООО \"Контакт\"","2462208303","246201001"]
[228,"Город Красноярск","Город Красноярск","04701000","ООО \"КраМЗЭнерго\"","2465076373","246501001"]
[229,"Город Красноярск","Город Красноярск","04701000","ООО \"Крамз\"","2465043748","246501001"]
[230,"Город Красноярск","Город Красноярск","04701000","ООО \"КрасТЭК\"","2460062553","246601001"]
[231,"Город Красноярск","Город Красноярск","04701000","ООО \"Красноярская региональная энергетическая компания\"","2466118202","246001001"]
[232,"Город Красноярск","Город Красноярск","04701000","ООО \"Красноярский жилищно-коммунальный комплекс\"","2466114215","246750001"]
[233,"Город Красноярск","Город Красноярск","04701000","ООО \"Красноярский цемент\"","2464054271","246750001"]
[234,"Город Красноярск","Город Красноярск","04701000","ООО \"Новые технологии\"","2465218691","246501001"]
[235,"Город Красноярск","Город Красноярск","04701000","ООО \"РСК\"","2463064830","246301001"]
[236,"Город Красноярск","Город Красноярск","04701000","ООО \"Русэнергосбыт Сибирь\"","2465115953","246601001"]
[237,"Город Красноярск","Город Красноярск","04701000","ООО \"СП-Энергосервис\"","2465240697","246501001"]
[238,"Город Красноярск","Город Красноярск","04701000","ООО \"Сибирская энергетическая компания\"","2463228743","246301001"]
[239,"Город Красноярск","Город Красноярск","04701000","ООО \"ТЭС\"","2464031718","246401001"]
[240,"Город Красноярск","Город Красноярск","04701000","ООО \"Терминал\"","5406358558","240601001"]
[241,"Город Красноярск","Город Красноярск","04701000","ООО \"ФармЭнерго\"","2464215761","246401001"]
[242,"Город Красноярск","Город Красноярск","04701000","ООО \"Хельд\"","2461215594","246101001"]
[243,"Город Красноярск","Город Красноярск","04701000","ООО \"Шиноремонтный завод\"","2460044402","246001001"]
[244,"Город Красноярск","Город Красноярск","04701000","ООО \"Элеком\"","2464099890","246401001"]
[245,"Город Красноярск","Город Красноярск","04701000","ООО \"Электрические сети Сибири\"","2460235372","246001001"]
[246,"Город Красноярск","Город Красноярск","04701000","ООО \"Электросан\"","2462003384","246201001"]
[247,"Город Красноярск","Город Красноярск","04701000","ООО \"Эликом\"","2465219085","246501001"]
[248,"Город Красноярск","Город Красноярск","04701000","ООО \"Энерготранзит\"","2466152387","246601001"]
[249,"Город Красноярск","Город Красноярск","04701000","ООО \"Энергоцентр\"","2464104691","246401001"]
[250,"Город Красноярск","Город Красноярск","04701000","ООО «Азимут»","2465239518","246501001"]
[251,"Город Красноярск","Город Красноярск","04701000","ООО «Крастерм»","2465260421","246501001"]
[252,"Город Красноярск","Город Красноярск","04701000","ООО «Орбита»","2466244101","246601001"]
[253,"Город Красноярск","Город Красноярск","04701000","ООО «Тепловая энергетическая компания»","2462206835","246201001"]
[254,"Город Красноярск","Город Красноярск","04701000","ООО Интек","2465219078","246501001"]
[255,"Город Красноярск","Город Красноярск","04701000","ООО Красэлектросервис","2464055525","246001001"]
[256,"Город Красноярск","Город Красноярск","04701000","ООО Курорт Озеро Учум","2463061773","246301001"]
[257,"Город Красноярск","Город Красноярск","04701000","ООО МД","2464071943","246401001"]
[258,"Город Красноярск","Город Красноярск","04701000","ООО ПСК \"Омега\"","2465012193","246301001"]
[259,"Город Красноярск","Город Красноярск","04701000","ООО РЕД-Сибирь","2465097486","246501001"]
[260,"Город Красноярск","Город Красноярск","04701000","ООО СК \"Вектор\"","2465280548","246501001"]
[261,"Город Красноярск","Город Красноярск","04701000","Пассажирское  вагонное депо Красноярск Енисейского филиала открытого акционерного общества \"Федеральная  пассажирская компания\"","7708709686","246043001"]
[262,"Город Красноярск","Город Красноярск","04701000","ФГАОУ ВПО \"Сибирский федеральный университет\"","2463011853","246331001"]
[263,"Город Красноярск","Город Красноярск","04701000","ФГУ \"Красноярская квартирно-эксплуатационная часть района\" МО РФ","2465035000","246501001"]
[264,"Город Красноярск","Город Красноярск","04701000","ФГУП ПО Красноярский химический комбинат \"Енисей\"","2451000046","246201001"]
[265,"Город Красноярск","Город Красноярск","04701000","Филиал ОАО \"МРСК Сибири\" - \"Красноярскэнерго\"","2460069527","246002001"]
[266,"Город Красноярск","Город Красноярск","04701000","Филиал ОАО \"Пивоваренная компания \"Балтика\" - \"Балтика - Пикра\"","7830001405","783450001"]
[267,"Город Лесосибирск","Город Лесосибирск","04722000","ЗАО \"Новоенисейский ЛХК\"","2454012346","245401001"]
[268,"Город Лесосибирск","Город Лесосибирск","04722000","ЗАО \"Сибирский лесохимический завод\"","2454019736","245401001"]
[269,"Город Лесосибирск","Город Лесосибирск","04722000","ЗАО Лесосибирский ЛПК","2454002002","245401001"]
[270,"Город Лесосибирск","Город Лесосибирск","04722000","МУП \"ЖКХ г. Лесосибирска\"","2454017182","245401001"]
[271,"Город Лесосибирск","Город Лесосибирск","04722000","МУП \"ППЖКХ № 5 п. Стрелка\"","2454000661","245401001"]
[272,"Город Лесосибирск","Город Лесосибирск","04722000","ОАО \"Лесосибирский ЛДК-1\"","2454003302","245401001"]
[273,"Город Лесосибирск","Город Лесосибирск","04722000","ОАО Енисейская сплавная контора","2454003341","245401001"]
[274,"Город Лесосибирск","Город Лесосибирск","04722000","ООО \"Чистый город\"","2454015837","245401001"]
[275,"Город Минусинск","Город Минусинск","04723000","ЗАО \"Минусинские городские ЭС\"","2455021216","245501001"]
[276,"Город Минусинск","Город Минусинск","04723000","МУП г. Минусинска \"Минусинское городское хозяйство\"","2455029568","245501001"]
[277,"Город Минусинск","Город Минусинск","04723000","МУП города Минусинска \"Горводоканал\"","2455029945","245501001"]
[278,"Город Минусинск","Город Минусинск","04723000","ОАО \"Енисейская ТГК (ТГК-13)\"","1901067718","997450001"]
[279,"Город Минусинск","Город Минусинск","04723000","ОАО \"Енисейская ТГК (ТГК-13)\" Минусинская ТЭЦ","1901067718","245502001"]
[280,"Город Минусинск","Город Минусинск","04723000","ОАО \"Славянка\"","7702707386","246543001"]
[281,"Город Минусинск","Город Минусинск","04723000","ООО \"Ермак\"","2455017724","245501001"]
[282,"Город Минусинск","Город Минусинск","04723000","ООО \"Электрогаз\"","2455023541","245501001"]
[283,"Город Минусинск","Город Минусинск","04723000","ООО \"Электрокомплекс\"","2455031278","245501001"]
[284,"Город Минусинск","Город Минусинск","04723000","ООО «Свет»","2455026165","245501001"]
[285,"Город Назарово","Город Назарово","04726000","МУП \"Комбинат благоустройства и озеленения\"","2456010217","245601001"]
[286,"Город Назарово","Город Назарово","04726000","ОАО \"Енисейская ТГК (ТГК-13)\"","1901067718","997450001"]
[287,"Город Назарово","Город Назарово","04726000","ОАО \"Назаровская ГРЭС\"","2460237901","246001001"]
[288,"Город Назарово","Город Назарово","04726000","ООО \"Водоканал\"","2456009765","245601001"]
[289,"Город Назарово","Город Назарово","04726000","ООО \"Промтеплоэнерго\"","2456011468","245601001"]
[290,"Город Назарово","Город Назарово","04726000","ООО \"ТЕПЛО ПЛЮС\"","2456200049","245601001"]
[291,"Город Назарово","Город Назарово","04726000","ООО \"Тепло\"","2456010986","245601001"]
[292,"Город Назарово","Город Назарово","04726000","Филиал ОАО «СУЭК-Красноярск» «Разрез Назаровский»","2466152267","245602001"]
[293,"Город Норильск","Город Норильск","04729000","\"Норильскэнерго\" - филиал ОАО \"ГМК \"Норильский никель\"","8401005730","245703001"]
[294,"Город Норильск","Город Норильск","04729000","ЗАО \"Оганер-Комплекс\"","2457042370","245701001"]
[295,"Город Норильск","Город Норильск","04729000","МУП \"Канализационно-очистные сооружения\"","2457029066","245701001"]
[296,"Город Норильск","Город Норильск","04729000","Норильский филиал ОАО \"Авиакомпания \"Таймыр\"","8401008386","245703001"]
[297,"Город Норильск","Город Норильск","04729000","ОАО \"Норильско-Таймырская энергетическая компания\"","2457058356","245701001"]
[298,"Город Норильск","Город Норильск","04729000","ОАО \"Таймырэнерго\"","2449002060","243701001"]
[299,"Город Норильск","Город Норильск","04729000","ООО  УК \"Энерготех\"","2457039314","245701001"]
[300,"Город Норильск","Город Норильск","04729000","ООО \"Аэропорт \"Норильск\"","2457067174","245701001"]
[301,"Город Норильск","Город Норильск","04729000","ООО \"Байкал-2000\"","2457047410","245701001"]
[302,"Город Норильск","Город Норильск","04729000","ООО \"ГлавЭнергоСбыт\"","7725571452","770101001"]
[303,"Город Норильск","Город Норильск","04729000","ООО \"Жилищный трест\"","2457055612","245701001"]
[304,"Город Норильск","Город Норильск","04729000","ООО \"НЖЭК\"","2457070804","245701001"]
[305,"Город Норильск","Город Норильск","04729000","ООО \"Нордсервис\"","2457046449","245701001"]
[306,"Город Норильск","Город Норильск","04729000","ООО \"Объединение коммунальников №1\"","2457046142","245701001"]
[307,"Город Норильск","Город Норильск","04729000","ООО \"СеверныйБыт\"","2457072713","245701001"]
[308,"Город Норильск","Город Норильск","04729000","ООО \"Стройбытсервис\"","2457046030","245701001"]
[309,"Город Норильск","Город Норильск","04729000","ООО \"Талнахбыт\"","2457047435","245701001"]
[310,"Дзержинский район","Дзержинское","04613410","ООО \"Дзержинсккоммунсервис\"","2410000495","241001001"]
[311,"Дзержинский район","Дзержинское","04613410","ООО \"Новоком\"","2410004130","241001001"]
[312,"Дзержинский район","Дзержинское","04613410","ООО \"Электросеть\" с. Дзержинское","2410000946","241001001"]
[313,"Дзержинский район","Михайловское","04613419","КГБУ СО «Дзержинский психоневрологический интернат»","2410001361","241001001"]
[314,"Емельяновский муниципальный район","Еловское","04614413","МУП Емельяновского района \"Коммунальщик\"","2411013137","241101001"]
[315,"Емельяновский муниципальный район","Зеледеевское","04614418","КрД по тепловодоснабжению - СП ЦД по тепловодоснабжению -филиал ОАО \"РЖД\"","7708503727","246645014"]
[316,"Емельяновский муниципальный район","Мининское","04614428","КрД по тепловодоснабжению - СП ЦД по тепловодоснабжению -филиал ОАО \"РЖД\"","7708503727","246645014"]
[317,"Емельяновский муниципальный район","Мининское","04614428","МУП Емельяновского района \"Коммунальщик\"","2411013137","241101001"]
[318,"Емельяновский муниципальный район","Поселок Емельяново","04614151","Емельяноское РМП \"Энергосбыт\"","2411004492","241101001"]
[319,"Емельяновский муниципальный район","Поселок Емельяново","04614151","ОАО \"Аэропорт Красноярск\"","2411017710","241101001"]
[320,"Емельяновский муниципальный район","Поселок Емельяново","04614151","ОАО Птицефабрика Заря","2411015247","241101001"]
[321,"Емельяновский муниципальный район","Поселок Емельяново","04614151","ООО \"Аэропорт Емельяново\"","2460213509","241101001"]
[322,"Емельяновский муниципальный район","Поселок Емельяново","04614151","ООО \"Теплогенерирующая компания Емельяново\"","2411021561","241101001"]
[323,"Емельяновский муниципальный район","Поселок Емельяново","04614151","ООО \"Энергия\"","2411019080","241101001"]
[324,"Емельяновский муниципальный район","Поселок Емельяново","04614151","ООО ПСК \"ПроектСтройСервис\"","2411017653","241101001"]
[325,"Емельяновский муниципальный район","Поселок Емельяново","04614151","ООО Производственно-коммерческая фирма \"Красэнергосервис\"","2466072734","246601001"]
[326,"Емельяновский муниципальный район","Солонцовское","04614437","МУП \"Солонцыводоканалсбыт\"","2411016378","241101001"]
[327,"Емельяновский муниципальный район","Солонцовское","04614437","МУП администрации Солонцовского сельсовета \"ТЕПЛОСЕТЬ\"","2411017477","241101001"]
[328,"Емельяновский муниципальный район","Тальское","04614440","МУП ТСА \"Коммунальное обслуживание\"","2411013056","241101001"]
[329,"Емельяновский муниципальный район","Устюгское","04614443","ООО \"ЖилКомСервис\"","2411019643","241101001"]
[330,"Емельяновский муниципальный район","Частоостровское","04614446","МУПЕР \"Частоостровское\"","2411013698","241101001"]
[331,"Емельяновский муниципальный район","Шуваевское","04614449","МУП \"ЖКС\" Шуваево","2411016628","241101001"]
[332,"Емельяновский муниципальный район","Шуваевское","04614449","ОАО \"Славянка\"","7702707386","246543001"]
[333,"Емельяновский муниципальный район","Шуваевское","04614449","ООО \"Региональная тепловая компания\"","2411014638","241101001"]
[334,"Емельяновский муниципальный район","Шуваевское","04614449","ООО \"Электрические сети Енисейского ферросплавного завода\"","2411020825","241101001"]
[335,"Емельяновский муниципальный район","Элитовское","04614404","ЗАО Племенной завод \"Элита\"","2411000346","241101001"]
[336,"Емельяновский муниципальный район","Элитовское","04614404","МУП Емельяновского района \"Коммунальщик\"","2411013137","241101001"]
[337,"Енисейский муниципальный район","Абалаковское","04615402","ОАО \"Красноярскнефтепродукт\" филиал \"Северный\"","2460002949","244701001"]
[338,"Енисейский муниципальный район","Абалаковское","04615402","ОАО \"Северное\"","2447007874","244701001"]
[339,"Енисейский муниципальный район","Верхнепашинское","04615407","ОАО \"Северное\"","2447007874","244701001"]
[340,"Енисейский муниципальный район","Высокогорское","04615408","ОАО \"Северное\"","2447007874","244701001"]
[341,"Енисейский муниципальный район","Городищенское","04615410","ОАО \"Северное\"","2447007874","244701001"]
[342,"Енисейский муниципальный район","Епишинское","04615409","ОАО \"Северное\"","2447007874","244701001"]
[343,"Енисейский муниципальный район","Луговатское","04615416","ООО \"Безымянское\"","2447009293","244701001"]
[344,"Енисейский муниципальный район","Малобельское","04615421","ОАО \"Северное\"","2447007874","244701001"]
[345,"Енисейский муниципальный район","Новогородокское","04615434","ОАО \"Северное\"","2447007874","244701001"]
[346,"Енисейский муниципальный район","Новокаргинское","04615437","ОАО \"Северное\"","2447007874","244701001"]
[347,"Енисейский муниципальный район","Новоназимовское","04615425","ООО \"Коммунальщик-Н\"","2447008966","244701001"]
[348,"Енисейский муниципальный район","Озерновское","04615439","ОАО \"Северное\"","2447007874","244701001"]
[349,"Енисейский муниципальный район","Плотбищенское","04615440","ОАО \"Северное\"","2447007874","244701001"]
[350,"Енисейский муниципальный район","Погодаевское","04615441","ОАО \"Северное\"","2447007874","244701001"]
[351,"Енисейский муниципальный район","Поселок Подтесово","04615155","ОАО \"Северное\"","2447007874","244701001"]
[352,"Енисейский муниципальный район","Потаповское","04615446","ОАО \"Северное\"","2447007874","244701001"]
[353,"Енисейский муниципальный район","Усть-Кемское","04615452","ОАО \"Северное\"","2447007874","244701001"]
[354,"Енисейский муниципальный район","Усть-Питское","04615455","ОАО \"Северное\"","2447007874","244701001"]
[355,"Енисейский муниципальный район","Чалбышевское","04615456","ОАО \"Северное\"","2447007874","244701001"]
[356,"Енисейский муниципальный район","Шапкинское","04615457","ОАО \"Северное\"","2447007874","244701001"]
[357,"Енисейский муниципальный район","Ярцевское","04615458","ОАО \"Северное\"","2447007874","244701001"]
[358,"Енисейский муниципальный район","Ярцевское","04615458","ООО \"Ярцевская лесопромышленная компания\"","2447007031","244701001"]
[359,"Енисейский муниципальный район","Ярцевское","04615458","Ярцевский филиал ОАО \"Лесосибирский ЛДК 1\"","2454003302","244702002"]
[360,"Ермаковский муниципальный район","Верхнеусинское","04616404","ООО \"Квант\"","2413006431","241301001"]
[361,"Ермаковский муниципальный район","Григорьевское","04616407","ООО \"Квант\"","2413006431","241301001"]
[362,"Ермаковский муниципальный район","Ермаковский муниципальный район","04616000","ООО \"Квант\"","2413006431","241301001"]
[363,"Ермаковский муниципальный район","Ермаковское","04616410","ОАО \"Славянка\"","7702707386","246543001"]
[364,"Ермаковский муниципальный район","Ермаковское","04616410","ООО \"Жилкомхоз\" Ермаковский район","2413006400","241301001"]
[365,"Ермаковский муниципальный район","Ермаковское","04616410","ООО \"Квант\"","2413006431","241301001"]
[366,"Ермаковский муниципальный район","Ермаковское","04616410","ООО \"Тепловик 2\"","2413006167","241301001"]
[367,"Ермаковский муниципальный район","Ермаковское","04616410","ООО \"Топаз\"","2413006600","241301001"]
[368,"Ермаковский муниципальный район","Ивановское","04616414","ООО \"Квант\"","2413006431","241301001"]
[369,"Ермаковский муниципальный район","Мигнинское","04616416","ООО \"Квант\"","2413006431","241301001"]
[370,"Ермаковский муниципальный район","Нижнесуэтукское","04616419","ООО \"Квант\"","2413006431","241301001"]
[371,"Ермаковский муниципальный район","Новополтавское","04616422","ООО \"Квант\"","2413006431","241301001"]
[372,"Ермаковский муниципальный район","Ойское","04616428","ООО \"Квант\"","2413006431","241301001"]
[373,"Ермаковский муниципальный район","Разъезженское","04616425","ООО \"Квант\"","2413006431","241301001"]
[374,"Ермаковский муниципальный район","Салбинское","04616429","ООО \"Квант\"","2413006431","241301001"]
[375,"Ермаковский муниципальный район","Семенниковское","04616431","ООО \"Квант\"","2413006431","241301001"]
[376,"Ермаковский муниципальный район","Танзыбейское","04616434","МУП \"Стимул\"","2413007273","241301001"]
[377,"Ермаковский муниципальный район","Танзыбейское","04616434","ООО \"Квант\"","2413006431","241301001"]
[378,"ЗАТО г. Зеленогорск","ЗАТО г. Зеленогорск","04737000","МУП Комбинат благоустройства","2453003959","245301001"]
[379,"ЗАТО г. Зеленогорск","ЗАТО г. Зеленогорск","04737000","МУП ЭС г. Зеленогорска","2453008636","245301001"]
[380,"ЗАТО г. Зеленогорск","ЗАТО г. Зеленогорск","04737000","МУП тепловых сетей г.Зеленогорска","2453000242","245301001"]
[381,"ЗАТО г. Зеленогорск","ЗАТО г. Зеленогорск","04737000","ОАО \"АтомЭнергоСбыт\"","7704228075","770401001"]
[382,"ЗАТО г. Зеленогорск","ЗАТО г. Зеленогорск","04737000","ОАО \"Управление строительства - 604\"","2453000901","245301001"]
[383,"ЗАТО г. Зеленогорск","ЗАТО г. Зеленогорск","04737000","ООО \"УЭС УС-604\"","2453016531","245301001"]
[384,"ЗАТО г. Зеленогорск","ЗАТО г. Зеленогорск","04737000","Филиал ОАО \"ОГК-6\"  Красноярская ГРЭС-2","6164232756","245302001"]
[385,"ЗАТО г. Зеленогорск","ЗАТО г. Зеленогорск","04737000","Филиал ОАО «ОГК-2» - Красноярская ГРЭС-2","2607018122","245343001"]
[386,"ЗАТО г.Железногорск","ЗАТО г.Железногорск","04735000","Красноярский филиал ОАО \"НИКИМТ-Атомстрой\"","7715719854","245243001"]
[387,"ЗАТО г.Железногорск","ЗАТО г.Железногорск","04735000","МП ЗАТО Железногорск \"Гортеплоэнерго\"","2452024096","245201001"]
[388,"ЗАТО г.Железногорск","ЗАТО г.Железногорск","04735000","МП ЗАТО края \"Жилищно-коммунальное хозяйство\" п. Подгорный","2452018455","245201001"]
[389,"ЗАТО г.Железногорск","ЗАТО г.Железногорск","04735000","ОАО \"АтомЭнергоСбыт\"","7704228075","770401001"]
[390,"ЗАТО г.Железногорск","ЗАТО г.Железногорск","04735000","ОАО \"ЕнисейАтомЭнергоСбыт\"","2452026696","245201001"]
[391,"ЗАТО г.Железногорск","ЗАТО г.Железногорск","04735000","ООО \"Промтехэнерго\"","2452028291","245201001"]
[392,"ЗАТО г.Железногорск","ЗАТО г.Железногорск","04735000","ООО \"Станция теплоснабжения\"","2452201637","245201001"]
[393,"ЗАТО г.Железногорск","ЗАТО г.Железногорск","04735000","ООО \"Технополис\"","2452026520","245201001"]
[394,"ЗАТО г.Железногорск","ЗАТО г.Железногорск","04735000","ФГУП \" Горно-химический комбинат\"","2452000401","245201001"]
[395,"ЗАТО г.Железногорск","ЗАТО г.Железногорск","04735000","Химический завод - филиал ОАО  \"Красноярский машиностроительный завод\"","2462206345","245243001"]
[396,"ЗАТО п.Солнечный","ЗАТО п.Солнечный","04780000","МУП \"ЖКХ\" ЗАТО Солнечный","2439005538","243901001"]
[397,"Идринский муниципальный раойон","Идринское","04617422","ЗАО Заря","2414002623","241401001"]
[398,"Идринский муниципальный раойон","Идринское","04617422","МП \"Служба благоустройства\"","2414003930","241401001"]
[399,"Идринский муниципальный раойон","Идринское","04617422","ООО \"Коммунальщик\"","2414004116","241401001"]
[400,"Иланский муниципальный район","Ельниковское","04618404","МУПП \"Тайга\"","2415005049","241501001"]
[401,"Иланский муниципальный район","Карапсельское","04618407","ООО \"Красный хлебороб\"","2415003411","241501001"]
[402,"Иланский муниципальный район","Новониколаевское","04618416","ООО \"Артезиан\"","2415005803","241501001"]
[403,"Иланский муниципальный район","Южно-Александровское","04618425","ООО \"Артезиан\"","2415005803","241501001"]
[404,"Иланский муниципальный район","г. Иланский","04618101","КрД по тепловодоснабжению - СП ЦД по тепловодоснабжению -филиал ОАО \"РЖД\"","7708503727","246645014"]
[405,"Иланский муниципальный район","г. Иланский","04618101","ООО \"ЖКХ\"","2415005384","241501001"]
[406,"Иланский муниципальный район","г. Иланский","04618101","ООО \"ТЭЖК\"","2415005391","241501001"]
[407,"Ирбейский муниципальный район","Благовещенское","04619404","Благовещенский сельский совет","2416001544","241601001"]
[408,"Ирбейский муниципальный район","Верхнеуринское","04619407","ВСМУП \"Жилкомсервис\"","2416005517","241601001"]
[409,"Ирбейский муниципальный район","Верхнеуринское","04619407","ООО Совхоз Елисеевский","2416005771","241601001"]
[410,"Ирбейский муниципальный район","Ивановское","04619410","Ивановский сельский совет","2416001569","241601001"]
[411,"Ирбейский муниципальный район","Изумрудновское","04619411","Изумрудновский сельский совет","2416001576","241601001"]
[412,"Ирбейский муниципальный район","Изумрудновское","04619411","Изумрудновское МУП \"Лидер\"","2416004626","241601001"]
[413,"Ирбейский муниципальный район","Ирбейское","04619413","Ирбейское РМУП ЖКХ","2416004471","241601001"]
[414,"Ирбейский муниципальный район","Ирбейское","04619413","СПК \"Майский\"","2416005789","241601001"]
[415,"Ирбейский муниципальный район","Мельничное","04619419","Мельничный сельский совет","2416001590","241601001"]
[416,"Ирбейский муниципальный район","Сергеевское","04619425","Сергеевский сельский совет","2416001600","241601001"]
[417,"Ирбейский муниципальный район","Степановское","04619429","Степановский сельский совет","2416001625","241601001"]
[418,"Ирбейский муниципальный район","Тальское","04619431","Тальский сельский совет","2416001632","241601001"]
[419,"Ирбейский муниципальный район","Тумаковское","04619443","Тумаковский сельский совет","2416001640","241601001"]
[420,"Ирбейский муниципальный район","Успенское","04619434","Успенский сельский совет","2416001671","241601001"]
[421,"Ирбейский муниципальный район","Усть-Каначульское","04619437","Усть-Каначульский сельский совет","2416001689","241601001"]
[422,"Ирбейский муниципальный район","Усть-Ярульское","04619440","МУП Усть-Ярульское \"Тройка\"","2416004633","241601001"]
[423,"Ирбейский муниципальный район","Усть-Ярульское","04619440","Усть-Ярульский сельский совет","2416001664","241601001"]
[424,"Ирбейский муниципальный район","Чухломинское","04619450","Чухломинский сельский совет","2416001696","241601001"]
[425,"Ирбейский муниципальный район","Юдинское","04619416","МУП \"ЮДИНСКОЕ ЖКХ\"","2416004619","241601001"]
[426,"Казачинский муниципальный район","Казачинское","04620413","ООО \"Казачинский теплоэнергокомплекс\"","2417002981","241701001"]
[427,"Канский муниципальный район","Анцирское","04621404","ООО \"Коммунал-Сервис\"","2450025129","245001001"]
[428,"Канский муниципальный район","Анцирское","04621404","ООО Теплосервис","2450025753","245001001"]
[429,"Канский муниципальный район","Астафьевское","04621407","ООО \"Коммунал-Сервис\"","2450025129","245001001"]
[430,"Канский муниципальный район","Большеуринское","04621410","ЗАО \"Большеуринское\"","2450012828","245001001"]
[431,"Канский муниципальный район","Браженское","04621413","ООО \"Браженский ЖЭК\"","2450024090","245001001"]
[432,"Канский муниципальный район","Верх-Амонашенское","04621416","ООО \"ЖКС Чечеульский\"","2450024069","245001001"]
[433,"Канский муниципальный район","Мокрушинское","04621425","ЗАО Разрез Канский","2450024566","245001001"]
[434,"Канский муниципальный район","Сотниковское","04621434","ЗАО \"Арефьевское\"","2450012909","245001001"]
[435,"Канский муниципальный район","Сотниковское","04621434","ООО \"Коммунал-Сервис\"","2450025129","245001001"]
[436,"Канский муниципальный район","Сотниковское","04621434","ООО \"Коммунальщик\" Канский район","2450024774","245001001"]
[437,"Канский муниципальный район","Таеженское","04621436","ООО \"Таежное\"","2450028715","245001001"]
[438,"Канский муниципальный район","Терское","04621437","ОАО Племзавод \"Красный Маяк\"","2450013518","245001001"]
[439,"Канский муниципальный район","Филимоновское","04621438","ОАО \"Филимоновский МКК\"","2418002889","245001001"]
[440,"Канский муниципальный район","Филимоновское","04621438","ООО \"ЖЭК Восточный\"","2450025665","245001001"]
[441,"Канский муниципальный район","Филимоновское","04621438","ООО \"Филимоновский жилищный комплекс\"","2450024012","245001001"]
[442,"Канский муниципальный район","Чечеульское","04621440","ЗАО \"Птицефабрика \"Канская\"","2450024661","245001001"]
[443,"Каратузский муниципальный район","Верхнекужебарское","04622404","ООО \"Каратузский Тепло Водо Канал\"","2419005466","241901001"]
[444,"Каратузский муниципальный район","Каратузский муниципальный район","04622000","ООО \"Каратузский Тепло Водо Канал\"","2419005466","241901001"]
[445,"Каратузский муниципальный район","Каратузское","04622407","ГП КК \"Каратузское АТП\"","2419000348","241901001"]
[446,"Каратузский муниципальный район","Каратузское","04622407","ООО \"Каратузский Тепло Водо Канал\"","2419005466","241901001"]
[447,"Каратузский муниципальный район","Моторское","04622413","ООО \"Каратузский Тепло Водо Канал\"","2419005466","241901001"]
[448,"Каратузский муниципальный район","Нижнекужебарское","04622416","ООО \"Каратузский Тепло Водо Канал\"","2419005466","241901001"]
[449,"Каратузский муниципальный район","Таскинское","04622428","ООО \"Каратузский Тепло Водо Канал\"","2419005466","241901001"]
[450,"Каратузский муниципальный район","Уджейское","04622432","ООО \"Каратузский Тепло Водо Канал\"","2419005466","241901001"]
[451,"Каратузский муниципальный район","Черемушинское","04622434","ООО \"Каратузский Тепло Водо Канал\"","2419005466","241901001"]
[452,"Кежемский муниципальный район","Город Кодинск","04624101","Кодинское МУП ЖКХ Кежемского района","2420070117","242001001"]
[453,"Кежемский муниципальный район","Город Кодинск","04624101","МУП \"Санитарная служба Кежемского района\"","2420008006","242001001"]
[454,"Кежемский муниципальный район","Город Кодинск","04624101","ОАО \"Богучанская ГЭС\"","2420002597","246750001"]
[455,"Кежемский муниципальный район","Город Кодинск","04624101","ООО \"Красноярская региональная энергетическая компания\"","2466118202","246001001"]
[456,"Кежемский муниципальный район","Город Кодинск","04624101","ФБУ ОИУ-1 ОУХД ГУФСИН России по Красн краю","2420006496","242001001"]
[457,"Кежемский муниципальный район","Заледеевское","04624403","Кодинское МУП ЖКХ Кежемского района","2420070117","242001001"]
[458,"Кежемский муниципальный район","Заледеевское","04624403","ООО \"Красноярская региональная энергетическая компания\"","2466118202","246001001"]
[459,"Кежемский муниципальный район","Имбинское","04624406","Кодинское МУП ЖКХ Кежемского района","2420070117","242001001"]
[460,"Кежемский муниципальный район","Имбинское","04624406","ООО \"Красноярская региональная энергетическая компания\"","2466118202","246001001"]
[461,"Кежемский муниципальный район","Недокурское","04624407","Кодинское МУП ЖКХ Кежемского района","2420070117","242001001"]
[462,"Кежемский муниципальный район","Недокурское","04624407","ООО \"Красноярская региональная энергетическая компания\"","2466118202","246001001"]
[463,"Кежемский муниципальный район","Пановское","04624410","ФБУ ОИУ-8 ОУХД ГУФСИН России по Красноярскому краю","3817009542","241701001"]
[464,"Кежемский муниципальный район","Тагарское","04624412","ООО \"Красноярская региональная энергетическая компания\"","2466118202","246001001"]
[465,"Кежемский муниципальный район","Таежинское","04624416","ООО \"Красноярская региональная энергетическая компания\"","2466118202","246001001"]
[466,"Козульский муниципальный район","Лазурненское","04626409","ОАО \"Транссибнефть\" филиал Красноярское РНУ","5502020634","246603001"]
[467,"Козульский муниципальный район","Лазурненское","04626409","ОАО \"Транссибнефть\"Красноярское РНУ Кемчугская НПС","5502020634","242103001"]
[468,"Козульский муниципальный район","Поселок Козулька","04626151","КрД по тепловодоснабжению - СП ЦД по тепловодоснабжению -филиал ОАО \"РЖД\"","7708503727","246645014"]
[469,"Козульский муниципальный район","Поселок Козулька","04626151","МУП \"Жилищно-коммунальный сервис\"","2421003522","242101001"]
[470,"Козульский муниципальный район","Поселок Козулька","04626151","ОАО \"Славянка\"","7702707386","246543001"]
[471,"Козульский муниципальный район","Поселок Козулька","04626151","ООО \"Красноярская региональная энергетическая компания\"","2466118202","246001001"]
[472,"Козульский муниципальный район","Поселок Козулька","04626151","ООО \"Приоритет плюс\"","2421003681","242101001"]
[473,"Козульский муниципальный район","Поселок Козулька","04626151","ООО \"Прогресс\"","2421003674","242101001"]
[474,"Козульский муниципальный район","поселок Новочернореченский","04626154","КрД по тепловодоснабжению - СП ЦД по тепловодоснабжению -филиал ОАО \"РЖД\"","7708503727","246645014"]
[475,"Козульский муниципальный район","поселок Новочернореченский","04626154","ООО \"Красноярская региональная энергетическая компания\"","2466118202","246001001"]
[476,"Краснотуранский муниципальный район","Беллыкское","04628404","Краснотуранское РМПП ЖКХ","2422000884","242201001"]
[477,"Краснотуранский муниципальный район","Восточное","04628407","Краснотуранское РМПП ЖКХ","2422000884","242201001"]
[478,"Краснотуранский муниципальный район","Кортузское","04628411","Краснотуранское РМПП ЖКХ","2422000884","242201001"]
[479,"Краснотуранский муниципальный район","Краснотуранское","04628413","Краснотуранское РМПП ЖКХ","2422000884","242201001"]
[480,"Краснотуранский муниципальный район","Лебяженское","04628416","Краснотуранское РМПП ЖКХ","2422000884","242201001"]
[481,"Краснотуранский муниципальный район","Николаевка","04628400","Краснотуранское РМПП ЖКХ","2422000884","242201001"]
[482,"Краснотуранский муниципальный район","Новосыдинское","04628419","Краснотуранское РМПП ЖКХ","2422000884","242201001"]
[483,"Краснотуранский муниципальный район","Салбинское","04628421","Краснотуранское РМПП ЖКХ","2422000884","242201001"]
[484,"Краснотуранский муниципальный район","Саянское","04628425","Краснотуранское РМПП ЖКХ","2422000884","242201001"]
[485,"Краснотуранский муниципальный район","Тубинское","04628428","ЗАО \"Тубинск\"","2422392039","242201001"]
[486,"Курагинский муниципальный район","Березовское","04630404","ООО \"ВиКтория\"","2423013685","242301001"]
[487,"Курагинский муниципальный район","Березовское","04630404","ООО \"Марининский ЭнергоРесурс\"","2423010846","242301001"]
[488,"Курагинский муниципальный район","Брагинское","04630407","ООО \"Марининский ЭнергоРесурс\"","2423010846","242301001"]
[489,"Курагинский муниципальный район","Детловское","04630410","ООО \"Марининский ЭнергоРесурс\"","2423010846","242301001"]
[490,"Курагинский муниципальный район","Кочергинское","04630420","ООО \"Курагинский ЖилКомСервис\"","2423010821","242301001"]
[491,"Курагинский муниципальный район","Кочергинское","04630420","ООО \"Курагинский Энергосервис\"","2423013484","242301001"]
[492,"Курагинский муниципальный район","Кочергинское","04630420","ФГУ \"Комбинат \"Ангара\" Росрезерва","2423005532","242301001"]
[493,"Курагинский муниципальный район","Курское","04630422","ООО \"Прогресс\"","2423013149","242301001"]
[494,"Курагинский муниципальный район","Марининское","04630413","ООО \"Курагинский Энергосервис\"","2423013484","242301001"]
[495,"Курагинский муниципальный район","Марининское","04630413","ООО \"Марининский ЭнергоРесурс\"","2423010846","242301001"]
[496,"Курагинский муниципальный район","Можарское","04630425","ООО \"Лидер\"","2423013780","242301001"]
[497,"Курагинский муниципальный район","Поселок Кошурниково","04630153","ООО \"Кошурниковские Энергосети\"","2423013879","242301001"]
[498,"Курагинский муниципальный район","Поселок Кошурниково","04630153","ООО \"Краснокаменские энергосети\"","2423011350","242301001"]
[499,"Курагинский муниципальный район","Поселок Кошурниково","04630153","ООО «Курагинский ЭнергоРесурс»","2423013283","242301001"]
[500,"Курагинский муниципальный район","Поселок Курагино","04630151","ООО \"Курагинский ТеплоВодоКанал\"","2423010726","242301001"]
[501,"Курагинский муниципальный район","Поселок Курагино","04630151","ООО Электросантехсервис","2423009417","242301001"]
[502,"Курагинский муниципальный район","Рощинское","04630442","ООО \"Лидер\"","2423013780","242301001"]
[503,"Курагинский муниципальный район","Черемшанкское","04630446","МП \"Забота\"","2423011198","242301001"]
[504,"Курагинский муниципальный район","Шалоболинское","04630449","ООО \"Лидер\"","2423013780","242301001"]
[505,"Курагинский муниципальный район","Щетинкинское","04630452","ООО \"Прогресс\"","2423013149","242301001"]
[506,"Курагинский муниципальный район","город Артемовск","04630102","ООО \"Марининский ЭнергоРесурс\"","2423010846","242301001"]
[507,"Курагинский муниципальный район","поселок Большая Ирба","04630152","ООО \"Ирбинские энергосети\"","2423009921","242301001"]
[508,"Курагинский муниципальный район","поселок Краснокаменск","04630154","ООО \"Краснокаменские энергосети\"","2423011350","242301001"]
[509,"Курагинский муниципальный район","поселок Чибижек","04630156","ООО \"Марининский ЭнергоРесурс\"","2423010846","242301001"]
[510,"Манский муниципальный район","Выезжелогское","04631404","КрД по тепловодоснабжению - СП ЦД по тепловодоснабжению -филиал ОАО \"РЖД\"","7708503727","246645014"]
[511,"Манский муниципальный район","Камарчагское","04631407","КрД по тепловодоснабжению - СП ЦД по тепловодоснабжению -филиал ОАО \"РЖД\"","7708503727","246645014"]
[512,"Манский муниципальный район","Камарчагское","04631407","МУП ЖКХ Нижне-Есауловское","2424006715","242401001"]
[513,"Манский муниципальный район","Камарчагское","04631407","ООО \"Жилфонд\"","2424006842","242401001"]
[514,"Манский муниципальный район","Камарчагское","04631407","ООО «Атланта Красноярск»","2466226279","246601001"]
[515,"Манский муниципальный район","Каменское","04631408","МУП ЖКХ Нижне-Есауловское","2424006715","242401001"]
[516,"Манский муниципальный район","Колбинское","04631413","МУП \"Колбинское ЖКХ\"","2424007162","242401001"]
[517,"Манский муниципальный район","Нарвинское","04631416","ООО «Манский механический завод»","2424006793","242401001"]
[518,"Манский муниципальный район","Первоманское","04631421","ООО \"Жилпрогресс\"","2465209048","242401001"]
[519,"Манский муниципальный район","Унгутское","04631434","ООО \"Унгутский ЖКУ\"","2424003760","242401001"]
[520,"Манский муниципальный район","Шалинское","04631437","ООО \"Коммунальное хозяйство\"","2424005824","242401001"]
[521,"Минусинский муниципальный район","Большеничкинское","04633404","ООО \"ЖКХ\" Минусинский район","2455026020","245501001"]
[522,"Минусинский муниципальный район","Городокское","04633410","ООО \"ЖКХ\" Минусинский район","2455026020","245501001"]
[523,"Минусинский муниципальный район","Жерлыкское","04633412","ООО \"ЖКХ\" Минусинский район","2455026020","245501001"]
[524,"Минусинский муниципальный район","Знаменское","04633413","ООО \"ЖКХ\" Минусинский район","2455026020","245501001"]
[525,"Минусинский муниципальный район","Кавказское","04633416","ООО \"ЖКХ\" Минусинский район","2455026020","245501001"]
[526,"Минусинский муниципальный район","Лугавское","04633420","ООО \"ЖКХ\" Минусинский район","2455026020","245501001"]
[527,"Минусинский муниципальный район","Маломинусинское","04633422","ООО \"ЖКХ\" Минусинский район","2455026020","245501001"]
[528,"Минусинский муниципальный район","Минусинский муниципальный район","04633000","ООО \"ЖКХ\" Минусинский район","2455026020","245501001"]
[529,"Минусинский муниципальный район","Новотроицкое","04633426","ООО \"ЖКХ\" Минусинский район","2455026020","245501001"]
[530,"Минусинский муниципальный район","Прихолмское","04633423","ООО \"ЖКХ\" Минусинский район","2455026020","245501001"]
[531,"Минусинский муниципальный район","Селиванихинское","04633424","ООО \"ЖКХ\" Минусинский район","2455026020","245501001"]
[532,"Минусинский муниципальный район","Тесинское","04633402","ОАО \"Енисейская ТГК (ТГК-13)\"","1901067718","997450001"]
[533,"Минусинский муниципальный район","Тесинское","04633402","ОАО \"Енисейская ТГК (ТГК-13)\" Минусинская ТЭЦ","1901067718","245502001"]
[534,"Минусинский муниципальный район","Тесинское","04633402","ОАО \"Южно-Енисейские тепловые сети\"","2460237860","246001001"]
[535,"Минусинский муниципальный район","Тесинское","04633402","ОАО Электрокомплекс","2455011881","245501001"]
[536,"Минусинский муниципальный район","Тесинское","04633402","ООО \"ЖКХ\" Минусинский район","2455026020","245501001"]
[537,"Минусинский муниципальный район","Тигрицкое","04633425","ООО \"ЖКХ\" Минусинский район","2455026020","245501001"]
[538,"Мотыгинский муниципальный район","Машуковское","04635410","ММУП ЖКХ «Коммунальник»","2426004946","242601001"]
[539,"Мотыгинский муниципальный район","Машуковское","04635410","МУП ЖКХ Машуковский","2426004128","242601001"]
[540,"Мотыгинский муниципальный район","Новоангарское","04635412","ООО УК Сервис","2426004826","242601001"]
[541,"Мотыгинский муниципальный район","Орджоникидзевское","04635413","ООО Ритм","2426003780","242601001"]
[542,"Мотыгинский муниципальный район","Партизанское","04635416","ООО \"Импульс\"","2426004706","242601001"]
[543,"Мотыгинский муниципальный район","поселок Мотыгино","04635151","ООО \"Актор\"","2426004907","242601001"]
[544,"Мотыгинский муниципальный район","поселок Мотыгино","04635151","ООО \"Первомайское ЖКХ\"","2426003903","242601001"]
[545,"Мотыгинский муниципальный район","поселок Мотыгино","04635151","ООО \"УК Комплекс\"","2426004287","242601001"]
[546,"Мотыгинский муниципальный район","поселок Мотыгино","04635151","ООО \"Универсал\"","2426003685","242601001"]
[547,"Мотыгинский муниципальный район","поселок Мотыгино","04635151","ООО Мотыгинский водоканал","2426004329","242601001"]
[548,"Мотыгинский муниципальный район","поселок Раздолинск","04635154","ЗАО \"Прииск Удерейский\"","2426003621","242601001"]
[549,"Мотыгинский муниципальный район","поселок Раздолинск","04635154","ООО \"МГК Ангара\"","2426004544","242601001"]
[550,"Мотыгинский муниципальный район","поселок Раздолинск","04635154","ООО \"Энергия\"","2426004713","242601001"]
[551,"Мотыгинский муниципальный район","поселок Южно-Енисейск","04635157","ООО \"Теплосети\"","2426004294","242601001"]
[552,"Назаровский муниципальный район","Гляденское","04637407","КрД по тепловодоснабжению - СП ЦД по тепловодоснабжению -филиал ОАО \"РЖД\"","7708503727","246645014"]
[553,"Назаровский муниципальный район","Гляденское","04637407","ООО \"Районное коммунальное хозяйство\" Назаровского района","2456013264","245601001"]
[554,"Назаровский муниципальный район","Дороховское","04637410","МУП \"ЖКХ Назаровского района\"","2456009853","245601001"]
[555,"Назаровский муниципальный район","Краснополянское","04637431","ООО \"Районное коммунальное хозяйство\" Назаровского района","2456013264","245601001"]
[556,"Назаровский муниципальный район","Красносопкинское","04637413","МУП \"Красносопкинское ЖКХ\"","2456009998","245601001"]
[557,"Назаровский муниципальный район","Павловское","04637419","МУП \"ЖКХ Назаровского района\"","2456009853","245601001"]
[558,"Назаровский муниципальный район","Подсосенское","04637422","МУП \"ЖКХ Назаровского района\"","2456009853","245601001"]
[559,"Назаровский муниципальный район","Преображенское","04637425","МУП \"ЖКХ Назаровского района\"","2456009853","245601001"]
[560,"Назаровский муниципальный район","Преображенское","04637425","СХП ЗАО \"Владимировское\"","2427000567","245601001"]
[561,"Назаровский муниципальный район","Сахаптинское","04637428","МУП \"Сахаптинское ЖКХ\"","2456011683","245601001"]
[562,"Назаровский муниципальный район","Степное","04637437","ЗАО \"Назаровское\"","2427000415","245601001"]
[563,"Нижнеингашский муниципальный район","Канифольнинское","04639410","ООО \"Канифольнинский коммунальный комплекс\"","2428004780","242801001"]
[564,"Нижнеингашский муниципальный район","Поселок Нижняя Пойма","04639154","МУП \"Сибсервис\"","2428005222","242801001"]
[565,"Нижнеингашский муниципальный район","Поселок Нижняя Пойма","04639154","Решотинский шпалопропиточный завод - филиал ОАО \"ТрансВудСервис\"","7708503727","246631008"]
[566,"Нижнеингашский муниципальный район","Поселок Тинской","04639160","ООО \"Велес\"","2428004469","242801001"]
[567,"Нижнеингашский муниципальный район","Тинское","04639440","ООО Красэкспортлес","2465072354","246501001"]
[568,"Нижнеингашский муниципальный район","поселок Нижний Ингаш","04639151","МУЗ Нижнеингашская ЦРБ","2428001700","242801001"]
[569,"Нижнеингашский муниципальный район","поселок Нижний Ингаш","04639151","ООО \"Нижнеингашский коммунальный комплекс\"","2428004331","242801001"]
[570,"Новоселовский муниципальный район","Анашенское","04641402","ООО \"Анашенский тепловодоканал\"","2429002785","242901001"]
[571,"Новоселовский муниципальный район","Легостаевское","04641408","МУП \"Легостаевское ПП ЖКХ\"","2429002697","242901001"]
[572,"Новоселовский муниципальный район","Новоселовское","04641409","МУП \"Тепловые сети\" администрации Новоселовского района","2429002111","242901001"]
[573,"Новоселовский муниципальный район","Новоселовское","04641409","ООО \"Водоканал Плюс\"","2429002802","242901001"]
[574,"Новоселовский муниципальный район","Новоселовское","04641409","ООО \"Тепловые сети\"","2429002810","242901001"]
[575,"Новоселовский муниципальный район","Новоселовское","04641409","ООО УО \"Жилсервис\"","2429002560","242901001"]
[576,"Новоселовский муниципальный район","Светлолобовское","04641410","МУП \"Коммунальщик\"","2429002760","242901001"]
[577,"Новоселовский муниципальный район","Толстомысинское","04641413","МУП \"Толстомысенское ПП ЖКХ\"","2429002263","242901001"]
[578,"Новоселовский муниципальный район","Чулымское","04641417","ООО \"Водоканал Плюс\"","2429002802","242901001"]
[579,"Партизанский муниципальный район","Имбежское","04643410","ООО \"Имбеж\"","2430003173","243001001"]
[580,"Партизанский муниципальный район","Минское","04643419","ООО \"Саяны\"","2430003215","243001001"]
[581,"Партизанский муниципальный район","Партизанское","04643422","ООО \"Ритм\"","2430003247","243001001"]
[582,"Пировский муниципальный район","Кетское","04645417","ООО \"Стратегия Норд\"","2454017506","245401001"]
[583,"Пировский муниципальный район","Пировский муниципальный район","04645000","ООО \"Стратегия Норд\"","2454017506","245401001"]
[584,"Пировский муниципальный район","Пировское","04645425","ООО \"Стратегия Норд\"","2454017506","245401001"]
[585,"Поселок Кедровый","Поселок Кедровый","04775000","ООО \"Кедр\"","2411021113","241101001"]
[586,"Поселок Кедровый","Поселок Кедровый","04775000","ООО \"Красноярская региональная энергетическая компания\"","2466118202","246001001"]
[587,"Рыбинский муниципальный район","Город Заозерный","04647101","ООО \"Красноярская региональная энергетическая компания\"","2466118202","246001001"]
[588,"Рыбинский муниципальный район","Город Заозерный","04647101","ООО \"Эколог плюс\"","2448005439","244880100"]
[589,"Рыбинский муниципальный район","Город Заозерный","04647101","ООО Рыбинский КК","2448005277","244801001"]
[590,"Рыбинский муниципальный район","Новосолянское","04647434","КрД по тепловодоснабжению - СП ЦД по тепловодоснабжению -филиал ОАО \"РЖД\"","7708503727","246645014"]
[591,"Рыбинский муниципальный район","Новосолянское","04647434","ООО \"Агропромкомплект\"","2448002332","244801001"]
[592,"Рыбинский муниципальный район","Новосолянское","04647434","ООО ЖКК Солянский","2448005206","244801001"]
[593,"Рыбинский муниципальный район","Поселок Саянский","04647160","КрД по тепловодоснабжению - СП ЦД по тепловодоснабжению -филиал ОАО \"РЖД\"","7708503727","246645014"]
[594,"Рыбинский муниципальный район","Поселок Саянский","04647160","ООО \"ЖКС\" п. Саянский","2448004273","244801001"]
[595,"Рыбинский муниципальный район","Поселок Урал","04647165","ООО \"Строительная компания\"","2452023938","245201001"]
[596,"Рыбинский муниципальный район","Поселок Урал","04647165","ООО \"Уральские тепловые сети\"","2448004562","244801001"]
[597,"Рыбинский муниципальный район","поселок Ирша","04647155","ООО \"Строительная компания\"","2452023938","245201001"]
[598,"Саянский муниципальный район","Агинское","04648402","МУП УК ЖКХ \"Агинское\"","2433004168","243301001"]
[599,"Саянский муниципальный район","Агинское","04648402","ООО \"СКК\"","2433004182","243301001"]
[600,"Саянский муниципальный район","Агинское","04648402","ООО \"Фиштраст\"","2433003862","243301001"]
[601,"Саянский муниципальный район","Агинское","04648402","ООО Агрокомплект","2465273090","246501001"]
[602,"Саянский муниципальный район","Агинское","04648402","ООО Коммунальщик Саянский район","2433003848","243301001"]
[603,"Саянский муниципальный район","Кулижниковское","04648419","ООО Агрокомплект","2465273090","246501001"]
[604,"Саянский муниципальный район","Саянский муниципальный район","04648000","ООО Агрокомплект","2465273090","246501001"]
[605,"Саянский муниципальный район","Тугачинское","04648437","ООО Агрокомплект","2465273090","246501001"]
[606,"Саянский муниципальный район","Унерское","04648440","ООО Агрокомплект","2465273090","246501001"]
[607,"Северо-Енисейский муниципальный район","Поселок Северо-Енисейский","04649151","ЗАО \"ЗДК Полюс\"","2434000335","243401001"]
[608,"Северо-Енисейский муниципальный район","Поселок Северо-Енисейский","04649151","МУП \"УКК\" Северо-Енисейского района\"","2434001177","243401001"]
[609,"Северо-Енисейский муниципальный район","Поселок Северо-Енисейский","04649151","ОАО \"Енашиминская ГЭС\"","2434011217","243401001"]
[610,"Северо-Енисейский муниципальный район","Северо-Енисейский муниципальный район","04649000","ЗАО \"ЗДК Полюс\"","2434000335","243401001"]
[611,"Сухобузимский муниципальный район","Атамановское","04651402","ЗАО \"Племзавод \"Таежный\"","2435003949","243501001"]
[612,"Сухобузимский муниципальный район","Атамановское","04651402","ООО \"Красноярская региональная энергетическая компания\"","2466118202","246001001"]
[613,"Сухобузимский муниципальный район","Борское","04651425","ГСХУ УОХ \"Миндерлинское\"","2435004702","243501001"]
[614,"Сухобузимский муниципальный район","Борское","04651425","ООО \"Красноярская региональная энергетическая компания\"","2466118202","246001001"]
[615,"Сухобузимский муниципальный район","Высотинское","04651407","ООО \"Красноярская региональная энергетическая компания\"","2466118202","246001001"]
[616,"Сухобузимский муниципальный район","Высотинское","04651407","ООО Птицефабрика \"Индюшкино\"","2435005978","243501001"]
[617,"Сухобузимский муниципальный район","Кононовское","04651410","ООО \"Красноярская региональная энергетическая компания\"","2466118202","246001001"]
[618,"Сухобузимский муниципальный район","Миндерлинское","04651413","ООО \"Красноярская региональная энергетическая компания\"","2466118202","246001001"]
[619,"Сухобузимский муниципальный район","Миндерлинское","04651413","ООО Птицефабрика \"Индюшкино\"","2435005978","243501001"]
[620,"Сухобузимский муниципальный район","Нахвальское","04651416","ООО \"Красноярская региональная энергетическая компания\"","2466118202","246001001"]
[621,"Сухобузимский муниципальный район","Подсопочное","04651419","ООО \"Красноярская региональная энергетическая компания\"","2466118202","246001001"]
[622,"Сухобузимский муниципальный район","Сухобузимское","04651422","ООО \"Красноярская региональная энергетическая компания\"","2466118202","246001001"]
[623,"Сухобузимский муниципальный район","Сухобузимское","04651422","ООО Птицефабрика \"Индюшкино\"","2435005978","243501001"]
[624,"Сухобузимский муниципальный район","Шилинское","04651428","ООО Шилинское коммунальное хозяйство","2435005671","243501001"]
[625,"Таймырский (Долгано-Ненецкий) муниципальный район","Диксон","04811151","ООО \"Таймырская энергетическая компания\"","2469001523","246901001"]
[626,"Таймырский (Долгано-Ненецкий) муниципальный район","Дудинка","04811121","\"Норильскэнерго\" - филиал ОАО \"ГМК \"Норильский никель\"","8401005730","245703001"]
[627,"Таймырский (Долгано-Ненецкий) муниципальный район","Дудинка","04811121","МП \"Таймыр\"","2469000978","246901001"]
[628,"Таймырский (Долгано-Ненецкий) муниципальный район","Дудинка","04811121","ОАО \"Таймырбыт\"","8401011170","840101001"]
[629,"Таймырский (Долгано-Ненецкий) муниципальный район","Дудинка","04811121","ОАО \"Таймыргеофизика\"","8400000578","840101001"]
[630,"Таймырский (Долгано-Ненецкий) муниципальный район","Дудинка","04811121","ОАО \"Хантайское\"","8401010956","840101001"]
[631,"Таймырский (Долгано-Ненецкий) муниципальный район","Дудинка","04811121","ООО \"Потапово\"","8401009157","840101001"]
[632,"Таймырский (Долгано-Ненецкий) муниципальный район","Караул","04811417","МУП сельского поселения Караул \"Коммунальщик\"","8404010136","840401001"]
[633,"Таймырский (Долгано-Ненецкий) муниципальный район","Караул","04811417","ОАО \"Норильскгазпром\"","2457002628","245701001"]
[634,"Таймырский (Долгано-Ненецкий) муниципальный район","Носок","04811400","МУП сельского поселения Караул \"Коммунальщик\"","8404010136","840401001"]
[635,"Таймырский (Долгано-Ненецкий) муниципальный район","Хатанга","04811419","МУП \"ЖКХ\" сельского поселения Хатанга","2469012194","246901001"]
[636,"Таймырский (Долгано-Ненецкий) муниципальный район","Хатанга","04811419","МУП \"Хатанга-Энергия\"","8403001604","840301001"]
[637,"Таймырский (Долгано-Ненецкий) муниципальный район","Хатанга","04811419","ОАО \"Полярная геологоразведочная экспедиция\"","2469001756","246901001"]
[638,"Таймырский (Долгано-Ненецкий) муниципальный район","Хатанга","04811419","ООО \"Таймырская энергетическая компания\"","2469001523","246901001"]
[639,"Тасеевский муниципальный район","Тасеевское","04652416","ООО \"Коммунальщик\"","2436004254","243601001"]
[640,"Тасеевский муниципальный район","Тасеевское","04652416","ООО «Лестрест»","2436004046","243601001"]
[641,"Тасеевский муниципальный район","Фаначетское","04652422","ИП Соловьев","243601230478","243601001"]
[642,"Туруханский муниципальный район","Борское","04654404","ОАО \"Туруханскэнерго\"","2437004384","243701001"]
[643,"Туруханский муниципальный район","Верхнеимбатское","04654410","ОАО \"Туруханскэнерго\"","2437004384","243701001"]
[644,"Туруханский муниципальный район","Вороговское","04654413","ОАО \"Туруханскэнерго\"","2437004384","243701001"]
[645,"Туруханский муниципальный район","Город Игарка","04654117","ДООО \"Водоканал\"","2437004296","243701001"]
[646,"Туруханский муниципальный район","Город Игарка","04654117","ОАО \"Энергопром\"","2466212734","243701001"]
[647,"Туруханский муниципальный район","Зотинское","04654417","ОАО \"Туруханскэнерго\"","2437004384","243701001"]
[648,"Туруханский муниципальный район","Туруханское","04654434","ОАО \"Туруханскэнерго\"","2437004384","243701001"]
[649,"Туруханский муниципальный район","поселок Светлогорск","04654156","ОАО \"Норильско-Таймырская энергетическая компания\"","2457058356","245701001"]
[650,"Тюхтетский муниципальный район","Тюхтетское","04655425","ООО \"Коммунальщик\" Тюхтетский район","2438301020","243801001"]
[651,"Ужурский муниципальный район","Город Ужур","04656101","ЗАО \"Искра\"","2439001597","243901001"]
[652,"Ужурский муниципальный район","Город Ужур","04656101","КрД по тепловодоснабжению - СП ЦД по тепловодоснабжению -филиал ОАО \"РЖД\"","7708503727","246645014"]
[653,"Ужурский муниципальный район","Город Ужур","04656101","ООО \"Ужурское ЖКХ\"","2439006394","243901001"]
[654,"Ужурский муниципальный район","Златоруновское","04656431","ООО \"Исток\"","2439007743","243901001"]
[655,"Ужурский муниципальный район","Крутоярское","04656410","МУП ЖКХ Крутоярского сельсовета \"Себек\"","2439007479","243900100"]
[656,"Ужурский муниципальный район","Крутоярское","04656410","ООО\"Крутояртеплосервис\"","2439007817","243901001"]
[657,"Ужурский муниципальный район","Озероучумское","04656423","ООО \"ТСК \"Озеро Учум\"","2463076628","243901001"]
[658,"Ужурский муниципальный район","Прилужское","04656424","МУП ЖКХ \"АлПииКо\"","2439006771","243901001"]
[659,"Ужурский муниципальный район","Приреченское","04656429","ООО\"Крутояртеплосервис\"","2439007817","243901001"]
[660,"Ужурский муниципальный район","Солгонское","04656425","ООО \"Ужурское ЖКХ\"","2439006394","243901001"]
[661,"Уярский муниципальный район","Авдинское","04657402","ООО \"СЖКХ\"","2440006423","244001001"]
[662,"Уярский муниципальный район","Город Уяр","04657101","КрД по тепловодоснабжению - СП ЦД по тепловодоснабжению -филиал ОАО \"РЖД\"","7708503727","246645014"]
[663,"Уярский муниципальный район","Город Уяр","04657101","МУП \"Городское коммунальное хозяйство\"","2440006462","244001001"]
[664,"Уярский муниципальный район","Город Уяр","04657101","МУП \"Уяржилкомсервис\"","2440006286","244001001"]
[665,"Уярский муниципальный район","Город Уяр","04657101","ОАО \"Транссибнефть\" филиал Красноярское РНУ","5502020634","246603001"]
[666,"Уярский муниципальный район","Город Уяр","04657101","ООО \"Кедр\"","2440006712","244001001"]
[667,"Уярский муниципальный район","Громадское","04657408","ООО \"Грамадский щебеночный карьер\"","2440006328","246601001"]
[668,"Уярский муниципальный район","Громадское","04657408","ФБУ «ИК-16 ГУФСИН России по Красноярскому краю»","2440004602","244001001"]
[669,"Уярский муниципальный район","Сушиновское","04657417","ООО \"СЖКО Феникс\"","2440003849","244001001"]
[670,"Шарыпово","Шарыпово","04740000","ОАО \"Красноярскэнергосбыт\"","2466132221","246750001"]
[671,"Шарыпово","Шарыпово","04740000","ООО \"Металлист\"","2459010631","245901001"]
[672,"Шарыпово","Шарыпово","04740000","ООО \"Предприятие Жилищно-Коммунального хозяйства\"","2459012565","245901001"]
[673,"Шарыпово","Шарыпово","04740000","ООО \"Предприятие водоканализационного хозяйства\"","2459012251","245901001"]
[674,"Шарыпово","Шарыпово","04740000","ООО \"Система водоснабжения региона\"","2459014594","245901001"]
[675,"Шарыпово","Шарыпово","04740000","ООО \"Центр реализации коммунальных услуг\"","2459013819","245901001"]
[676,"Шарыпово","Шарыпово","04740000","Филиал ОАО «СУЭК-Красноярск» «Разрез Березовский-1»","2466152267","245902001"]
[677,"Шарыпово","Шарыпово","04740000","Филиал ОАО «Э.ОН Россия» «Тепловые сети Березовской ГРЭС»","8602067092","245902001"]
[678,"Шарыповский муниципальный район","Березовское","04658403","ООО \"РемСтройСервис\"","2459013270","245901001"]
[679,"Шарыповский муниципальный район","Березовское","04658403","ООО \"РемСтройСервис\"","2459013270","246901001"]
[680,"Шарыповский муниципальный район","Ивановское","04658408","ООО \"Золотой век\"","2459010960","245901001"]
[681,"Шарыповский муниципальный район","Новоалтатское","04658411","ООО \"РемСтройСервис\"","2459013270","245901001"]
[682,"Шарыповский муниципальный район","Новоалтатское","04658411","ООО \"РемСтройСервис\"","2459013270","246901001"]
[683,"Шарыповский муниципальный район","Парнинское","04658413","ООО \"Родник\"","2459015911","245901001"]
[684,"Шарыповский муниципальный район","Родниковское","04658415","ООО \"РемСтройСервис\"","2459013270","245901001"]
[685,"Шарыповский муниципальный район","Родниковское","04658415","ООО \"РемСтройСервис\"","2459013270","246901001"]
[686,"Шарыповский муниципальный район","Родниковское","04658415","ООО \"Система водоснабжения региона\"","2459014594","245901001"]
[687,"Шарыповский муниципальный район","Холмогорское","04658420","КГБУ СО \"Шарыповский психоневрологический интернат\"","2441000992","245901001"]
[688,"Шарыповский муниципальный район","Холмогорское","04658420","ОАО \"Э.ОН Россия\"","8602067092","245902002"]
[689,"Шарыповский муниципальный район","Холмогорское","04658420","ООО \"Система водоснабжения региона\"","2459014594","245901001"]
[690,"Шарыповский муниципальный район","Холмогорское","04658420","ООО \"УЖКХ\"","2459015615","245901001"]
[691,"Шарыповский муниципальный район","Холмогорское","04658420","ООО \"Центр инженерно-технического обеспечения\"","2459014788","245901001"]
[692,"Шарыповский муниципальный район","Шушенское","04658422","ООО \"УЖКХ\"","2459015615","245901001"]
[693,"Шушенский муниципальный район","Иджинское","04659403","МУП \"Водоканал\" Иджинского сельсовета","2442010915","244201001"]
[694,"Шушенский муниципальный район","Иджинское","04659403","МУП \"Шушенские ТЭС\"","2442000890","244201001"]
[695,"Шушенский муниципальный район","Ильичевское","04659405","МУП \"Водоканал\" Ильичевского  сельсовета","2442011436","244201001"]
[696,"Шушенский муниципальный район","Ильичевское","04659405","МУП \"Шушенские ТЭС\"","2442000890","244201001"]
[697,"Шушенский муниципальный район","Ильичевское","04659405","ОАО \"Енисейская ТГК (ТГК-13)\"","1901067718","997450001"]
[698,"Шушенский муниципальный район","Ильичевское","04659405","ОАО \"Енисейская ТГК (ТГК-13)\" Минусинская ТЭЦ","1901067718","245502001"]
[699,"Шушенский муниципальный район","Ильичевское","04659405","ОАО \"Южно-Енисейские тепловые сети\"","2460237860","246001001"]
[700,"Шушенский муниципальный район","Казанцевское","04659407","МУП \"Казанцевский водоканал\"","2442010714","244201001"]
[701,"Шушенский муниципальный район","Казанцевское","04659407","МУП \"Шушенские ТЭС\"","2442000890","244201001"]
[702,"Шушенский муниципальный район","Каптыревское","04659410","МУП \"Водоканал\" Иджинского сельсовета","2442010915","244201001"]
[703,"Шушенский муниципальный район","Каптыревское","04659410","МУП \"Шушенские ТЭС\"","2442000890","244201001"]
[704,"Шушенский муниципальный район","Сизинское","04659414","МУП \"Водоканал\" Иджинского сельсовета","2442010915","244201001"]
[705,"Шушенский муниципальный район","Сизинское","04659414","МУП \"Шушенские ТЭС\"","2442000890","244201001"]
[706,"Шушенский муниципальный район","Синеборское","04659415","МУП \"Синеборский водоканал\"","2442010707","244201001"]
[707,"Шушенский муниципальный район","Синеборское","04659415","МУП \"Шушенские ТЭС\"","2442000890","244201001"]
[708,"Шушенский муниципальный район","Субботинское","04659416","МУП \"Водоканал\" Иджинского сельсовета","2442010915","244201001"]
[709,"Шушенский муниципальный район","Субботинское","04659416","МУП \"Синеборский водоканал\"","2442010707","244201001"]
[710,"Шушенский муниципальный район","Субботинское","04659416","МУП \"Шушенские ТЭС\"","2442000890","244201001"]
[711,"Шушенский муниципальный район","Шушенский муниципальный район","04659000","МУП \"Шушенские ТЭС\"","2442000890","244201001"]
[712,"Шушенский муниципальный район","поселок Шушенское","04659151","МУП \"Шушенские ТЭС\"","2442000890","244201001"]
[713,"Шушенский муниципальный район","поселок Шушенское","04659151","МУП Шушенского района \"Водоканал\"","2442000459","244201001"]
[714,"Шушенский муниципальный район","поселок Шушенское","04659151","ОАО \"Енисейская ТГК (ТГК-13)\"","1901067718","997450001"]
[715,"Шушенский муниципальный район","поселок Шушенское","04659151","ОАО \"Славянка\"","7702707386","246543001"]
[716,"Шушенский муниципальный район","поселок Шушенское","04659151","ОАО \"Южно-Енисейские тепловые сети\"","2460237860","246001001"]
[717,"Шушенский муниципальный район","поселок Шушенское","04659151","ООО \"Авир\"","2442010425","244201001"]
[718,"Шушенский муниципальный район","поселок Шушенское","04659151","ООО \"Вико\"","2442009571","244201001"]
[719,"Шушенский муниципальный район","поселок Шушенское","04659151","ООО \"Красноярская региональная энергетическая компания\"","2466118202","246001001"]
[720,"Шушенский муниципальный район","поселок Шушенское","04659151","ООО \"Теплоэлектросервис\"","2442011500","244201001"]
[721,"Эвенкийский муниципальный район","поселок Нидым","04911438","МП ЭМР \"Илимпийские теплосети\"","8801011048","880101001"]
[722,"Эвенкийский муниципальный район","поселок Тура","04911402","МП \"Хозяйственное обеспечение\"","8801012563","880101001"]
[723,"Эвенкийский муниципальный район","поселок Тура","04911402","МП ЭМР \"Илимпийские теплосети\"","8801011048","880101001"]
[724,"Эвенкийский муниципальный район","поселок Тура","04911402","МП ЭМР \"Илимпийские электросети\"","8801011136","880101001"]
[725,"Эвенкийский муниципальный район","поселок Тутончаны","04911444","МП ЭМР \"Илимпийские теплосети\"","8801011048","880101001"]
[726,"Эвенкийский муниципальный район","поселок Эконда","04911453","МП ЭМР \"Илимпийские теплосети\"","8801011048","880101001"]
[727,"Эвенкийский муниципальный район","село Байкит","04911405","МП ЭМР \"Байкитэнерго\"","8802000955","880201001"]
[728,"Эвенкийский муниципальный район","село Ванавара","04911459","МП ЭМР \"Ванавараэнерго\"","8803001655","880301001"]
[729,"г. Абакан","город  Абакан","04700000","ИП Старченко","190100538868","000000000"]
[730,"город Сосновоборск","город Сосновоборск","04733000","МУП \"Жилкомсервис\" г. Сосновоборск","2458008862","245801001"]
[731,"город Сосновоборск","город Сосновоборск","04733000","ОАО \"Енисейская ТГК (ТГК-13)\"","1901067718","997450001"]
[732,"город Сосновоборск","город Сосновоборск","04733000","ОАО \"Красноярская ТЭЦ-4\"","2460237877","246001001"]
[733,"город Сосновоборск","город Сосновоборск","04733000","ООО \"РемСтройКомплект\"","7703621117","245801001"]
[734,"город Сосновоборск","город Сосновоборск","04733000","ООО \"Ремонт +\"","2464237268","246401001"]
[735,"город Сосновоборск","город Сосновоборск","04733000","ООО \"СибГорСтрой\"","2464076324","246401001"]
[736,"город Сосновоборск","город Сосновоборск","04733000","ООО \"СтройКом\"","2464237282","246401001"]
[737,"","","","ЗАО \"МАРЭМ+\"","7704181109","770401001"]
[738,"","","","ЗАО Лыжный стадион \"Ветлужанка\"","2463011331","246301001"]
[739,"","","","ОАО  \"Российские железные дороги\" в лице Красноярской дирекции по энергообеспечению-структурного подразделения \"Трансэнерго\" филиала ОАО \"РЖД\"","7708503727","246045007"]
[740,"","","","ОАО \"Оборонэнергосбыт\"","7704731218","770401001"]
[741,"","","","ОАО \"Сибурэнергоменеджмент\"","7727276526","366301001"]
[742,"","","","ОАО \"Улан-Удэ Энерго\"","0326481003","032601001"]
[743,"","","","ОАО \"ФСК ЕЭС\"","4716016979","772801001"]
[744,"","","","ОАО \"ФСК ЕЭС\"","4716016979","997450001"]
[745,"","","","ООО \"Городские электрические сети\"","1902021787","190201001"]
[746,"","","","ООО \"Дизаж М\"","7728587330","772801001"]
[747,"","","","ООО \"РУСЭНЕРГОСБЫТ\"","7706284124","770601001"]
[748,"","","","ООО \"Региональная энергосбытовая компания\" (ОПП)","4633017746","463301001"]
[749,"","","","ООО \"ТД \"Энергосервис\"","5030040730","503001000"]
[750,"","","","ООО \"ТранснефтьЭлектросетьСервис\"","6311049306","631101001"]
[751,"","","","ООО \"Транснефтьэнерго\"","7703552167","772301001"]
[752,"","","","Общество с ограниченной ответственностью \"РН-Энерго\"","7706525041","772501001"]
[753,"","","","Открытое акционерное общество «Краспригород».","2460069630","246001001"]
[754,"","","","филиал \"Сибирский\" ОАО \"28 Электрическая сеть\"","2704016508","540743001"]
[755,"","","","филиал \"Сибирский\" ОАО \"Оборонэнерго\"","7704726225","540743001"]

{"sheet":"REESTR_FILTERED","index":14,"n_rows":1,"n_cols":8,"rows_kept":1,"cut":false,"hidden":true,"merged":[]}
["№","МР","МО","МО ОКТМО","ОРГАНИЗАЦИЯ","ИНН","КПП","ВИД ДЕЯТЕЛЬНОСТИ"]

{"sheet":"REESTR_MO","index":15,"n_rows":417,"n_cols":5,"rows_kept":417,"cut":false,"hidden":true,"merged":[]}
["МР","МО","МО_ОКТМО","МР","ИМЯ ДИАПАЗОНА"]
["Абанский муниципальный район","Абанский муниципальный район","04601000","Абанский муниципальный район","MO_LIST_2"]
["Абанский муниципальный район","Абанское","04601151","Ачинский муниципальный район","MO_LIST_3"]
["Ачинский муниципальный район","Ачинский муниципальный район","04603000","Балахтинский муниципальный район","MO_LIST_4"]
["Ачинский муниципальный район","Белоярское","04603402","Березовский муниципальный район","MO_LIST_5"]
["Ачинский муниципальный район","Горное","04603407","Бирилюсский муниципальный район","MO_LIST_6"]
["Ачинский муниципальный район","Ключинское","04603410","Боготольский муниципальный район","MO_LIST_7"]
["Ачинский муниципальный район","Лапшихинское","04603413","Богучанский муниципальный район","MO_LIST_8"]
["Ачинский муниципальный район","Малиновское","04603414","Большемуртинский муниципальный район","MO_LIST_9"]
["Ачинский муниципальный район","Преображенское","04603404","Большеулуйский муниципальный район","MO_LIST_10"]
["Ачинский муниципальный район","Причулымское","04603419","Город Ачинск","MO_LIST_11"]
["Ачинский муниципальный район","Тарутинское","04603422","Город Боготол","MO_LIST_12"]
["Ачинский муниципальный район","Ястребовское","04603428","Город Бородино","MO_LIST_13"]
["Балахтинский муниципальный район","Балахтинский муниципальный район","04604000","Город Дивногорск","MO_LIST_14"]
["Балахтинский муниципальный район","Еловское","04604404","Город Енисейск","MO_LIST_15"]
["Балахтинский муниципальный район","Кожановское","04604405","Город Канск","MO_LIST_16"]
["Балахтинский муниципальный район","Огурское","04604407","Город Красноярск","MO_LIST_17"]
["Балахтинский муниципальный район","Приморское","04604413","Город Лесосибирск","MO_LIST_18"]
["Балахтинский муниципальный район","Тюльковское","04604419","Город Минусинск","MO_LIST_19"]
["Балахтинский муниципальный район","поселок Балахта","04604151","Город Назарово","MO_LIST_20"]
["Березовский муниципальный район","Бархатовское","04605402","Город Норильск","MO_LIST_21"]
["Березовский муниципальный район","Березовский муниципальный район","04605000","Город Шарыпово","MO_LIST_22"]
["Березовский муниципальный район","Вознесенское","04605405","Дзержинский район","MO_LIST_23"]
["Березовский муниципальный район","Есаульское","04605416","Емельяновский муниципальный район","MO_LIST_24"]
["Березовский муниципальный район","Зыковское","04605420","Енисейский муниципальный район","MO_LIST_25"]
["Березовский муниципальный район","Маганское","04605425","Ермаковский муниципальный район","MO_LIST_26"]
["Березовский муниципальный район","поселок Березовка","04605151","ЗАТО г. Зеленогорск","MO_LIST_27"]
["Бирилюсский муниципальный район","Бирилюсский муниципальный район","04606000","ЗАТО г.Железногорск","MO_LIST_28"]
["Бирилюсский муниципальный район","Малокетское","04606408","ЗАТО п.Солнечный","MO_LIST_29"]
["Бирилюсский муниципальный район","Новобирилюсское","04606416","Идринский муниципальный раойон","MO_LIST_30"]
["Бирилюсский муниципальный район","Поселок Рассвет","04606154","Иланский муниципальный район","MO_LIST_31"]
["Бирилюсский муниципальный район","Суриковское","04606426","Ирбейский муниципальный район","MO_LIST_32"]
["Боготольский муниципальный район","Александровское","04608402","Казачинский муниципальный район","MO_LIST_33"]
["Боготольский муниципальный район","Боготольский муниципальный район","04608000","Канский муниципальный район","MO_LIST_34"]
["Боготольский муниципальный район","Боготольское","04608404","Каратузский муниципальный район","MO_LIST_35"]
["Боготольский муниципальный район","Большекосульское","04608407","Кежемский муниципальный район","MO_LIST_36"]
["Боготольский муниципальный район","Вагинское","04608410","Козульский муниципальный район","MO_LIST_37"]
["Боготольский муниципальный район","Краснозаводское","04608413","Краснотуранский муниципальный район","MO_LIST_38"]
["Боготольский муниципальный район","Критовское","04608416","Курагинский муниципальный район","MO_LIST_39"]
["Боготольский муниципальный район","Чайковское","04608419","Манский муниципальный район","MO_LIST_40"]
["Боготольский муниципальный район","Юрьевское","04608422","Минусинский муниципальный район","MO_LIST_41"]
["Богучанский муниципальный район","Ангарское","04609402","Мотыгинский муниципальный район","MO_LIST_42"]
["Богучанский муниципальный район","Артюгинское","04609404","Назаровский муниципальный район","MO_LIST_43"]
["Богучанский муниципальный район","Белякинское","04609407","Нижнеингашский муниципальный район","MO_LIST_44"]
["Богучанский муниципальный район","Богучанский муниципальный район","04609000","Новоселовский муниципальный район","MO_LIST_45"]
["Богучанский муниципальный район","Богучанское","04609410","Партизанский муниципальный район","MO_LIST_46"]
["Богучанский муниципальный район","Говорковское","04609413","Пировский муниципальный район","MO_LIST_47"]
["Богучанский муниципальный район","Красногорьевское","04609418","Поселок Кедровый","MO_LIST_48"]
["Богучанский муниципальный район","Манзенское","04609419","Рыбинский муниципальный район","MO_LIST_49"]
["Богучанский муниципальный район","Невонское","04609422","Саянский муниципальный район","MO_LIST_50"]
["Богучанский муниципальный район","Нижнетерянское","04609424","Северо-Енисейский муниципальный район","MO_LIST_51"]
["Богучанский муниципальный район","Новохайское","04609423","Сухобузимский муниципальный район","MO_LIST_52"]
["Богучанский муниципальный район","Октябрьское","04609445","Таймырский (Долгано-Ненецкий) муниципальный район","MO_LIST_53"]
["Богучанский муниципальный район","Осиновомысское","04609425","Тасеевский муниципальный район","MO_LIST_54"]
["Богучанский муниципальный район","Пинчугское","04609428","Туруханский муниципальный район","MO_LIST_55"]
["Богучанский муниципальный район","Таежнинское","04609430","Тюхтетский муниципальный район","MO_LIST_56"]
["Богучанский муниципальный район","Такучетское","04609431","Ужурский муниципальный район","MO_LIST_57"]
["Богучанский муниципальный район","Хребтовское","04609433","Уярский муниципальный район","MO_LIST_58"]
["Богучанский муниципальный район","Чуноярское","04609434","Шарыпово","MO_LIST_59"]
["Богучанский муниципальный район","Шиверское","04609440","Шарыповский муниципальный район","MO_LIST_60"]
["Большемуртинский муниципальный район","Айтатское","04610402","Шушенский муниципальный район","MO_LIST_61"]
["Большемуртинский муниципальный район","Бартатское","04610404","Эвенкийский муниципальный район","MO_LIST_62"]
["Большемуртинский муниципальный район","Большемуртинский муниципальный район","04610000","г. Абакан","MO_LIST_63"]
["Большемуртинский муниципальный район","Верх-Казанское","04610407","город Сосновоборск","MO_LIST_64"]
["Большемуртинский муниципальный район","Еловское","04610410"]
["Большемуртинский муниципальный район","Ентаульское","04610413"]
["Большемуртинский муниципальный район","Межовское","04610416"]
["Большемуртинский муниципальный район","Поселок Большая Мурта","04610151"]
["Большемуртинский муниципальный район","Раздольненское","04610428"]
["Большемуртинский муниципальный район","Российское","04610419"]
["Большемуртинский муниципальный район","Таловское","04610422"]
["Большемуртинский муниципальный район","Юксеевское","04610425"]
["Большемуртинский муниципальный район","п Предивинск","04610155"]
["Большеулуйский муниципальный район","Большеулуйский муниципальный район","04611000"]
["Большеулуйский муниципальный район","Большеулуйское","04611407"]
["Большеулуйский муниципальный район","Кытатское","04611419"]
["Город Ачинск","Город Ачинск","04703000"]
["Город Боготол","Город Боготол","04706000"]
["Город Бородино","Город Бородино","04707000"]
["Город Дивногорск","Город Дивногорск","04709000"]
["Город Енисейск","Город Енисейск","04712000"]
["Город Канск","Город Канск","04720000"]
["Город Красноярск","Город Красноярск","04701000"]
["Город Лесосибирск","Город Лесосибирск","04722000"]
["Город Минусинск","Город Минусинск","04723000"]
["Город Назарово","Город Назарово","04726000"]
["Город Норильск","Город Норильск","04729000"]
["Город Шарыпово","Город Шарыпово","04740 000"]
["Дзержинский район","Дзержинский район","04613000"]
["Дзержинский район","Дзержинское","04613410"]
["Дзержинский район","Михайловское","04613419"]
["Емельяновский муниципальный район","Еловское","04614413"]
["Емельяновский муниципальный район","Емельяновский муниципальный район","04614000"]
["Емельяновский муниципальный район","Зеледеевское","04614418"]
["Емельяновский муниципальный район","Мининское","04614428"]
["Емельяновский муниципальный район","Поселок Емельяново","04614151"]
["Емельяновский муниципальный район","Солонцовское","04614437"]
["Емельяновский муниципальный район","Тальское","04614440"]
["Емельяновский муниципальный район","Устюгское","04614443"]
["Емельяновский муниципальный район","Частоостровское","04614446"]
["Емельяновский муниципальный район","Шуваевское","04614449"]
["Емельяновский муниципальный район","Элитовское","04614404"]
["Енисейский муниципальный район","Абалаковское","04615402"]
["Енисейский муниципальный район","Верхнепашинское","04615407"]
["Енисейский муниципальный район","Высокогорское","04615408"]
["Енисейский муниципальный район","Городищенское","04615410"]
["Енисейский муниципальный район","Енисейский муниципальный район","04615000"]
["Енисейский муниципальный район","Епишинское","04615409"]
["Енисейский муниципальный район","Железнодорожное","04615411"]
["Енисейский муниципальный район","Кривлякское","04615412"]
["Енисейский муниципальный район","Луговатское","04615416"]
["Енисейский муниципальный район","Майское","04615418"]
["Енисейский муниципальный район","Малобельское","04615421"]
["Енисейский муниципальный район","Новогородокское","04615434"]
["Енисейский муниципальный район","Новокаргинское","04615437"]
["Енисейский муниципальный район","Новоназимовское","04615425"]
["Енисейский муниципальный район","Озерновское","04615439"]
["Енисейский муниципальный район","Плотбищенское","04615440"]
["Енисейский муниципальный район","Погодаевское","04615441"]
["Енисейский муниципальный район","Подгорновское","04615443"]
["Енисейский муниципальный район","Поселок Подтесово","04615155"]
["Енисейский муниципальный район","Потаповское","04615446"]
["Енисейский муниципальный район","Усть-Кемское","04615452"]
["Енисейский муниципальный район","Усть-Питское","04615455"]
["Енисейский муниципальный район","Чалбышевское","04615456"]
["Енисейский муниципальный район","Шапкинское","04615457"]
["Енисейский муниципальный район","Ярцевское","04615458"]
["Ермаковский муниципальный район","Верхнеусинское","04616404"]
["Ермаковский муниципальный район","Григорьевское","04616407"]
["Ермаковский муниципальный район","Ермаковский муниципальный район","04616000"]
["Ермаковский муниципальный район","Ермаковское","04616410"]
["Ермаковский муниципальный район","Ивановское","04616414"]
["Ермаковский муниципальный район","Мигнинское","04616416"]
["Ермаковский муниципальный район","Нижнесуэтукское","04616419"]
["Ермаковский муниципальный район","Новополтавское","04616422"]
["Ермаковский муниципальный район","Ойское","04616428"]
["Ермаковский муниципальный район","Разъезженское","04616425"]
["Ермаковский муниципальный район","Салбинское","04616429"]
["Ермаковский муниципальный район","Семенниковское","04616431"]
["Ермаковский муниципальный район","Танзыбейское","04616434"]
["ЗАТО г. Зеленогорск","ЗАТО г. Зеленогорск","04737000"]
["ЗАТО г.Железногорск","ЗАТО г.Железногорск","04735000"]
["ЗАТО п.Солнечный","ЗАТО п.Солнечный","04780000"]
["Идринский муниципальный раойон","Идринский муниципальный раойон","04617000"]
["Идринский муниципальный раойон","Идринское","04617422"]
["Иланский муниципальный район","Ельниковское","04618404"]
["Иланский муниципальный район","Иланский муниципальный район","04618000"]
["Иланский муниципальный район","Карапсельское","04618407"]
["Иланский муниципальный район","Новониколаевское","04618416"]
["Иланский муниципальный район","Южно-Александровское","04618425"]
["Иланский муниципальный район","г. Иланский","04618101"]
["Ирбейский муниципальный район","Благовещенское","04619404"]
["Ирбейский муниципальный район","Верхнеуринское","04619407"]
["Ирбейский муниципальный район","Ивановское","04619410"]
["Ирбейский муниципальный район","Изумрудновское","04619411"]
["Ирбейский муниципальный район","Ирбейский муниципальный район","04619000"]
["Ирбейский муниципальный район","Ирбейское","04619413"]
["Ирбейский муниципальный район","Мельничное","04619419"]
["Ирбейский муниципальный район","Сергеевское","04619425"]
["Ирбейский муниципальный район","Степановское","04619429"]
["Ирбейский муниципальный район","Тальское","04619431"]
["Ирбейский муниципальный район","Тумаковское","04619443"]
["Ирбейский муниципальный район","Успенское","04619434"]
["Ирбейский муниципальный район","Усть-Каначульское","04619437"]
["Ирбейский муниципальный район","Усть-Ярульское","04619440"]
["Ирбейский муниципальный район","Чухломинское","04619450"]
["Ирбейский муниципальный район","Юдинское","04619416"]
["Казачинский муниципальный район","Казачинский муниципальный район","04620000"]
["Казачинский муниципальный район","Казачинское","04620413"]
["Канский муниципальный район","Анцирское","04621404"]
["Канский муниципальный район","Астафьевское","04621407"]
["Канский муниципальный район","Большеуринское","04621410"]
["Канский муниципальный район","Браженское","04621413"]
["Канский муниципальный район","Верх-Амонашенское","04621416"]
["Канский муниципальный район","Георгиевское","04621419"]
["Канский муниципальный район","Канский муниципальный район","04621000"]
["Канский муниципальный район","Мокрушинское","04621425"]
["Канский муниципальный район","Рудянское","04621431"]
["Канский муниципальный район","Сотниковское","04621434"]
["Канский муниципальный район","Таеженское","04621436"]
["Канский муниципальный район","Терское","04621437"]
["Канский муниципальный район","Филимоновское","04621438"]
["Канский муниципальный район","Чечеульское","04621440"]
["Каратузский муниципальный район","Верхнекужебарское","04622404"]
["Каратузский муниципальный район","Каратузский муниципальный район","04622000"]
["Каратузский муниципальный район","Каратузское","04622407"]
["Каратузский муниципальный район","Моторское","04622413"]
["Каратузский муниципальный район","Нижнекужебарское","04622416"]
["Каратузский муниципальный район","Таскинское","04622428"]
["Каратузский муниципальный район","Уджейское","04622432"]
["Каратузский муниципальный район","Черемушинское","04622434"]
["Кежемский муниципальный район","Город Кодинск","04624101"]
["Кежемский муниципальный район","Заледеевское","04624403"]
["Кежемский муниципальный район","Имбинское","04624406"]
["Кежемский муниципальный район","Кежемский муниципальный район","04624000"]
["Кежемский муниципальный район","Кежемское","04624404"]
["Кежемский муниципальный район","Недокурское","04624407"]
["Кежемский муниципальный район","Пановское","04624410"]
["Кежемский муниципальный район","Тагарское","04624412"]
["Кежемский муниципальный район","Таежинское","04624416"]
["Козульский муниципальный район","Жуковское","04626404"]
["Козульский муниципальный район","Козульский муниципальный район","04626000"]
["Козульский муниципальный район","Лазурненское","04626409"]
["Козульский муниципальный район","Поселок Козулька","04626151"]
["Козульский муниципальный район","поселок Новочернореченский","04626154"]
["Краснотуранский муниципальный район","Беллыкское","04628404"]
["Краснотуранский муниципальный район","Восточное","04628407"]
["Краснотуранский муниципальный район","Кортузское","04628411"]
["Краснотуранский муниципальный район","Краснотуранский муниципальный район","04628000"]
["Краснотуранский муниципальный район","Краснотуранское","04628413"]
["Краснотуранский муниципальный район","Лебяженское","04628416"]
["Краснотуранский муниципальный район","Николаевка","04628400"]
["Краснотуранский муниципальный район","Новосыдинское","04628419"]
["Краснотуранский муниципальный район","Салбинское","04628421"]
["Краснотуранский муниципальный район","Саянское","04628425"]
["Краснотуранский муниципальный район","Тубинское","04628428"]
["Курагинский муниципальный район","Березовское","04630404"]
["Курагинский муниципальный район","Брагинское","04630407"]
["Курагинский муниципальный район","Детловское","04630410"]
["Курагинский муниципальный район","Кордовское","04630419"]
["Курагинский муниципальный район","Кочергинское","04630420"]
["Курагинский муниципальный район","Курагинский муниципальный район","04630000"]
["Курагинский муниципальный район","Курское","04630422"]
["Курагинский муниципальный район","Марининское","04630413"]
["Курагинский муниципальный район","Можарское","04630425"]
["Курагинский муниципальный район","Поселок Кошурниково","04630153"]
["Курагинский муниципальный район","Поселок Курагино","04630151"]
["Курагинский муниципальный район","Рощинское","04630442"]
["Курагинский муниципальный район","Черемшанкское","04630446"]
["Курагинский муниципальный район","Шалоболинское","04630449"]
["Курагинский муниципальный район","Щетинкинское","04630452"]
["Курагинский муниципальный район","город Артемовск","04630102"]
["Курагинский муниципальный район","поселок Большая Ирба","04630152"]
["Курагинский муниципальный район","поселок Краснокаменск","04630154"]
["Курагинский муниципальный район","поселок Чибижек","04630156"]
["Манский муниципальный район","Выезжелогское","04631404"]
["Манский муниципальный район","Камарчагское","04631407"]
["Манский муниципальный район","Каменское","04631408"]
["Манский муниципальный район","Кияйское","04631410"]
["Манский муниципальный район","Колбинское","04631413"]
["Манский муниципальный район","Манский муниципальный район","04631000"]
["Манский муниципальный район","Нарвинское","04631416"]
["Манский муниципальный район","Первоманское","04631421"]
["Манский муниципальный район","Унгутское","04631434"]
["Манский муниципальный район","Шалинское","04631437"]
["Минусинский муниципальный район","Большеничкинское","04633404"]
["Минусинский муниципальный район","Городокское","04633410"]
["Минусинский муниципальный район","Жерлыкское","04633412"]
["Минусинский муниципальный район","Знаменское","04633413"]
["Минусинский муниципальный район","Кавказское","04633416"]
["Минусинский муниципальный район","Лугавское","04633420"]
["Минусинский муниципальный район","Маломинусинское","04633422"]
["Минусинский муниципальный район","Минусинский муниципальный район","04633000"]
["Минусинский муниципальный район","Новотроицкое","04633426"]
["Минусинский муниципальный район","Прихолмское","04633423"]
["Минусинский муниципальный район","Селиванихинское","04633424"]
["Минусинский муниципальный район","Тесинское","04633402"]
["Минусинский муниципальный район","Тигрицкое","04633425"]
["Минусинский муниципальный район","Шошинское","04633432"]
["Мотыгинский муниципальный район","Машуковское","04635410"]
["Мотыгинский муниципальный район","Мотыгинский муниципальный район","04635000"]
["Мотыгинский муниципальный район","Новоангарское","04635412"]
["Мотыгинский муниципальный район","Орджоникидзевское","04635413"]
["Мотыгинский муниципальный район","Партизанское","04635416"]
["Мотыгинский муниципальный район","поселок Мотыгино","04635151"]
["Мотыгинский муниципальный район","поселок Раздолинск","04635154"]
["Мотыгинский муниципальный район","поселок Южно-Енисейск","04635157"]
["Назаровский муниципальный район","Гляденское","04637407"]
["Назаровский муниципальный район","Дороховское","04637410"]
["Назаровский муниципальный район","Краснополянское","04637431"]
["Назаровский муниципальный район","Красносопкинское","04637413"]
["Назаровский муниципальный район","Назаровский муниципальный район","04637000"]
["Назаровский муниципальный район","Павловское","04637419"]
["Назаровский муниципальный район","Подсосенское","04637422"]
["Назаровский муниципальный район","Преображенское","04637425"]
["Назаровский муниципальный район","Сахаптинское","04637428"]
["Назаровский муниципальный район","Степное","04637437"]
["Нижнеингашский муниципальный район","Канифольнинское","04639410"]
["Нижнеингашский муниципальный район","Нижнеингашский муниципальный район","04639000"]
["Нижнеингашский муниципальный район","Поселок Нижняя Пойма","04639154"]
["Нижнеингашский муниципальный район","Поселок Поканаевка","04639157"]
["Нижнеингашский муниципальный район","Поселок Тинской","04639160"]
["Нижнеингашский муниципальный район","Стретенское","04639434"]
["Нижнеингашский муниципальный район","Тиличетское","04639437"]
["Нижнеингашский муниципальный район","Тинское","04639440"]
["Нижнеингашский муниципальный район","поселок Нижний Ингаш","04639151"]
["Новоселовский муниципальный район","Анашенское","04641402"]
["Новоселовский муниципальный район","Бараитское","04641403"]
["Новоселовский муниципальный район","Комское","04641407"]
["Новоселовский муниципальный район","Легостаевское","04641408"]
["Новоселовский муниципальный район","Новоселовский муниципальный район","04641000"]
["Новоселовский муниципальный район","Новоселовское","04641409"]
["Новоселовский муниципальный район","Светлолобовское","04641410"]
["Новоселовский муниципальный район","Толстомысинское","04641413"]
["Новоселовский муниципальный район","Чулымское","04641417"]
["Партизанский муниципальный район","Богуславское","04643402"]
["Партизанский муниципальный район","Вершино-Рыбинское","04643404"]
["Партизанский муниципальный район","Имбежское","04643410"]
["Партизанский муниципальный район","Иннокентьевское","04643413"]
["Партизанский муниципальный район","Минское","04643419"]
["Партизанский муниципальный район","Партизанский муниципальный район","04643000"]
["Партизанский муниципальный район","Партизанское","04643422"]
["Партизанский муниципальный район","Стойбинское","04643425"]
["Пировский муниципальный район","Кетское","04645417"]
["Пировский муниципальный район","Пировский муниципальный район","04645000"]
["Пировский муниципальный район","Пировское","04645425"]
["Пировский муниципальный район","Троицкое","04645402"]
["Пировский муниципальный район","Чайдинское","04645442"]
["Поселок Кедровый","Поселок Кедровый","04775000"]
["Рыбинский муниципальный район","Александровское","04647402"]
["Рыбинский муниципальный район","Большеключинское","04647404"]
["Рыбинский муниципальный район","Бородинское","04647406"]
["Рыбинский муниципальный район","Город Заозерный","04647101"]
["Рыбинский муниципальный район","Двуреченское","04647414"]
["Рыбинский муниципальный район","Красногорьевское","04647419"]
["Рыбинский муниципальный район","Малокамалинское","04647422"]
["Рыбинский муниципальный район","Налобинское","04647424"]
["Рыбинский муниципальный район","Новинское","04647425"]
["Рыбинский муниципальный район","Новокамалинское","04647430"]
["Рыбинский муниципальный район","Новосолянское","04647434"]
["Рыбинский муниципальный район","Переясловское","04647437"]
["Рыбинский муниципальный район","Поселок Саянский","04647160"]
["Рыбинский муниципальный район","Поселок Урал","04647165"]
["Рыбинский муниципальный район","Рыбинский муниципальный район","04647000"]
["Рыбинский муниципальный район","Рыбинское","04647440"]
["Рыбинский муниципальный район","Успенское","04647449"]
["Рыбинский муниципальный район","поселок Ирша","04647155"]
["Саянский муниципальный район","Агинское","04648402"]
["Саянский муниципальный район","Кулижниковское","04648419"]
["Саянский муниципальный район","Саянский муниципальный район","04648000"]
["Саянский муниципальный район","Тугачинское","04648437"]
["Саянский муниципальный район","Унерское","04648440"]
["Северо-Енисейский муниципальный район","Поселок Северо-Енисейский","04649151"]
["Северо-Енисейский муниципальный район","Северо-Енисейский муниципальный район","04649000"]
["Сухобузимский муниципальный район","Атамановское","04651402"]
["Сухобузимский муниципальный район","Борское","04651425"]
["Сухобузимский муниципальный район","Высотинское","04651407"]
["Сухобузимский муниципальный район","Кононовское","04651410"]
["Сухобузимский муниципальный район","Миндерлинское","04651413"]
["Сухобузимский муниципальный район","Нахвальское","04651416"]
["Сухобузимский муниципальный район","Подсопочное","04651419"]
["Сухобузимский муниципальный район","Сухобузимский муниципальный район","04651000"]
["Сухобузимский муниципальный район","Сухобузимское","04651422"]
["Сухобузимский муниципальный район","Шилинское","04651428"]
["Таймырский (Долгано-Ненецкий) муниципальный район","Диксон","04811151"]
["Таймырский (Долгано-Ненецкий) муниципальный район","Дудинка","04811121"]
["Таймырский (Долгано-Ненецкий) муниципальный район","Караул","04811417"]
["Таймырский (Долгано-Ненецкий) муниципальный район","Носок","04811400"]
["Таймырский (Долгано-Ненецкий) муниципальный район","Таймырский (Долгано-Ненецкий) муниципальный район","04811000"]
["Таймырский (Долгано-Ненецкий) муниципальный район","Хатанга","04811419"]
["Тасеевский муниципальный район","Тасеевский муниципальный район","04652000"]
["Тасеевский муниципальный район","Тасеевское","04652416"]
["Тасеевский муниципальный район","Фаначетское","04652422"]
["Туруханский муниципальный район","Борское","04654404"]
["Туруханский муниципальный район","Верхнеимбатское","04654410"]
["Туруханский муниципальный район","Вороговское","04654413"]
["Туруханский муниципальный район","Город Игарка","04654117"]
["Туруханский муниципальный район","Зотинское","04654417"]
["Туруханский муниципальный район","Туруханский муниципальный район","04654000"]
["Туруханский муниципальный район","Туруханское","04654434"]
["Туруханский муниципальный район","поселок Светлогорск","04654156"]
["Тюхтетский муниципальный район","Тюхтетский муниципальный район","04655000"]
["Тюхтетский муниципальный район","Тюхтетское","04655425"]
["Ужурский муниципальный район","Город Ужур","04656101"]
["Ужурский муниципальный район","Златоруновское","04656431"]
["Ужурский муниципальный район","Крутоярское","04656410"]
["Ужурский муниципальный район","Озероучумское","04656423"]
["Ужурский муниципальный район","Прилужское","04656424"]
["Ужурский муниципальный район","Приреченское","04656429"]
["Ужурский муниципальный район","Солгонское","04656425"]
["Ужурский муниципальный район","Ужурский муниципальный район","04656000"]
["Уярский муниципальный район","Авдинское","04657402"]
["Уярский муниципальный район","Балайское","04657404"]
["Уярский муниципальный район","Город Уяр","04657101"]
["Уярский муниципальный район","Громадское","04657408"]
["Уярский муниципальный район","Новопятницкое","04657414"]
["Уярский муниципальный район","Сухонойское","04657418"]
["Уярский муниципальный район","Сушиновское","04657417"]
["Уярский муниципальный район","Толстихинское","04657420"]
["Уярский муниципальный район","Уярский муниципальный район","04657000"]
["Шарыпово","Шарыпово","04740000"]
["Шарыповский муниципальный район","Березовское","04658403"]
["Шарыповский муниципальный район","Ивановское","04658408"]
["Шарыповский муниципальный район","Новоалтатское","04658411"]
["Шарыповский муниципальный район","Парнинское","04658413"]
["Шарыповский муниципальный район","Родниковское","04658415"]
["Шарыповский муниципальный район","Холмогорское","04658420"]
["Шарыповский муниципальный район","Шарыповский муниципальный район","04658000"]
["Шарыповский муниципальный район","Шушенское","04658422"]
["Шушенский муниципальный район","Иджинское","04659403"]
["Шушенский муниципальный район","Ильичевское","04659405"]
["Шушенский муниципальный район","Казанцевское","04659407"]
["Шушенский муниципальный район","Каптыревское","04659410"]
["Шушенский муниципальный район","Сизинское","04659414"]
["Шушенский муниципальный район","Синеборское","04659415"]
["Шушенский муниципальный район","Субботинское","04659416"]
["Шушенский муниципальный район","Шушенский муниципальный район","04659000"]
["Шушенский муниципальный район","поселок Шушенское","04659151"]
["Эвенкийский муниципальный район","Эвенкийский муниципальный район","04911000"]
["Эвенкийский муниципальный район","поселок Ессей","04911432"]
["Эвенкийский муниципальный район","поселок Кислокан","04911435"]
["Эвенкийский муниципальный район","поселок Куюмба","04911411"]
["Эвенкийский муниципальный район","поселок Нидым","04911438"]
["Эвенкийский муниципальный район","поселок Ошарово","04911417"]
["Эвенкийский муниципальный район","поселок Полигус","04911420"]
["Эвенкийский муниципальный район","поселок Суломай","04911423"]
["Эвенкийский муниципальный район","поселок Суринда","04911429"]
["Эвенкийский муниципальный район","поселок Тура","04911402"]
["Эвенкийский муниципальный район","поселок Тутончаны","04911444"]
["Эвенкийский муниципальный район","поселок Чиринда","04911450"]
["Эвенкийский муниципальный район","поселок Эконда","04911453"]
["Эвенкийский муниципальный район","поселок Юкта","04911456"]
["Эвенкийский муниципальный район","село Байкит","04911405"]
["Эвенкийский муниципальный район","село Ванавара","04911459"]
["г. Абакан","г. Абакан","04700000"]
["г. Абакан","город  Абакан","04700000"]
["город Сосновоборск","город Сосновоборск","04733000"]

{"sheet":"modHyperlink","index":16,"n_rows":0,"n_cols":0,"rows_kept":0,"cut":false,"hidden":true,"merged":[]}

{"sheet":"modChange","index":17,"n_rows":0,"n_cols":0,"rows_kept":0,"cut":false,"hidden":true,"merged":[]}

{"sheet":"modPROV","index":18,"n_rows":0,"n_cols":0,"rows_kept":0,"cut":false,"hidden":true,"merged":[]}

{"sheet":"modTitleSheetHeaders","index":19,"n_rows":0,"n_cols":0,"rows_kept":0,"cut":false,"hidden":true,"merged":[]}

{"sheet":"modServiceModule","index":20,"n_rows":0,"n_cols":0,"rows_kept":0,"cut":false,"hidden":true,"merged":[]}

{"sheet":"modCommandButton","index":21,"n_rows":0,"n_cols":0,"rows_kept":0,"cut":false,"hidden":true,"merged":[]}

{"sheet":"modReestr","index":22,"n_rows":0,"n_cols":0,"rows_kept":0,"cut":false,"hidden":true,"merged":[]}

{"sheet":"modClassifierValidate","index":23,"n_rows":0,"n_cols":0,"rows_kept":0,"cut":false,"hidden":true,"merged":[]}

{"sheet":"modWindowClipboard","index":24,"n_rows":0,"n_cols":0,"rows_kept":0,"cut":false,"hidden":true,"merged":[]}

{"sheet":"modInfo","index":25,"n_rows":0,"n_cols":0,"rows_kept":0,"cut":false,"hidden":true,"merged":[]}

{"sheet":"modfrmReestr","index":26,"n_rows":0,"n_cols":0,"rows_kept":0,"cut":false,"hidden":true,"merged":[]}

{"sheet":"modfrmDateChoose","index":27,"n_rows":0,"n_cols":0,"rows_kept":0,"cut":false,"hidden":true,"merged":[]}

{"sheet":"modDblClick","index":28,"n_rows":0,"n_cols":0,"rows_kept":0,"cut":false,"hidden":true,"merged":[]}

{"sheet":"modUpdTemplMain","index":29,"n_rows":0,"n_cols":0,"rows_kept":0,"cut":false,"hidden":true,"merged":[]}

{"sheet":"modRegionSelectSub","index":30,"n_rows":0,"n_cols":0,"rows_kept":0,"cut":false,"hidden":true,"merged":[]}

{"sheet":"modThisWorkbook","index":31,"n_rows":0,"n_cols":0,"rows_kept":0,"cut":false,"hidden":true,"merged":[]}

{"sheet":"modReestrMO","index":32,"n_rows":0,"n_cols":0,"rows_kept":0,"cut":false,"hidden":true,"merged":[]}

{"sheet":"modSheetMain01","index":33,"n_rows":0,"n_cols":0,"rows_kept":0,"cut":false,"hidden":true,"merged":[]}

{"sheet":"modSheetMain02","index":34,"n_rows":0,"n_cols":0,"rows_kept":0,"cut":false,"hidden":true,"merged":[]}

{"sheet":"modSheetMain03","index":35,"n_rows":0,"n_cols":0,"rows_kept":0,"cut":false,"hidden":true,"merged":[]}

{"sheet":"modSheetMain04","index":36,"n_rows":0,"n_cols":0,"rows_kept":0,"cut":false,"hidden":true,"merged":[]}

{"sheet":"modSheetMain05","index":37,"n_rows":0,"n_cols":0,"rows_kept":0,"cut":false,"hidden":true,"merged":[]}

{"sheet":"modSheetMain06","index":38,"n_rows":0,"n_cols":0,"rows_kept":0,"cut":false,"hidden":true,"merged":[]}

{"sheet":"Паспорт","index":39,"n_rows":71,"n_cols":57,"rows_kept":71,"cut":false,"hidden":true,"merged":[[64,3,64,10],[61,3,61,10],[63,5,63,10],[70,5,70,10],[69,5,69,10],[68,5,68,10],[67,5,67,10],[66,3,66,10],[33,3,33,10],[54,3,54,10],[62,5,62,10],[57,5,57,10],[58,5,58,10],[56,3,56,10],[36,8,36,10],[37,8,37,10],[59,5,59,10],[35,3,35,10],[30,5,30,10],[31,7,31,10],[32,7,32,10],[22,5,22,10],[23,5,23,10],[29,3,29,10],[25,3,25,10],[26,5,26,10],[27,3,27,10],[14,6,14,9],[21,5,21,10],[17,3,17,10],[15,5,15,10],[18,5,18,10],[19,5,19,10],[20,5,20,10],[3,3,3,10],[12,5,12,10],[13,5,13,10],[6,5,6,10],[7,5,7,10],[5,3,5,10],[8,5,8,10],[9,5,9,10],[10,5,10,10],[11,5,11,10],[52,8,52,10],[53,8,53,10],[44,8,44,10],[45,8,45,10],[50,8,50,10],[51,8,51,10],[48,8,48,10],[49,8,49,10],[46,8,46,10],[47,8,47,10],[42,8,42,10],[43,8,43,10],[41,8,41,10],[38,8,38,10],[39,8,39,10],[40,8,40,10]]}
[null,null,null,null,null,null,null,null,null,null,null,null,null,null,null,null,null,null,null,null,null,null,null,null,null,null,null,null,null,null,null,null,null,null,null,null,null,null,null,null,null,null,null,null,null,null,null,"Код диапазона:","Название диапазона:","Сфера регулирования:","Подсфера:","Тип информации в шаблоне:","Состояние шаблона:","Периодичность:","\"Геотип\" шаблона:","Тип шаблона:","Заказчик:"]
[null,null,null,null,null,null,null,null,null,null,null,null,null,null,null,null,null,null,null,null,null,null,null,null,null,null,null,null,null,null,null,null,null,null,null,null,null,null,null,null,null,null,null,null,null,null,null,"ps_sr","Сфера регулирования:","Не определено","Не определено","Не определено","Не определено","Не определено","Не определено","Не определено","Не определено"]
[null,null,null,null,null,null,null,null,null,null,null,null,null,null,null,null,null,null,null,null,null,null,null,null,null,null,null,null,null,null,null,null,null,null,null,null,null,null,null,null,null,null,null,null,null,null,null,"ps_ti","Тип информации в шаблоне:","NETS","водоотведение - очистка","Статистический","Проект","Единовременный","Региональный шаблон","Атомарный","РЭК"]
[null,null,null,"Паспорт к шаблону",null,null,null,null,null,null,null,null,null,null,null,null,null,null,null,null,null,null,null,null,null,null,null,null,null,null,null,null,null,null,null,null,null,null,null,null,null,null,null,null,null,null,null,"ps_ssh","Состояние шаблона:","Аэропорты","водоотведение - передача","Расчетный","Утвержден","Ежемесячный","Муниципальный шаблон","Сводный","ФСТ"]
[null,null,null,null,null,null,null,null,null,null,null,null,null,null,null,null,null,null,null,null,null,null,null,null,null,null,null,null,null,null,null,null,null,null,null,null,null,null,null,null,null,null,null,null,null,null,null,"ps_p","Периодичность:","Газ","водоотведение - прием","Обосновывающие материалы",null,"Ежеквартальный","Шаблон от организации",null,"Экспертная организация"]
[null,null,null,"1. Общие сведения",null,null,null,null,null,null,null,null,null,null,null,null,null,null,null,null,null,null,null,null,null,null,null,null,null,null,null,null,null,null,null,null,null,null,null,null,null,null,null,null,null,null,null,"ps_geo","\"Геотип\" шаблона:","Железные дороги","водоснабжение - очистка",null,null,"Ежегодный"]
[null,null,null,"1.1","Код",null,null,null,null,null,null,null,null,null,null,null,null,null,null,null,null,null,null,null,null,null,null,null,null,null,null,null,null,null,null,null,null,null,null,null,null,null,null,null,null,null,null,"ps_tsh","Тип шаблона:","ЖКХ","водоснабжение - передача"]
[null,null,null,"1.2","Краткое наименование",null,null,null,null,null,null,null,null,null,null,null,null,null,null,null,null,null,null,null,null,null,null,null,null,null,null,null,null,null,null,null,null,null,null,null,null,null,null,null,null,null,null,"ps_psr","Подсфера:","Медицина","водоснабжение - подъем"]
[null,null,null,"1.3","Полное наименование",null,null,null,null,null,null,null,null,null,null,null,null,null,null,null,null,null,null,null,null,null,null,null,null,null,null,null,null,null,null,null,null,null,null,null,null,null,null,null,null,null,null,"ps_z","Заказчик:","Порты","выработка ТС  "]
[null,null,null,"1.4","Сфера регулирования ",null,null,null,null,null,null,null,null,null,null,null,null,null,null,null,null,null,null,null,null,null,null,null,null,null,null,null,null,null,null,null,null,null,null,null,null,null,null,null,null,null,null,null,null,"Связь","выработка ТС в режиме комбинированной выработки"]
[null,null,null,"1.5","Подсфера",null,null,null,null,null,null,null,null,null,null,null,null,null,null,null,null,null,null,null,null,null,null,null,null,null,null,null,null,null,null,null,null,null,null,null,null,null,null,null,null,null,null,null,null,"Транспорт","выработка электрической энергии"]
[null,null,null,"1.6","Состояние шаблона (Утвержден/Проект)",null,null,null,null,null,null,null,null,null,null,null,null,null,null,null,null,null,null,null,null,null,null,null,null,null,null,null,null,null,null,null,null,null,null,null,null,null,null,null,null,null,null,null,null,"Электроэнергетика","выработка+передача+сбыт ТС"]
[null,null,null,"1.7","Заказчик",null,null,null,null,null,null,null,null,null,null,null,null,null,null,null,null,null,null,null,null,null,null,null,null,null,null,null,null,null,null,null,null,null,null,null,null,null,null,null,null,null,null,null,null,null,"передача ТС"]
[null,null,null,"1.8","Отчитывается",null,null,null,null,null,null,null,null,null,null,null,null,null,null,null,null,null,null,null,null,null,null,null,null,null,null,null,null,null,null,null,null,null,null,null,null,null,null,null,null,null,null,null,null,null,"передача ЭЭ"]
[null,null,null,"1.9","Тип шаблона",null,"Если шаблон сводный, необходимо указать код атомарного шаблона для него:",null,null,null,null,null,null,null,null,null,null,null,null,null,null,null,null,null,null,null,null,null,null,null,null,null,null,null,null,null,null,null,null,null,null,null,null,null,null,null,null,null,null,null,"сбыт ТС"]
[null,null,null,"1.10","Текущая версия",null,null,null,null,null,null,null,null,null,null,null,null,null,null,null,null,null,null,null,null,null,null,null,null,null,null,null,null,null,null,null,null,null,null,null,null,null,null,null,null,null,null,null,null,null,"сбыт ЭЭ"]
[null,null,null,null,null,null,null,null,null,null,null,null,null,null,null,null,null,null,null,null,null,null,null,null,null,null,null,null,null,null,null,null,null,null,null,null,null,null,null,null,null,null,null,null,null,null,null,null,null,null,"ТБО"]
[null,null,null,"2. Организационные"]
[null,null,null,"2.1","Тип информации в шаблоне "]
[null,null,null,"2.2","Ответственный регулятор (от заказчика)"]
[null,null,null,"2.3","Ответственный специалист (от СМА)"]
[null,null,null,"2.4","Ответственный программист (от СМА)"]
[null,null,null,"2.5","Ответственные за сбор данных (от СМА)"]
[null,null,null,"2.6","Ответственные за сбор данных (от заказчика)"]
[]
[null,null,null,"3. Законодательство (методики, приказы, постановления ...)"]
[null,null,"first","3.1","Документ1"]
[null,null,"end","Добавить документ"]
[]
[null,null,null,"4. Периодичность"]
[null,null,null,"4.1","Периодичность"]
[null,null,null,null,"Мониторинги(прошедшие и плановые)","Дата начала","Дата окончания","Согласно (приказ, постановление, письмо)"]
[null,null,"first","4.2.1","Мониторинг1"]
[null,null,"end","Добавить мониторинг"]
[]
[null,null,null,"5. Состав шаблона"]
[null,null,null,null,"Лист","Последняя дата изменений эскиза","Состояние листа","Наименование витрины для листа","Комментарии"]
[null,null,"first","5.1.1"]
[null,null,"Удалить","5.1.2"]
[null,null,"Удалить","5.1.3"]
[null,null,"Удалить","5.1.4"]
[null,null,"Удалить","5.1.5"]
[null,null,"Удалить","5.1.6"]
[null,null,"Удалить","5.1.7"]
[null,null,"Удалить","5.1.8"]
[null,null,"Удалить","5.1.9"]
[null,null,"Удалить","5.1.10"]
[null,null,"Удалить","5.1.11"]
[null,null,"Удалить","5.1.12"]
[null,null,"Удалить","5.1.13"]
[null,null,"Удалить","5.1.14"]
[null,null,"Удалить","5.1.15"]
[null,null,"Удалить","5.1.16"]
[null,null,"Удалить","5.1.17"]
[null,null,"end","Добавить лист"]
[]
[null,null,null,"6. Сроки и даты"]
[null,null,null,"6.1.1","Даты получения последних эскизов, от экспертов"]
[null,null,null,"6.1.2","Даты отправки шаблона на проверку"]
[null,null,null,"6.1.3","Предполагаемый срок сдачи шаблона в эксплуатацию"]
[]
[null,null,null,"7. Версии"]
[null,null,null,null,"Версия","Отличия от предыдущей"]
[null,null,"first","7.1"]
[null,null,"end","Добавить версию"]
[]
[null,null,null,"8. Дополнительно"]
[null,null,null,"8.1","Аналогичные(\"похожие\") шаблоны"]
[null,null,null,"8.2","Особенности шаблона"]
[null,null,null,"8.3","Модуль на основе данного шаблона"]
[null,null,null,"8.4","Процедуры загрузки данных в витрины"]